Workbook

Sheet OLD PAPI_24- 27 (Delib. 246) (hidden)
A1: ID Ação | B1: Ação iniciou no PA/PI anterior? | C1: Se sim, id da ação anterior | D1: Ano previsto para início | E1: Tipo de ação | F1: É ou será empreendimento FEHIDRO? | G1: Ação requer recursos financeiros? | H1: SubPDC | I1: Prioridade do SubPDC | J1: Ação | K1: Meta | L1: % Execução da meta do quadriênio | M1: Segmento do executor | N1: Área de abrangência | O1: Nome da área de abrangência | P1: Recurso financeiro estimado no ano (R$) - Cobrança Estadual | Q1: Recurso financeiro estimado no ano (R$) - CFURH | R1: Recurso financeiro estimado no ano (R$) - Cobrança Federal | S1: Recurso financeiro estimado no ano (R$) - Outras | T1: Especificar Fonte - "Outras" | U1: Recurso financeiro estimado no ano (R$) | V1: Recurso financeiro disponibilizado no ano (R$) | W1: Recurso financeiro executado no ano (R$) | X1: Justificativa sobre execução física e financeira
A2: SID012024 | B2: Não | D2: 2024 | F2: Sim | H2: 3.1 - Efluentes | I2: Não prioritário | J2: Efetuar estudos de detalhe sobre a disponibilidade hídrica superficial e subterrânea (AG.11) | K2: MG.4 - Realizar ao menos 01 estudo que subsidie o planejamento e a gestão de recursos hídricos na UGRHi 18 | N2: Sub-bacia | O2: Sub-bacia crítica conforme classe de vazão de referência apontadas no Relatório de Situação | U2: =IF(SUM(PAPI20_22_23[[#This Row],[Recurso financeiro estimado no ano (R$) - Cobrança Estadual]:[Recurso financeiro estimado no ano (R$) - Outras]]) >0,SUM(PAPI20_22_23[[#This Row],[Recurso financeiro estimado no ano (R$) - Cobrança Estadual]:[Recurso financeiro estimado no ano (R$) - Outras]]),"") -> 
A3: SID012025 | D3: 2024 | J3: Manter o cadastro atualizado na bacia hidrográfica SJD (AG.13) | K3: MG.4 - Realizar ao menos 01 estudo para acompanhamento e adequação da cobrança pelo uso dos recursos hídricos | M3: Estado | N3: UGRHi | O3: UGRHi 18 | P3: 170000 | U3: =IF(SUM(PAPI20_22_23[[#This Row],[Recurso financeiro estimado no ano (R$) - Cobrança Estadual]:[Recurso financeiro estimado no ano (R$) - Outras]]) >0,SUM(PAPI20_22_23[[#This Row],[Recurso financeiro estimado no ano (R$) - Cobrança Estadual]:[Recurso financeiro estimado no ano (R$) - Outras]]),"") -> 170000
A4: SID012024 | J4: Execução de obras de sistemas de esgotamento sanitário, bem como de tratamento de efluentes provenientes de ETE (AI.3, 4, 5 e 6) | K4: MI. 2 e 3 - Efetuar melhorias nos sistemas de tratamento de esgoto em ao menos 02 municípios | M4: Município | N4: Município | O4: Municípios da UGRHi 18 que apresentem proporção de redução da carga orgânica poluidora domestica ≤ 80%. | P4: 260000 | U4: =IF(SUM(PAPI20_22_23[[#This Row],[Recurso financeiro estimado no ano (R$) - Cobrança Estadual]:[Recurso financeiro estimado no ano (R$) - Outras]]) >0,SUM(PAPI20_22_23[[#This Row],[Recurso financeiro estimado no ano (R$) - Cobrança Estadual]:[Recurso financeiro estimado no ano (R$) - Outras]]),"") -> 260000
A5: SID042022 | J5: Execução de obras e projetos (AI 8 e 9) nos casos em que haja comprometimento dos recursos hídricos | K5: MI.4 - Efetuar melhorias nos sistemas de aterros sanitários em ao menos 02 municípios | M5: Município | N5: Município | O5: Municípios com sistema de tratamento e coleta de resíduos sólidos ineficientes, conforme consta no Rel. Situação. | P5: 250000 | U5: =IF(SUM(PAPI20_22_23[[#This Row],[Recurso financeiro estimado no ano (R$) - Cobrança Estadual]:[Recurso financeiro estimado no ano (R$) - Outras]]) >0,SUM(PAPI20_22_23[[#This Row],[Recurso financeiro estimado no ano (R$) - Cobrança Estadual]:[Recurso financeiro estimado no ano (R$) - Outras]]),"") -> 250000
A6: SID052022 | J6: Execução de obras ou projetos que controle a erosão do solo ou assoreamento dos corpos d’água, em áreas urbanas ou rurais (AI. 14, 15 e 16) | K6: MI. 6 e MI. 7 - Aprimorar sistemas de conservação do solo e controle de erosão em ao menos 03 municípios | M6: Município | N6: Município | O6: Municípios com Plano de Drenagem ou Plano Diretor de Erosão elaborado | Q6: 288866.7 | U6: =IF(SUM(PAPI20_22_23[[#This Row],[Recurso financeiro estimado no ano (R$) - Cobrança Estadual]:[Recurso financeiro estimado no ano (R$) - Outras]]) >0,SUM(PAPI20_22_23[[#This Row],[Recurso financeiro estimado no ano (R$) - Cobrança Estadual]:[Recurso financeiro estimado no ano (R$) - Outras]]),"") -> 288866.7
A7: SID062022 | J7: Implementação das açoes indicadas no Plano de Saneamento (AI.11 e 12) (troca de hidrômetros, manutenção de rede, instalação de válvulas redutoras de pressão, entre outros) | K7: MI.5 - Reduzir perdas em sistemas de abastecimento de água em ao menos 02 municípios | M7: Município | N7: Município | O7: Ilha Solteira, Santa Fé do Sul, Suzanápolis, São João de Iracema e Neves Paulista | P7: 170000 | U7: =IF(SUM(PAPI20_22_23[[#This Row],[Recurso financeiro estimado no ano (R$) - Cobrança Estadual]:[Recurso financeiro estimado no ano (R$) - Outras]]) >0,SUM(PAPI20_22_23[[#This Row],[Recurso financeiro estimado no ano (R$) - Cobrança Estadual]:[Recurso financeiro estimado no ano (R$) - Outras]]),"") -> 170000
A8: SID072022 | J8: Execução de obras ou projetos de galerias de águas pluviais e canalização de curso d'água em área urbana e periurbana (AI.17, AI. 21, 22 e 23 ) | K8: MI. 7 e MI. 9 - Realizar melhorias nos sistemas de drenagem em ao menos 02 municípios | M8: Município | N8: Município | O8: Obras indicadas no Plano/Estudo de Drenagem no Município e para Projetos com necessidades de readequação/ampliação | Q8: 200000 | U8: =IF(SUM(PAPI20_22_23[[#This Row],[Recurso financeiro estimado no ano (R$) - Cobrança Estadual]:[Recurso financeiro estimado no ano (R$) - Outras]]) >0,SUM(PAPI20_22_23[[#This Row],[Recurso financeiro estimado no ano (R$) - Cobrança Estadual]:[Recurso financeiro estimado no ano (R$) - Outras]]),"") -> 200000
A9: SID082022 | J9: Orientação aos produtores rurais quanto à importância da outorga e treinamento/capacitação sobre os procedimentos de outorga e licenciamento ambiental (AG.25) | K9: MG.9. Realizar ao menos 1 curso de capacitação técnica relacionada ao planejamento e gestão de recursos hídricos | N9: UGRHi | O9: UGRHi 18 | P9: 150000 | U9: =IF(SUM(PAPI20_22_23[[#This Row],[Recurso financeiro estimado no ano (R$) - Cobrança Estadual]:[Recurso financeiro estimado no ano (R$) - Outras]]) >0,SUM(PAPI20_22_23[[#This Row],[Recurso financeiro estimado no ano (R$) - Cobrança Estadual]:[Recurso financeiro estimado no ano (R$) - Outras]]),"") -> 150000 | V9: 150000 | W9: 0 | X9: empreendimento não iniciado - emitiu o contrato
A10: SID012023 | J10: Realizar estudo/diagnóstico ambiental das nascentes, por sub-bacia, na UGRHI | K10: Aumentar as informações afim de subsidiar o planejamento e a gestão dos recursos hídricos na UGRHI | M10: DIVERSOS | N10: UGRHi | O10: UGRHi 18 | P10: 200197.43 | U10: =IF(SUM(PAPI20_22_23[[#This Row],[Recurso financeiro estimado no ano (R$) - Cobrança Estadual]:[Recurso financeiro estimado no ano (R$) - Outras]]) >0,SUM(PAPI20_22_23[[#This Row],[Recurso financeiro estimado no ano (R$) - Cobrança Estadual]:[Recurso financeiro estimado no ano (R$) - Outras]]),"") -> 200197.43
A11: SID022023 | J11: Elaborar mapa de feições erosivas da UGRHI | K11: Aumentar as informações afim de subsidiar o planejamento e a gestão dos recursos hídricos na UGRHI | M11: DIVERSOS | N11: UGRHi | O11: UGRHi 18 | Q11: 280000 | U11: =IF(SUM(PAPI20_22_23[[#This Row],[Recurso financeiro estimado no ano (R$) - Cobrança Estadual]:[Recurso financeiro estimado no ano (R$) - Outras]]) >0,SUM(PAPI20_22_23[[#This Row],[Recurso financeiro estimado no ano (R$) - Cobrança Estadual]:[Recurso financeiro estimado no ano (R$) - Outras]]),"") -> 280000
A12: SID032022 | J12: Elaboração do Plano diretor de controle de perdas | K12: Aumentar as informações afim de subsidiar o planejamento e a gestão dos recursos hídricos na UGRHI | M12: Município | N12: Município | O12: Ilha Solteira, Neves Paulista, São João de Iracema e Santa Fé do Sul. | P12: 170000 | U12: =IF(SUM(PAPI20_22_23[[#This Row],[Recurso financeiro estimado no ano (R$) - Cobrança Estadual]:[Recurso financeiro estimado no ano (R$) - Outras]]) >0,SUM(PAPI20_22_23[[#This Row],[Recurso financeiro estimado no ano (R$) - Cobrança Estadual]:[Recurso financeiro estimado no ano (R$) - Outras]]),"") -> 170000
A13: SID042023 | J13: Elaborar estudos para o controle de processos erosivos e projetos (básicos e/ou executivos), serviços ou obras para prevenção, prioritariamente em bacias de abastecimento, nascentes e áreas de recarga (troca de hidrômetros, manutenção de rede, instalação de válvulas redutoras de pressão, entre outros) | K13: Prevenir e controlar processos de erosão e assoreamento, visando a melhoria ou recuperação dos corpos d’água | M13: Município | N13: Município | O13: Floreal, General Salgado, Ilha Solteira, Jales, Monte Aprazível, Neves Paulista, Nhandeara, Palmeira d´oeste, Santa Fé do Sul, Sebastianópolis do Sul, Cosmorama, Monte Aprazível, Poloni, Santa Salete, Santana da Ponte Pensa, São Francisco, Tanabi, Três Fronteiras e Votuporanga | P13: 400000 | Q13: 300000 | U13: =IF(SUM(PAPI20_22_23[[#This Row],[Recurso financeiro estimado no ano (R$) - Cobrança Estadual]:[Recurso financeiro estimado no ano (R$) - Outras]]) >0,SUM(PAPI20_22_23[[#This Row],[Recurso financeiro estimado no ano (R$) - Cobrança Estadual]:[Recurso financeiro estimado no ano (R$) - Outras]]),"") -> 700000
A14: SID052023 | J14: Elaborar Projetos (básicos e/ou executivos), obras ou serviços em sistemas de abastecimento, visando controle e redução de perdas de água | K14: Alcance de uma média de 25% de perdas globais nos municípios da Bacia | M14: Município | N14: Município | O14: Ilha Solteira, Suzanápolis, Santa Fé do Sul, Neves Paulista e São João de Iracema. | P14: 300000 | U14: =IF(SUM(PAPI20_22_23[[#This Row],[Recurso financeiro estimado no ano (R$) - Cobrança Estadual]:[Recurso financeiro estimado no ano (R$) - Outras]]) >0,SUM(PAPI20_22_23[[#This Row],[Recurso financeiro estimado no ano (R$) - Cobrança Estadual]:[Recurso financeiro estimado no ano (R$) - Outras]]),"") -> 300000
A15: SID092023 | J15: Aquisição de equipamentos para operacionalização de sistemas de alerta, radares meteorológicos ou redes telemétricas integrados a sistemas de suporte à decisão; divulgação de informações e apoio à defesa civil (AG. 24) | K15: MG. 8 - Estruturar 01 Sala de Situação visando o Monitoramento de eventos extremos e sistemas de suporte a decisão | N15: Sub-bacia | O15: UGRHi 18 | P15: 400000 | U15: =IF(SUM(PAPI20_22_23[[#This Row],[Recurso financeiro estimado no ano (R$) - Cobrança Estadual]:[Recurso financeiro estimado no ano (R$) - Outras]]) >0,SUM(PAPI20_22_23[[#This Row],[Recurso financeiro estimado no ano (R$) - Cobrança Estadual]:[Recurso financeiro estimado no ano (R$) - Outras]]),"") -> 400000 | V15: 851322.1 | W15: 0 | X15: adiantamos a indicação da ação prevista para 2023 - empreendimento cancelado
A16: SID07023 | J16: Elaborar projetos (básicos e/ou executivos), serviços, obras em municípios com sistema de coleta e disposição final de resíduos sólidos ineficientes e/ou inadequadas; e implantar pontos de entrega voluntária (PEV), e programas de coleta seletiva | K16: Aumentar a cobertura da coleta de resíduos sólidos em áreas urbanas e rurais dos municípios | M16: Município | N16: Município | O16: Município | P16: 308323.15 | U16: =IF(SUM(PAPI20_22_23[[#This Row],[Recurso financeiro estimado no ano (R$) - Cobrança Estadual]:[Recurso financeiro estimado no ano (R$) - Outras]]) >0,SUM(PAPI20_22_23[[#This Row],[Recurso financeiro estimado no ano (R$) - Cobrança Estadual]:[Recurso financeiro estimado no ano (R$) - Outras]]),"") -> 308323.15
A17: SID08023 | J17: Elaborar projetos (básicos e/ou executivos), executar obras ou serviços em sistemas de abastecimento, visando propor soluções alternativas e a ampliação da rede de distribuição, das demais estruturas de apoio ao abastecimento | K17: Aproveitamento dos recursos hídricos e segurança hídrica | M17: Município | N17: Município | O17: Município | P17: 179324.92 | U17: =IF(SUM(PAPI20_22_23[[#This Row],[Recurso financeiro estimado no ano (R$) - Cobrança Estadual]:[Recurso financeiro estimado no ano (R$) - Outras]]) >0,SUM(PAPI20_22_23[[#This Row],[Recurso financeiro estimado no ano (R$) - Cobrança Estadual]:[Recurso financeiro estimado no ano (R$) - Outras]]),"") -> 179324.92
A18: SID06023 | J18: Elaborar projetos (básicos e/ou executivos), serviços ou obras para contenção de inundações, alagamentos, inclusive por técnicas de infiltração e armazenamento; e regularizações de descargas e dispositivos de lançamento de drenagem | K18: Contenção de inundações, alagamentos e regularizações de descargas na UGRHI | M18: Município | N18: Município | O18: Município | Q18: 1113141.65 | U18: =IF(SUM(PAPI20_22_23[[#This Row],[Recurso financeiro estimado no ano (R$) - Cobrança Estadual]:[Recurso financeiro estimado no ano (R$) - Outras]]) >0,SUM(PAPI20_22_23[[#This Row],[Recurso financeiro estimado no ano (R$) - Cobrança Estadual]:[Recurso financeiro estimado no ano (R$) - Outras]]),"") -> 1113141.65
U19: =IF(SUM(PAPI20_22_23[[#This Row],[Recurso financeiro estimado no ano (R$) - Cobrança Estadual]:[Recurso financeiro estimado no ano (R$) - Outras]]) >0,SUM(PAPI20_22_23[[#This Row],[Recurso financeiro estimado no ano (R$) - Cobrança Estadual]:[Recurso financeiro estimado no ano (R$) - Outras]]),"") -> 
U20: =IF(SUM(PAPI20_22_23[[#This Row],[Recurso financeiro estimado no ano (R$) - Cobrança Estadual]:[Recurso financeiro estimado no ano (R$) - Outras]]) >0,SUM(PAPI20_22_23[[#This Row],[Recurso financeiro estimado no ano (R$) - Cobrança Estadual]:[Recurso financeiro estimado no ano (R$) - Outras]]),"") -> 
U21: =IF(SUM(PAPI20_22_23[[#This Row],[Recurso financeiro estimado no ano (R$) - Cobrança Estadual]:[Recurso financeiro estimado no ano (R$) - Outras]]) >0,SUM(PAPI20_22_23[[#This Row],[Recurso financeiro estimado no ano (R$) - Cobrança Estadual]:[Recurso financeiro estimado no ano (R$) - Outras]]),"") -> 
U22: =IF(SUM(PAPI20_22_23[[#This Row],[Recurso financeiro estimado no ano (R$) - Cobrança Estadual]:[Recurso financeiro estimado no ano (R$) - Outras]]) >0,SUM(PAPI20_22_23[[#This Row],[Recurso financeiro estimado no ano (R$) - Cobrança Estadual]:[Recurso financeiro estimado no ano (R$) - Outras]]),"") -> 
U23: =IF(SUM(PAPI20_22_23[[#This Row],[Recurso financeiro estimado no ano (R$) - Cobrança Estadual]:[Recurso financeiro estimado no ano (R$) - Outras]]) >0,SUM(PAPI20_22_23[[#This Row],[Recurso financeiro estimado no ano (R$) - Cobrança Estadual]:[Recurso financeiro estimado no ano (R$) - Outras]]),"") -> 
U24: =IF(SUM(PAPI20_22_23[[#This Row],[Recurso financeiro estimado no ano (R$) - Cobrança Estadual]:[Recurso financeiro estimado no ano (R$) - Outras]]) >0,SUM(PAPI20_22_23[[#This Row],[Recurso financeiro estimado no ano (R$) - Cobrança Estadual]:[Recurso financeiro estimado no ano (R$) - Outras]]),"") -> 
U25: =IF(SUM(PAPI20_22_23[[#This Row],[Recurso financeiro estimado no ano (R$) - Cobrança Estadual]:[Recurso financeiro estimado no ano (R$) - Outras]]) >0,SUM(PAPI20_22_23[[#This Row],[Recurso financeiro estimado no ano (R$) - Cobrança Estadual]:[Recurso financeiro estimado no ano (R$) - Outras]]),"") -> 
U26: =IF(SUM(PAPI20_22_23[[#This Row],[Recurso financeiro estimado no ano (R$) - Cobrança Estadual]:[Recurso financeiro estimado no ano (R$) - Outras]]) >0,SUM(PAPI20_22_23[[#This Row],[Recurso financeiro estimado no ano (R$) - Cobrança Estadual]:[Recurso financeiro estimado no ano (R$) - Outras]]),"") -> 
U27: =IF(SUM(PAPI20_22_23[[#This Row],[Recurso financeiro estimado no ano (R$) - Cobrança Estadual]:[Recurso financeiro estimado no ano (R$) - Outras]]) >0,SUM(PAPI20_22_23[[#This Row],[Recurso financeiro estimado no ano (R$) - Cobrança Estadual]:[Recurso financeiro estimado no ano (R$) - Outras]]),"") -> 
U28: =IF(SUM(PAPI20_22_23[[#This Row],[Recurso financeiro estimado no ano (R$) - Cobrança Estadual]:[Recurso financeiro estimado no ano (R$) - Outras]]) >0,SUM(PAPI20_22_23[[#This Row],[Recurso financeiro estimado no ano (R$) - Cobrança Estadual]:[Recurso financeiro estimado no ano (R$) - Outras]]),"") -> 
U29: =IF(SUM(PAPI20_22_23[[#This Row],[Recurso financeiro estimado no ano (R$) - Cobrança Estadual]:[Recurso financeiro estimado no ano (R$) - Outras]]) >0,SUM(PAPI20_22_23[[#This Row],[Recurso financeiro estimado no ano (R$) - Cobrança Estadual]:[Recurso financeiro estimado no ano (R$) - Outras]]),"") -> 
U30: =IF(SUM(PAPI20_22_23[[#This Row],[Recurso financeiro estimado no ano (R$) - Cobrança Estadual]:[Recurso financeiro estimado no ano (R$) - Outras]]) >0,SUM(PAPI20_22_23[[#This Row],[Recurso financeiro estimado no ano (R$) - Cobrança Estadual]:[Recurso financeiro estimado no ano (R$) - Outras]]),"") -> 
U31: =IF(SUM(PAPI20_22_23[[#This Row],[Recurso financeiro estimado no ano (R$) - Cobrança Estadual]:[Recurso financeiro estimado no ano (R$) - Outras]]) >0,SUM(PAPI20_22_23[[#This Row],[Recurso financeiro estimado no ano (R$) - Cobrança Estadual]:[Recurso financeiro estimado no ano (R$) - Outras]]),"") -> 
U32: =IF(SUM(PAPI20_22_23[[#This Row],[Recurso financeiro estimado no ano (R$) - Cobrança Estadual]:[Recurso financeiro estimado no ano (R$) - Outras]]) >0,SUM(PAPI20_22_23[[#This Row],[Recurso financeiro estimado no ano (R$) - Cobrança Estadual]:[Recurso financeiro estimado no ano (R$) - Outras]]),"") -> 
U33: =IF(SUM(PAPI20_22_23[[#This Row],[Recurso financeiro estimado no ano (R$) - Cobrança Estadual]:[Recurso financeiro estimado no ano (R$) - Outras]]) >0,SUM(PAPI20_22_23[[#This Row],[Recurso financeiro estimado no ano (R$) - Cobrança Estadual]:[Recurso financeiro estimado no ano (R$) - Outras]]),"") -> 
U34: =IF(SUM(PAPI20_22_23[[#This Row],[Recurso financeiro estimado no ano (R$) - Cobrança Estadual]:[Recurso financeiro estimado no ano (R$) - Outras]]) >0,SUM(PAPI20_22_23[[#This Row],[Recurso financeiro estimado no ano (R$) - Cobrança Estadual]:[Recurso financeiro estimado no ano (R$) - Outras]]),"") -> 
U35: =IF(SUM(PAPI20_22_23[[#This Row],[Recurso financeiro estimado no ano (R$) - Cobrança Estadual]:[Recurso financeiro estimado no ano (R$) - Outras]]) >0,SUM(PAPI20_22_23[[#This Row],[Recurso financeiro estimado no ano (R$) - Cobrança Estadual]:[Recurso financeiro estimado no ano (R$) - Outras]]),"") -> 
U36: =IF(SUM(PAPI20_22_23[[#This Row],[Recurso financeiro estimado no ano (R$) - Cobrança Estadual]:[Recurso financeiro estimado no ano (R$) - Outras]]) >0,SUM(PAPI20_22_23[[#This Row],[Recurso financeiro estimado no ano (R$) - Cobrança Estadual]:[Recurso financeiro estimado no ano (R$) - Outras]]),"") -> 
U37: =IF(SUM(PAPI20_22_23[[#This Row],[Recurso financeiro estimado no ano (R$) - Cobrança Estadual]:[Recurso financeiro estimado no ano (R$) - Outras]]) >0,SUM(PAPI20_22_23[[#This Row],[Recurso financeiro estimado no ano (R$) - Cobrança Estadual]:[Recurso financeiro estimado no ano (R$) - Outras]]),"") -> 
U38: =IF(SUM(PAPI20_22_23[[#This Row],[Recurso financeiro estimado no ano (R$) - Cobrança Estadual]:[Recurso financeiro estimado no ano (R$) - Outras]]) >0,SUM(PAPI20_22_23[[#This Row],[Recurso financeiro estimado no ano (R$) - Cobrança Estadual]:[Recurso financeiro estimado no ano (R$) - Outras]]),"") -> 
U39: =IF(SUM(PAPI20_22_23[[#This Row],[Recurso financeiro estimado no ano (R$) - Cobrança Estadual]:[Recurso financeiro estimado no ano (R$) - Outras]]) >0,SUM(PAPI20_22_23[[#This Row],[Recurso financeiro estimado no ano (R$) - Cobrança Estadual]:[Recurso financeiro estimado no ano (R$) - Outras]]),"") -> 
U40: =IF(SUM(PAPI20_22_23[[#This Row],[Recurso financeiro estimado no ano (R$) - Cobrança Estadual]:[Recurso financeiro estimado no ano (R$) - Outras]]) >0,SUM(PAPI20_22_23[[#This Row],[Recurso financeiro estimado no ano (R$) - Cobrança Estadual]:[Recurso financeiro estimado no ano (R$) - Outras]]),"") -> 
U41: =IF(SUM(PAPI20_22_23[[#This Row],[Recurso financeiro estimado no ano (R$) - Cobrança Estadual]:[Recurso financeiro estimado no ano (R$) - Outras]]) >0,SUM(PAPI20_22_23[[#This Row],[Recurso financeiro estimado no ano (R$) - Cobrança Estadual]:[Recurso financeiro estimado no ano (R$) - Outras]]),"") -> 
U42: =IF(SUM(PAPI20_22_23[[#This Row],[Recurso financeiro estimado no ano (R$) - Cobrança Estadual]:[Recurso financeiro estimado no ano (R$) - Outras]]) >0,SUM(PAPI20_22_23[[#This Row],[Recurso financeiro estimado no ano (R$) - Cobrança Estadual]:[Recurso financeiro estimado no ano (R$) - Outras]]),"") -> 
U43: =IF(SUM(PAPI20_22_23[[#This Row],[Recurso financeiro estimado no ano (R$) - Cobrança Estadual]:[Recurso financeiro estimado no ano (R$) - Outras]]) >0,SUM(PAPI20_22_23[[#This Row],[Recurso financeiro estimado no ano (R$) - Cobrança Estadual]:[Recurso financeiro estimado no ano (R$) - Outras]]),"") -> 
U44: =IF(SUM(PAPI20_22_23[[#This Row],[Recurso financeiro estimado no ano (R$) - Cobrança Estadual]:[Recurso financeiro estimado no ano (R$) - Outras]]) >0,SUM(PAPI20_22_23[[#This Row],[Recurso financeiro estimado no ano (R$) - Cobrança Estadual]:[Recurso financeiro estimado no ano (R$) - Outras]]),"") -> 
U45: =IF(SUM(PAPI20_22_23[[#This Row],[Recurso financeiro estimado no ano (R$) - Cobrança Estadual]:[Recurso financeiro estimado no ano (R$) - Outras]]) >0,SUM(PAPI20_22_23[[#This Row],[Recurso financeiro estimado no ano (R$) - Cobrança Estadual]:[Recurso financeiro estimado no ano (R$) - Outras]]),"") -> 
U46: =IF(SUM(PAPI20_22_23[[#This Row],[Recurso financeiro estimado no ano (R$) - Cobrança Estadual]:[Recurso financeiro estimado no ano (R$) - Outras]]) >0,SUM(PAPI20_22_23[[#This Row],[Recurso financeiro estimado no ano (R$) - Cobrança Estadual]:[Recurso financeiro estimado no ano (R$) - Outras]]),"") -> 
U47: =IF(SUM(PAPI20_22_23[[#This Row],[Recurso financeiro estimado no ano (R$) - Cobrança Estadual]:[Recurso financeiro estimado no ano (R$) - Outras]]) >0,SUM(PAPI20_22_23[[#This Row],[Recurso financeiro estimado no ano (R$) - Cobrança Estadual]:[Recurso financeiro estimado no ano (R$) - Outras]]),"") -> 
U48: =IF(SUM(PAPI20_22_23[[#This Row],[Recurso financeiro estimado no ano (R$) - Cobrança Estadual]:[Recurso financeiro estimado no ano (R$) - Outras]]) >0,SUM(PAPI20_22_23[[#This Row],[Recurso financeiro estimado no ano (R$) - Cobrança Estadual]:[Recurso financeiro estimado no ano (R$) - Outras]]),"") -> 
U49: =IF(SUM(PAPI20_22_23[[#This Row],[Recurso financeiro estimado no ano (R$) - Cobrança Estadual]:[Recurso financeiro estimado no ano (R$) - Outras]]) >0,SUM(PAPI20_22_23[[#This Row],[Recurso financeiro estimado no ano (R$) - Cobrança Estadual]:[Recurso financeiro estimado no ano (R$) - Outras]]),"") -> 
U50: =IF(SUM(PAPI20_22_23[[#This Row],[Recurso financeiro estimado no ano (R$) - Cobrança Estadual]:[Recurso financeiro estimado no ano (R$) - Outras]]) >0,SUM(PAPI20_22_23[[#This Row],[Recurso financeiro estimado no ano (R$) - Cobrança Estadual]:[Recurso financeiro estimado no ano (R$) - Outras]]),"") -> 

Sheet Identificação das ações 24-27
A1: ID Ação | B1: Descrição da ação | C1: SubPDC | D1: Prioridade do PDC | E1: É (ou será) empreendimento FEHIDRO? | F1: Requer recursos financeiros? | G1: Quantidade de fontes de recursos | H1: Segmento do executor | I1: Área de abrangência | J1: Detalhamento da área de abrangência | K1: Início estimado da ação | L1: Fim estimado | M1: Observações
A2: ALPA_01_24 | B2: Atualização do PBH-ALPA (diagnóstico prognostico e cenarizações) | C2: 2.1 - Plano | D2: PDC 1 e 2 | E2: Sim | F2: Sim | G2: 1 | H2: Estado e Sociedade Civil | I2: Região Hidrográfica | J2: UGRHI-14 | K2: 2024-06-01 | L2: 2024-12-31 | M2: Ações Previstas no PBH com Planejamento financeiro
A3: ALPA_02_24 | B3: Monitoramento hidrológico das microbacias | C3: 2.5 - Redes de monitoramento e SI | D3: PDC 1 e 2 | E3: Sim | F3: Sim | G3: 1 | H3: Estado e Sociedade Civil | I3: Sub-bacia | J3: Subbacias da UGRHI-14 | K3: 2024-06-01 | L3: =L2 -> 2024-12-31 | M3: Ações Previstas no PBH com Planejamento financeiro
A4: ALPA_03_24 | B4: Investimento no sistema de esgotamento sanitário nos distritos operados pela SABESP. | C4: 3.1 - Efluentes | D4: Não prioritário | E4: Sim | F4: Sim | G4: 1 | H4: Município | I4: Outra | J4: Distritos Municipais | K4: 2024-06-01 | L4: =L2 -> 2024-12-31 | M4: Ações Previstas no PBH com Planejamento financeiro
A5: ALPA_04_24 | B5: Execução de obras de drenagem urbana | C5: 4.1 - Controle erosão | D5: Prioritário | E5: Sim | F5: Sim | G5: 1 | H5: Município | I5: Área urbana | J5: Perímetro Urbano | K5: 2024-06-01 | L5: =L2 -> 2024-12-31 | M5: Ações Previstas no PBH com Planejamento financeiro
A6: ALPA_05_24 | B6: Obras de controle à erosão nos municípios da UGRHI -14 | C6: 4.1 - Controle erosão | D6: Prioritário | E6: Sim | F6: Sim | G6: 1 | H6: Município | I6: Área urbana | J6: Perímetro Urbano | K6: 2024-06-01 | L6: =L2 -> 2024-12-31 | M6: Ações Previstas no PBH com Planejamento financeiro
A7: ALPA_06_24 | B7: Reduzir a ocorrência de alagamentos e inundações | C7: 7.1 - Drenagem | D7: Prioritário | E7: Sim | F7: Sim | G7: 1 | H7: Município | I7: Área urbana | J7: Perímetro Urbano | K7: 2024-06-01 | L7: =L2 -> 2024-12-31 | M7: Ações Previstas no PBH com Planejamento financeiro
A8: ALPA_07_24 | B8: Executar obras de drenagem urbana nos 34 municípios da UGRHI-14, mencionados nos Planos de Macrodrenagem Urbana | C8: 7.1 - Drenagem | D8: Prioritário | E8: Sim | F8: Sim | G8: 1 | H8: Município | I8: Área urbana | J8: Perímetro Urbano | K8: 2024-06-01 | L8: =L2 -> 2024-12-31 | M8: Ações Previstas no PBH com Planejamento financeiro

Sheet Acompanhamento das metas 24-27
A1: ID | B1: Descrição da ação | C1: Meta do quadriênio | D1: Meta 2024 | E1: % de execução física da meta (2024) | F1: Meta 2025 | G1: % de execução física da meta (2025) | H1: Meta 2026 | I1: % de execução física da meta (2026) | J1: Meta 2027 | K1: % de execução física da meta (2027) | L1: Observações
A2: =IF(INDEX(IdentAcoes[],,1)=0,"",(INDEX(IdentAcoes[],,1))) -> ALPA_01_24 | B2: =IF(INDEX(IdentAcoes[],,4)=0,"",(INDEX(IdentAcoes[],,2))) -> Atualização do PBH-ALPA (diagnóstico prognostico e cenarizações) | C2: Atualização do PBH-ALPA | D2: Elaboração dos trâmites para executar o PBH | E2: 0 | F2: Elaboração e Aprovação do PBH | G2: 0 | H2: Revisões (Diagnóstico) | I2: 0 | J2: Revisões Prognóstico | K2: 0
A3: ALPA_02_24 | B3: Monitoramento hidrológico das microbacias | C3: Implementar um sistema de monitoramento de disponibilidade hídrica em 5 sub-bacias visando a gestão de outorgas e demandas | D3: Implementar um sistema de monitoramento de disponibilidade hídrica em 1 sub-bacia visando a gestão de outorgas e demandas | E3: 0 | F3: Implementar um sistema de monitoramento de disponibilidade hídrica em 1 sub-bacia visando a gestão de outorgas e demandas | G3: 0 | H3: Implementar um sistema de monitoramento de disponibilidade hídrica em 1 sub-bacia visando a gestão de outorgas e demandas | I3: 0 | J3: Implementar um sistema de monitoramento de disponibilidade hídrica em 1 sub-bacia visando a gestão de outorgas e demandas | K3: 0
A4: ALPA_03_24 | B4: Investimento no sistema de esgotamento sanitário nos distritos operados pela SABESP. | C4: Melhoria de sistema de esgotamento sanitário em municípios com distritos não operacionalizados pela SABESP | D4: Melhoria de sistema de esgotamento sanitário em 1 município com distritos não operacionalizados pela SABESP | E4: 0 | F4: Melhoria de sistema de esgotamento sanitário em 1 município com distritos não operacionalizados pela SABESP | G4: 0 | H4: Melhoria de sistema de esgotamento sanitário em 1 município com distritos não operacionalizados pela SABESP | I4: 0 | J4: Melhoria de sistema de esgotamento sanitário em 1 município com distritos não operacionalizados pela SABESP | K4: 0
A5: ALPA_04_24 | B5: Execução de obras de drenagem urbana | C5: Implementação de sistema de drenagem urbana municípios da UGRHi-14 | D5: Implementação de sistema de drenagem urbana em ao menos 01 município | E5: 0 | F5: Implementação de sistema de drenagem urbana em ao menos 01 município | G5: 0 | H5: Implementação de sistema de drenagem urbana em ao menos 01 município | I5: 0 | J5: Implementação de sistema de drenagem urbana em ao menos 01 município | K5: 0
A6: ALPA_05_24 | B6: Obras de controle à erosão nos municípios da UGRHI -14 | C6: Implementação de sistema de drenagem urbana municípios da UGRHi-14 | D6: Implementação de sistema de drenagem urbana em ao menos 01 município | E6: 0 | F6: Implementação de sistema de drenagem urbana em ao menos 01 município | G6: 0 | H6: Implementação de sistema de drenagem urbana em ao menos 01 município | I6: 0 | J6: Implementação de sistema de drenagem urbana em ao menos 01 município | K6: 0
A7: ALPA_06_24 | B7: Reduzir a ocorrência de alagamentos e inundações | C7: Implementação de sistema de prevenção e defesa contra inundações nos municípios da UGRHi-14. | D7: Implementação de sistema de prevenção e defesa contra inundações em ao menos 01 município. | E7: 0 | F7: Implementação de sistema de prevenção e defesa contra inundações em ao menos 01 município. | G7: 0 | H7: Implementação de sistema de prevenção e defesa contra inundações em ao menos 01 município. | I7: 0 | J7: Implementação de sistema de prevenção e defesa contra inundações em ao menos 01 município. | K7: 0
A8: ALPA_07_24 | B8: Executar obras de drenagem urbana nos 34 municípios da UGRHI-14, mencionados nos Planos de Macrodrenagem Urbana | C8: Implementação de sistema de prevenção e defesa contra inundações nos municípios da UGRHi-14. | D8: Implementação de sistema de prevenção e defesa contra inundações em ao menos 01 município. | E8: 0 | F8: Implementação de sistema de prevenção e defesa contra inundações em ao menos 01 município. | G8: 0 | H8: Implementação de sistema de prevenção e defesa contra inundações em ao menos 01 município. | I8: 0 | J8: Implementação de sistema de prevenção e defesa contra inundações em ao menos 01 município. | K8: 0

Sheet Acomp. financeiro 24-27
A1: id_ação_Fonte_oculta | B1: ID Ação | C1: Descrição da ação | D1: Fonte | E1: R$ Planejado (2024) | F1: R$ Disponibilizado (2024) | G1: R$ Executado (2024) | H1: R$ Planejado (2025) | I1: R$ Disponibilizado (2025) | J1: R$ Executado (2025) | K1: R$ Planejado (2026) | L1: R$ Disponibilizado (2026) | M1: R$ Executado (2026) | N1: R$ Planejado (2027) | O1: R$ Disponibilizado (2027) | P1: R$ Executado (2027) | Q1: Observações sobre execução financeira da meta
A2: =Financeiro[[#This Row],[ID Ação]]&Financeiro[[#This Row],[Fonte]] -> ALPA_01_24FEHIDRO - CFURH | B2: =IFERROR(INDEX(IdentAcoes[ID Ação],MATCH(0,INDEX(--(COUNTIF(B$1:B1,IdentAcoes[ID Ação])=IdentAcoes[[Quantidade de fontes de recursos ]]),0),0)),"") -> ALPA_01_24 | C2: =IFERROR(INDEX(IdentAcoes[Descrição da ação],MATCH(0,INDEX(--(COUNTIF(C$1:C1,IdentAcoes[Descrição da ação])=IdentAcoes[[Quantidade de fontes de recursos ]]),0),0)),"") -> Atualização do PBH-ALPA (diagnóstico prognostico e cenarizações) | D2: FEHIDRO - CFURH | E2: 581866.18 | F2: =Financeiro[[#This Row],[R$ Planejado (2024)]] -> 581866.18 | G2: 0 | H2: 612631.4181 | I2: 0 | J2: 0 | K2: 612631.4181 | L2: 0 | M2: 0 | N2: 612631.4181 | O2: 0 | P2: 0
A3: =Financeiro[[#This Row],[ID Ação]]&Financeiro[[#This Row],[Fonte]] -> ALPA_02_24FEHIDRO - Cobrança estadual | B3: =IFERROR(INDEX(IdentAcoes[ID Ação],MATCH(0,INDEX(--(COUNTIF(B$1:B2,IdentAcoes[ID Ação])=IdentAcoes[[Quantidade de fontes de recursos ]]),0),0)),"") -> ALPA_02_24 | C3: =IFERROR(INDEX(IdentAcoes[Descrição da ação],MATCH(0,INDEX(--(COUNTIF(C$1:C2,IdentAcoes[Descrição da ação])=IdentAcoes[[Quantidade de fontes de recursos ]]),0),0)),"") -> Monitoramento hidrológico das microbacias | D3: FEHIDRO - Cobrança estadual | E3: 539844.08 | F3: =Financeiro[[#This Row],[R$ Planejado (2024)]] -> 539844.08 | G3: 0 | H3: 612631.4181 | I3: 0 | J3: 0 | K3: 612631.4181 | L3: 0 | M3: 0 | N3: 612631.4181 | O3: 0 | P3: 0
A4: =Financeiro[[#This Row],[ID Ação]]&Financeiro[[#This Row],[Fonte]] -> ALPA_03_24FEHIDRO - Cobrança estadual | B4: =IFERROR(INDEX(IdentAcoes[ID Ação],MATCH(0,INDEX(--(COUNTIF(B$1:B3,IdentAcoes[ID Ação])=IdentAcoes[[Quantidade de fontes de recursos ]]),0),0)),"") -> ALPA_03_24 | C4: =IFERROR(INDEX(IdentAcoes[Descrição da ação],MATCH(0,INDEX(--(COUNTIF(C$1:C3,IdentAcoes[Descrição da ação])=IdentAcoes[[Quantidade de fontes de recursos ]]),0),0)),"") -> Investimento no sistema de esgotamento sanitário nos distritos operados pela SABESP. | D4: FEHIDRO - Cobrança estadual | E4: 647812.9 | F4: =Financeiro[[#This Row],[R$ Planejado (2024)]] -> 647812.9 | G4: 0 | H4: 735157.7018 | I4: 0 | J4: 0 | K4: 735157.7018 | L4: 0 | M4: 0 | N4: 735157.7018 | O4: 0 | P4: 0
A5: =Financeiro[[#This Row],[ID Ação]]&Financeiro[[#This Row],[Fonte]] -> ALPA_04_24FEHIDRO - Cobrança estadual | B5: =IFERROR(INDEX(IdentAcoes[ID Ação],MATCH(0,INDEX(--(COUNTIF(B$1:B4,IdentAcoes[ID Ação])=IdentAcoes[[Quantidade de fontes de recursos ]]),0),0)),"") -> ALPA_04_24 | C5: =IFERROR(INDEX(IdentAcoes[Descrição da ação],MATCH(0,INDEX(--(COUNTIF(C$1:C4,IdentAcoes[Descrição da ação])=IdentAcoes[[Quantidade de fontes de recursos ]]),0),0)),"") -> Execução de obras de drenagem urbana | D5: FEHIDRO - Cobrança estadual | E5: 269922.04 | F5: =Financeiro[[#This Row],[R$ Planejado (2024)]] -> 269922.04 | G5: 0 | H5: 490105.1345 | I5: 0 | J5: 0 | K5: 490105.1345 | L5: 0 | M5: 0 | N5: 490105.1345 | O5: 0 | P5: 0
A6: =Financeiro[[#This Row],[ID Ação]]&Financeiro[[#This Row],[Fonte]] -> ALPA_05_24FEHIDRO - Cobrança estadual | B6: =IFERROR(INDEX(IdentAcoes[ID Ação],MATCH(0,INDEX(--(COUNTIF(B$1:B5,IdentAcoes[ID Ação])=IdentAcoes[[Quantidade de fontes de recursos ]]),0),0)),"") -> ALPA_05_24 | C6: =IFERROR(INDEX(IdentAcoes[Descrição da ação],MATCH(0,INDEX(--(COUNTIF(C$1:C5,IdentAcoes[Descrição da ação])=IdentAcoes[[Quantidade de fontes de recursos ]]),0),0)),"") -> Obras de controle à erosão nos municípios da UGRHI -14 | D6: FEHIDRO - Cobrança estadual | E6: 269922.04 | F6: =Financeiro[[#This Row],[R$ Planejado (2024)]] -> 269922.04 | G6: 0 | H6: 490105.1345 | I6: 0 | J6: 0 | K6: 490105.1345 | L6: 0 | M6: 0 | N6: 490105.1345 | O6: 0 | P6: 0
A7: =Financeiro[[#This Row],[ID Ação]]&Financeiro[[#This Row],[Fonte]] -> ALPA_06_24FEHIDRO - Cobrança estadual | B7: =IFERROR(INDEX(IdentAcoes[ID Ação],MATCH(0,INDEX(--(COUNTIF(B$1:B6,IdentAcoes[ID Ação])=IdentAcoes[[Quantidade de fontes de recursos ]]),0),0)),"") -> ALPA_06_24 | C7: =IFERROR(INDEX(IdentAcoes[Descrição da ação],MATCH(0,INDEX(--(COUNTIF(C$1:C6,IdentAcoes[Descrição da ação])=IdentAcoes[[Quantidade de fontes de recursos ]]),0),0)),"") -> Reduzir a ocorrência de alagamentos e inundações | D7: FEHIDRO - Cobrança estadual | E7: 1295625.8 | F7: =2591251.6/2 -> 1295625.8 | G7: 0 | H7: 490105.1345 | I7: 0 | J7: 0 | K7: 490105.1345 | L7: 0 | M7: 0 | N7: 490105.1345 | O7: 0 | P7: 0
A8: =Financeiro[[#This Row],[ID Ação]]&Financeiro[[#This Row],[Fonte]] -> ALPA_07_24FEHIDRO - Cobrança estadual | B8: =IFERROR(INDEX(IdentAcoes[ID Ação],MATCH(0,INDEX(--(COUNTIF(B$1:B7,IdentAcoes[ID Ação])=IdentAcoes[[Quantidade de fontes de recursos ]]),0),0)),"") -> ALPA_07_24 | C8: =IFERROR(INDEX(IdentAcoes[Descrição da ação],MATCH(0,INDEX(--(COUNTIF(C$1:C7,IdentAcoes[Descrição da ação])=IdentAcoes[[Quantidade de fontes de recursos ]]),0),0)),"") -> Executar obras de drenagem urbana nos 34 municípios da UGRHI-14, mencionados nos Planos de Macrodrenagem Urbana | D8: FEHIDRO - Cobrança estadual | E8: 1295625.8 | F8: =F7 -> 1295625.8 | G8: 0 | H8: 1470315.404 | I8: 0 | J8: 0 | K8: 1470315.404 | L8: 0 | M8: 0 | N8: 1470315.404 | O8: 0 | P8: 0
A9: =Financeiro[[#This Row],[ID Ação]]&Financeiro[[#This Row],[Fonte]] ->  | B9: =IFERROR(INDEX(IdentAcoes[ID Ação],MATCH(0,INDEX(--(COUNTIF(B$1:B8,IdentAcoes[ID Ação])=IdentAcoes[[Quantidade de fontes de recursos ]]),0),0)),"") ->  | C9: =IFERROR(INDEX(IdentAcoes[Descrição da ação],MATCH(0,INDEX(--(COUNTIF(C$1:C8,IdentAcoes[Descrição da ação])=IdentAcoes[[Quantidade de fontes de recursos ]]),0),0)),"") ->  | E9: obs: os valores somam as fontes CFURH e COB
A10: =Financeiro[[#This Row],[ID Ação]]&Financeiro[[#This Row],[Fonte]] ->  | B10: =IFERROR(INDEX(IdentAcoes[ID Ação],MATCH(0,INDEX(--(COUNTIF(B$1:B9,IdentAcoes[ID Ação])=IdentAcoes[[Quantidade de fontes de recursos ]]),0),0)),"") ->  | C10: =IFERROR(INDEX(IdentAcoes[Descrição da ação],MATCH(0,INDEX(--(COUNTIF(C$1:C9,IdentAcoes[Descrição da ação])=IdentAcoes[[Quantidade de fontes de recursos ]]),0),0)),"") ->  | E10: Para valores da CFURh foi utilizado o montante publicado na deliberação COFEHIDRO 256/2023 ANEXO II - DISTRIBUIÇÃO DE RECURSOS DE INVESTIMENTO AOS COLEGIADOS
A11: =Financeiro[[#This Row],[ID Ação]]&Financeiro[[#This Row],[Fonte]] ->  | B11: =IFERROR(INDEX(IdentAcoes[ID Ação],MATCH(0,INDEX(--(COUNTIF(B$1:B10,IdentAcoes[ID Ação])=IdentAcoes[[Quantidade de fontes de recursos ]]),0),0)),"") ->  | C11: =IFERROR(INDEX(IdentAcoes[Descrição da ação],MATCH(0,INDEX(--(COUNTIF(C$1:C10,IdentAcoes[Descrição da ação])=IdentAcoes[[Quantidade de fontes de recursos ]]),0),0)),"") ->  | E11: Para a COLUNA F foram utilizados apenas os valores referente à Cobrança conforme Plano de Aplicação da Cobrança 2024
A12: =Financeiro[[#This Row],[ID Ação]]&Financeiro[[#This Row],[Fonte]] ->  | B12: =IFERROR(INDEX(IdentAcoes[ID Ação],MATCH(0,INDEX(--(COUNTIF(B$1:B11,IdentAcoes[ID Ação])=IdentAcoes[[Quantidade de fontes de recursos ]]),0),0)),"") ->  | C12: =IFERROR(INDEX(IdentAcoes[Descrição da ação],MATCH(0,INDEX(--(COUNTIF(C$1:C11,IdentAcoes[Descrição da ação])=IdentAcoes[[Quantidade de fontes de recursos ]]),0),0)),"") -> 
A13: =Financeiro[[#This Row],[ID Ação]]&Financeiro[[#This Row],[Fonte]] ->  | B13: =IFERROR(INDEX(IdentAcoes[ID Ação],MATCH(0,INDEX(--(COUNTIF(B$1:B12,IdentAcoes[ID Ação])=IdentAcoes[[Quantidade de fontes de recursos ]]),0),0)),"") ->  | C13: =IFERROR(INDEX(IdentAcoes[Descrição da ação],MATCH(0,INDEX(--(COUNTIF(C$1:C12,IdentAcoes[Descrição da ação])=IdentAcoes[[Quantidade de fontes de recursos ]]),0),0)),"") -> 
A14: =Financeiro[[#This Row],[ID Ação]]&Financeiro[[#This Row],[Fonte]] ->  | B14: =IFERROR(INDEX(IdentAcoes[ID Ação],MATCH(0,INDEX(--(COUNTIF(B$1:B13,IdentAcoes[ID Ação])=IdentAcoes[[Quantidade de fontes de recursos ]]),0),0)),"") ->  | C14: =IFERROR(INDEX(IdentAcoes[Descrição da ação],MATCH(0,INDEX(--(COUNTIF(C$1:C13,IdentAcoes[Descrição da ação])=IdentAcoes[[Quantidade de fontes de recursos ]]),0),0)),"") -> 
A15: =Financeiro[[#This Row],[ID Ação]]&Financeiro[[#This Row],[Fonte]] ->  | B15: =IFERROR(INDEX(IdentAcoes[ID Ação],MATCH(0,INDEX(--(COUNTIF(B$1:B14,IdentAcoes[ID Ação])=IdentAcoes[[Quantidade de fontes de recursos ]]),0),0)),"") ->  | C15: =IFERROR(INDEX(IdentAcoes[Descrição da ação],MATCH(0,INDEX(--(COUNTIF(C$1:C14,IdentAcoes[Descrição da ação])=IdentAcoes[[Quantidade de fontes de recursos ]]),0),0)),"") -> 
A16: =Financeiro[[#This Row],[ID Ação]]&Financeiro[[#This Row],[Fonte]] ->  | B16: =IFERROR(INDEX(IdentAcoes[ID Ação],MATCH(0,INDEX(--(COUNTIF(B$1:B15,IdentAcoes[ID Ação])=IdentAcoes[[Quantidade de fontes de recursos ]]),0),0)),"") ->  | C16: =IFERROR(INDEX(IdentAcoes[Descrição da ação],MATCH(0,INDEX(--(COUNTIF(C$1:C15,IdentAcoes[Descrição da ação])=IdentAcoes[[Quantidade de fontes de recursos ]]),0),0)),"") -> 
A17: =Financeiro[[#This Row],[ID Ação]]&Financeiro[[#This Row],[Fonte]] ->  | B17: =IFERROR(INDEX(IdentAcoes[ID Ação],MATCH(0,INDEX(--(COUNTIF(B$1:B16,IdentAcoes[ID Ação])=IdentAcoes[[Quantidade de fontes de recursos ]]),0),0)),"") ->  | C17: =IFERROR(INDEX(IdentAcoes[Descrição da ação],MATCH(0,INDEX(--(COUNTIF(C$1:C16,IdentAcoes[Descrição da ação])=IdentAcoes[[Quantidade de fontes de recursos ]]),0),0)),"") -> 
A18: =Financeiro[[#This Row],[ID Ação]]&Financeiro[[#This Row],[Fonte]] ->  | B18: =IFERROR(INDEX(IdentAcoes[ID Ação],MATCH(0,INDEX(--(COUNTIF(B$1:B17,IdentAcoes[ID Ação])=IdentAcoes[[Quantidade de fontes de recursos ]]),0),0)),"") ->  | C18: =IFERROR(INDEX(IdentAcoes[Descrição da ação],MATCH(0,INDEX(--(COUNTIF(C$1:C17,IdentAcoes[Descrição da ação])=IdentAcoes[[Quantidade de fontes de recursos ]]),0),0)),"") -> 
A19: =Financeiro[[#This Row],[ID Ação]]&Financeiro[[#This Row],[Fonte]] ->  | B19: =IFERROR(INDEX(IdentAcoes[ID Ação],MATCH(0,INDEX(--(COUNTIF(B$1:B18,IdentAcoes[ID Ação])=IdentAcoes[[Quantidade de fontes de recursos ]]),0),0)),"") ->  | C19: =IFERROR(INDEX(IdentAcoes[Descrição da ação],MATCH(0,INDEX(--(COUNTIF(C$1:C18,IdentAcoes[Descrição da ação])=IdentAcoes[[Quantidade de fontes de recursos ]]),0),0)),"") -> 
A20: =Financeiro[[#This Row],[ID Ação]]&Financeiro[[#This Row],[Fonte]] ->  | B20: =IFERROR(INDEX(IdentAcoes[ID Ação],MATCH(0,INDEX(--(COUNTIF(B$1:B19,IdentAcoes[ID Ação])=IdentAcoes[[Quantidade de fontes de recursos ]]),0),0)),"") ->  | C20: =IFERROR(INDEX(IdentAcoes[Descrição da ação],MATCH(0,INDEX(--(COUNTIF(C$1:C19,IdentAcoes[Descrição da ação])=IdentAcoes[[Quantidade de fontes de recursos ]]),0),0)),"") -> 
A21: =Financeiro[[#This Row],[ID Ação]]&Financeiro[[#This Row],[Fonte]] ->  | B21: =IFERROR(INDEX(IdentAcoes[ID Ação],MATCH(0,INDEX(--(COUNTIF(B$1:B20,IdentAcoes[ID Ação])=IdentAcoes[[Quantidade de fontes de recursos ]]),0),0)),"") ->  | C21: =IFERROR(INDEX(IdentAcoes[Descrição da ação],MATCH(0,INDEX(--(COUNTIF(C$1:C20,IdentAcoes[Descrição da ação])=IdentAcoes[[Quantidade de fontes de recursos ]]),0),0)),"") -> 
A22: =Financeiro[[#This Row],[ID Ação]]&Financeiro[[#This Row],[Fonte]] ->  | B22: =IFERROR(INDEX(IdentAcoes[ID Ação],MATCH(0,INDEX(--(COUNTIF(B$1:B21,IdentAcoes[ID Ação])=IdentAcoes[[Quantidade de fontes de recursos ]]),0),0)),"") ->  | C22: =IFERROR(INDEX(IdentAcoes[Descrição da ação],MATCH(0,INDEX(--(COUNTIF(C$1:C21,IdentAcoes[Descrição da ação])=IdentAcoes[[Quantidade de fontes de recursos ]]),0),0)),"") -> 
A23: =Financeiro[[#This Row],[ID Ação]]&Financeiro[[#This Row],[Fonte]] ->  | B23: =IFERROR(INDEX(IdentAcoes[ID Ação],MATCH(0,INDEX(--(COUNTIF(B$1:B22,IdentAcoes[ID Ação])=IdentAcoes[[Quantidade de fontes de recursos ]]),0),0)),"") ->  | C23: =IFERROR(INDEX(IdentAcoes[Descrição da ação],MATCH(0,INDEX(--(COUNTIF(C$1:C22,IdentAcoes[Descrição da ação])=IdentAcoes[[Quantidade de fontes de recursos ]]),0),0)),"") -> 
A24: =Financeiro[[#This Row],[ID Ação]]&Financeiro[[#This Row],[Fonte]] ->  | B24: =IFERROR(INDEX(IdentAcoes[ID Ação],MATCH(0,INDEX(--(COUNTIF(B$1:B23,IdentAcoes[ID Ação])=IdentAcoes[[Quantidade de fontes de recursos ]]),0),0)),"") ->  | C24: =IFERROR(INDEX(IdentAcoes[Descrição da ação],MATCH(0,INDEX(--(COUNTIF(C$1:C23,IdentAcoes[Descrição da ação])=IdentAcoes[[Quantidade de fontes de recursos ]]),0),0)),"") -> 
A25: =Financeiro[[#This Row],[ID Ação]]&Financeiro[[#This Row],[Fonte]] ->  | B25: =IFERROR(INDEX(IdentAcoes[ID Ação],MATCH(0,INDEX(--(COUNTIF(B$1:B24,IdentAcoes[ID Ação])=IdentAcoes[[Quantidade de fontes de recursos ]]),0),0)),"") ->  | C25: =IFERROR(INDEX(IdentAcoes[Descrição da ação],MATCH(0,INDEX(--(COUNTIF(C$1:C24,IdentAcoes[Descrição da ação])=IdentAcoes[[Quantidade de fontes de recursos ]]),0),0)),"") -> 
A26: =Financeiro[[#This Row],[ID Ação]]&Financeiro[[#This Row],[Fonte]] ->  | B26: =IFERROR(INDEX(IdentAcoes[ID Ação],MATCH(0,INDEX(--(COUNTIF(B$1:B25,IdentAcoes[ID Ação])=IdentAcoes[[Quantidade de fontes de recursos ]]),0),0)),"") ->  | C26: =IFERROR(INDEX(IdentAcoes[Descrição da ação],MATCH(0,INDEX(--(COUNTIF(C$1:C25,IdentAcoes[Descrição da ação])=IdentAcoes[[Quantidade de fontes de recursos ]]),0),0)),"") -> 
A27: =Financeiro[[#This Row],[ID Ação]]&Financeiro[[#This Row],[Fonte]] ->  | B27: =IFERROR(INDEX(IdentAcoes[ID Ação],MATCH(0,INDEX(--(COUNTIF(B$1:B26,IdentAcoes[ID Ação])=IdentAcoes[[Quantidade de fontes de recursos ]]),0),0)),"") ->  | C27: =IFERROR(INDEX(IdentAcoes[Descrição da ação],MATCH(0,INDEX(--(COUNTIF(C$1:C26,IdentAcoes[Descrição da ação])=IdentAcoes[[Quantidade de fontes de recursos ]]),0),0)),"") -> 
A28: =Financeiro[[#This Row],[ID Ação]]&Financeiro[[#This Row],[Fonte]] ->  | B28: =IFERROR(INDEX(IdentAcoes[ID Ação],MATCH(0,INDEX(--(COUNTIF(B$1:B27,IdentAcoes[ID Ação])=IdentAcoes[[Quantidade de fontes de recursos ]]),0),0)),"") ->  | C28: =IFERROR(INDEX(IdentAcoes[Descrição da ação],MATCH(0,INDEX(--(COUNTIF(C$1:C27,IdentAcoes[Descrição da ação])=IdentAcoes[[Quantidade de fontes de recursos ]]),0),0)),"") -> 
A29: =Financeiro[[#This Row],[ID Ação]]&Financeiro[[#This Row],[Fonte]] ->  | B29: =IFERROR(INDEX(IdentAcoes[ID Ação],MATCH(0,INDEX(--(COUNTIF(B$1:B28,IdentAcoes[ID Ação])=IdentAcoes[[Quantidade de fontes de recursos ]]),0),0)),"") ->  | C29: =IFERROR(INDEX(IdentAcoes[Descrição da ação],MATCH(0,INDEX(--(COUNTIF(C$1:C28,IdentAcoes[Descrição da ação])=IdentAcoes[[Quantidade de fontes de recursos ]]),0),0)),"") -> 
A30: =Financeiro[[#This Row],[ID Ação]]&Financeiro[[#This Row],[Fonte]] ->  | B30: =IFERROR(INDEX(IdentAcoes[ID Ação],MATCH(0,INDEX(--(COUNTIF(B$1:B29,IdentAcoes[ID Ação])=IdentAcoes[[Quantidade de fontes de recursos ]]),0),0)),"") ->  | C30: =IFERROR(INDEX(IdentAcoes[Descrição da ação],MATCH(0,INDEX(--(COUNTIF(C$1:C29,IdentAcoes[Descrição da ação])=IdentAcoes[[Quantidade de fontes de recursos ]]),0),0)),"") -> 
A31: =Financeiro[[#This Row],[ID Ação]]&Financeiro[[#This Row],[Fonte]] ->  | B31: =IFERROR(INDEX(IdentAcoes[ID Ação],MATCH(0,INDEX(--(COUNTIF(B$1:B30,IdentAcoes[ID Ação])=IdentAcoes[[Quantidade de fontes de recursos ]]),0),0)),"") ->  | C31: =IFERROR(INDEX(IdentAcoes[Descrição da ação],MATCH(0,INDEX(--(COUNTIF(C$1:C30,IdentAcoes[Descrição da ação])=IdentAcoes[[Quantidade de fontes de recursos ]]),0),0)),"") -> 
A32: =Financeiro[[#This Row],[ID Ação]]&Financeiro[[#This Row],[Fonte]] ->  | B32: =IFERROR(INDEX(IdentAcoes[ID Ação],MATCH(0,INDEX(--(COUNTIF(B$1:B31,IdentAcoes[ID Ação])=IdentAcoes[[Quantidade de fontes de recursos ]]),0),0)),"") ->  | C32: =IFERROR(INDEX(IdentAcoes[Descrição da ação],MATCH(0,INDEX(--(COUNTIF(C$1:C31,IdentAcoes[Descrição da ação])=IdentAcoes[[Quantidade de fontes de recursos ]]),0),0)),"") -> 
A33: =Financeiro[[#This Row],[ID Ação]]&Financeiro[[#This Row],[Fonte]] ->  | B33: =IFERROR(INDEX(IdentAcoes[ID Ação],MATCH(0,INDEX(--(COUNTIF(B$1:B32,IdentAcoes[ID Ação])=IdentAcoes[[Quantidade de fontes de recursos ]]),0),0)),"") ->  | C33: =IFERROR(INDEX(IdentAcoes[Descrição da ação],MATCH(0,INDEX(--(COUNTIF(C$1:C32,IdentAcoes[Descrição da ação])=IdentAcoes[[Quantidade de fontes de recursos ]]),0),0)),"") -> 
A34: =Financeiro[[#This Row],[ID Ação]]&Financeiro[[#This Row],[Fonte]] ->  | B34: =IFERROR(INDEX(IdentAcoes[ID Ação],MATCH(0,INDEX(--(COUNTIF(B$1:B33,IdentAcoes[ID Ação])=IdentAcoes[[Quantidade de fontes de recursos ]]),0),0)),"") ->  | C34: =IFERROR(INDEX(IdentAcoes[Descrição da ação],MATCH(0,INDEX(--(COUNTIF(C$1:C33,IdentAcoes[Descrição da ação])=IdentAcoes[[Quantidade de fontes de recursos ]]),0),0)),"") -> 
A35: =Financeiro[[#This Row],[ID Ação]]&Financeiro[[#This Row],[Fonte]] ->  | B35: =IFERROR(INDEX(IdentAcoes[ID Ação],MATCH(0,INDEX(--(COUNTIF(B$1:B34,IdentAcoes[ID Ação])=IdentAcoes[[Quantidade de fontes de recursos ]]),0),0)),"") ->  | C35: =IFERROR(INDEX(IdentAcoes[Descrição da ação],MATCH(0,INDEX(--(COUNTIF(C$1:C34,IdentAcoes[Descrição da ação])=IdentAcoes[[Quantidade de fontes de recursos ]]),0),0)),"") -> 
A36: =Financeiro[[#This Row],[ID Ação]]&Financeiro[[#This Row],[Fonte]] ->  | B36: =IFERROR(INDEX(IdentAcoes[ID Ação],MATCH(0,INDEX(--(COUNTIF(B$1:B35,IdentAcoes[ID Ação])=IdentAcoes[[Quantidade de fontes de recursos ]]),0),0)),"") ->  | C36: =IFERROR(INDEX(IdentAcoes[Descrição da ação],MATCH(0,INDEX(--(COUNTIF(C$1:C35,IdentAcoes[Descrição da ação])=IdentAcoes[[Quantidade de fontes de recursos ]]),0),0)),"") -> 
A37: =Financeiro[[#This Row],[ID Ação]]&Financeiro[[#This Row],[Fonte]] ->  | B37: =IFERROR(INDEX(IdentAcoes[ID Ação],MATCH(0,INDEX(--(COUNTIF(B$1:B36,IdentAcoes[ID Ação])=IdentAcoes[[Quantidade de fontes de recursos ]]),0),0)),"") ->  | C37: =IFERROR(INDEX(IdentAcoes[Descrição da ação],MATCH(0,INDEX(--(COUNTIF(C$1:C36,IdentAcoes[Descrição da ação])=IdentAcoes[[Quantidade de fontes de recursos ]]),0),0)),"") -> 
A38: =Financeiro[[#This Row],[ID Ação]]&Financeiro[[#This Row],[Fonte]] ->  | B38: =IFERROR(INDEX(IdentAcoes[ID Ação],MATCH(0,INDEX(--(COUNTIF(B$1:B37,IdentAcoes[ID Ação])=IdentAcoes[[Quantidade de fontes de recursos ]]),0),0)),"") ->  | C38: =IFERROR(INDEX(IdentAcoes[Descrição da ação],MATCH(0,INDEX(--(COUNTIF(C$1:C37,IdentAcoes[Descrição da ação])=IdentAcoes[[Quantidade de fontes de recursos ]]),0),0)),"") -> 
A39: =Financeiro[[#This Row],[ID Ação]]&Financeiro[[#This Row],[Fonte]] ->  | B39: =IFERROR(INDEX(IdentAcoes[ID Ação],MATCH(0,INDEX(--(COUNTIF(B$1:B38,IdentAcoes[ID Ação])=IdentAcoes[[Quantidade de fontes de recursos ]]),0),0)),"") ->  | C39: =IFERROR(INDEX(IdentAcoes[Descrição da ação],MATCH(0,INDEX(--(COUNTIF(C$1:C38,IdentAcoes[Descrição da ação])=IdentAcoes[[Quantidade de fontes de recursos ]]),0),0)),"") -> 
A40: =Financeiro[[#This Row],[ID Ação]]&Financeiro[[#This Row],[Fonte]] ->  | B40: =IFERROR(INDEX(IdentAcoes[ID Ação],MATCH(0,INDEX(--(COUNTIF(B$1:B39,IdentAcoes[ID Ação])=IdentAcoes[[Quantidade de fontes de recursos ]]),0),0)),"") ->  | C40: =IFERROR(INDEX(IdentAcoes[Descrição da ação],MATCH(0,INDEX(--(COUNTIF(C$1:C39,IdentAcoes[Descrição da ação])=IdentAcoes[[Quantidade de fontes de recursos ]]),0),0)),"") -> 
A41: =Financeiro[[#This Row],[ID Ação]]&Financeiro[[#This Row],[Fonte]] ->  | B41: =IFERROR(INDEX(IdentAcoes[ID Ação],MATCH(0,INDEX(--(COUNTIF(B$1:B40,IdentAcoes[ID Ação])=IdentAcoes[[Quantidade de fontes de recursos ]]),0),0)),"") ->  | C41: =IFERROR(INDEX(IdentAcoes[Descrição da ação],MATCH(0,INDEX(--(COUNTIF(C$1:C40,IdentAcoes[Descrição da ação])=IdentAcoes[[Quantidade de fontes de recursos ]]),0),0)),"") -> 
A42: =Financeiro[[#This Row],[ID Ação]]&Financeiro[[#This Row],[Fonte]] ->  | B42: =IFERROR(INDEX(IdentAcoes[ID Ação],MATCH(0,INDEX(--(COUNTIF(B$1:B41,IdentAcoes[ID Ação])=IdentAcoes[[Quantidade de fontes de recursos ]]),0),0)),"") ->  | C42: =IFERROR(INDEX(IdentAcoes[Descrição da ação],MATCH(0,INDEX(--(COUNTIF(C$1:C41,IdentAcoes[Descrição da ação])=IdentAcoes[[Quantidade de fontes de recursos ]]),0),0)),"") -> 
A43: =Financeiro[[#This Row],[ID Ação]]&Financeiro[[#This Row],[Fonte]] ->  | B43: =IFERROR(INDEX(IdentAcoes[ID Ação],MATCH(0,INDEX(--(COUNTIF(B$1:B42,IdentAcoes[ID Ação])=IdentAcoes[[Quantidade de fontes de recursos ]]),0),0)),"") ->  | C43: =IFERROR(INDEX(IdentAcoes[Descrição da ação],MATCH(0,INDEX(--(COUNTIF(C$1:C42,IdentAcoes[Descrição da ação])=IdentAcoes[[Quantidade de fontes de recursos ]]),0),0)),"") -> 
A44: =Financeiro[[#This Row],[ID Ação]]&Financeiro[[#This Row],[Fonte]] ->  | B44: =IFERROR(INDEX(IdentAcoes[ID Ação],MATCH(0,INDEX(--(COUNTIF(B$1:B43,IdentAcoes[ID Ação])=IdentAcoes[[Quantidade de fontes de recursos ]]),0),0)),"") ->  | C44: =IFERROR(INDEX(IdentAcoes[Descrição da ação],MATCH(0,INDEX(--(COUNTIF(C$1:C43,IdentAcoes[Descrição da ação])=IdentAcoes[[Quantidade de fontes de recursos ]]),0),0)),"") -> 
A45: =Financeiro[[#This Row],[ID Ação]]&Financeiro[[#This Row],[Fonte]] ->  | B45: =IFERROR(INDEX(IdentAcoes[ID Ação],MATCH(0,INDEX(--(COUNTIF(B$1:B44,IdentAcoes[ID Ação])=IdentAcoes[[Quantidade de fontes de recursos ]]),0),0)),"") ->  | C45: =IFERROR(INDEX(IdentAcoes[Descrição da ação],MATCH(0,INDEX(--(COUNTIF(C$1:C44,IdentAcoes[Descrição da ação])=IdentAcoes[[Quantidade de fontes de recursos ]]),0),0)),"") -> 
A46: =Financeiro[[#This Row],[ID Ação]]&Financeiro[[#This Row],[Fonte]] ->  | B46: =IFERROR(INDEX(IdentAcoes[ID Ação],MATCH(0,INDEX(--(COUNTIF(B$1:B45,IdentAcoes[ID Ação])=IdentAcoes[[Quantidade de fontes de recursos ]]),0),0)),"") ->  | C46: =IFERROR(INDEX(IdentAcoes[Descrição da ação],MATCH(0,INDEX(--(COUNTIF(C$1:C45,IdentAcoes[Descrição da ação])=IdentAcoes[[Quantidade de fontes de recursos ]]),0),0)),"") -> 
A47: =Financeiro[[#This Row],[ID Ação]]&Financeiro[[#This Row],[Fonte]] ->  | B47: =IFERROR(INDEX(IdentAcoes[ID Ação],MATCH(0,INDEX(--(COUNTIF(B$1:B46,IdentAcoes[ID Ação])=IdentAcoes[[Quantidade de fontes de recursos ]]),0),0)),"") ->  | C47: =IFERROR(INDEX(IdentAcoes[Descrição da ação],MATCH(0,INDEX(--(COUNTIF(C$1:C46,IdentAcoes[Descrição da ação])=IdentAcoes[[Quantidade de fontes de recursos ]]),0),0)),"") -> 
A48: =Financeiro[[#This Row],[ID Ação]]&Financeiro[[#This Row],[Fonte]] ->  | B48: =IFERROR(INDEX(IdentAcoes[ID Ação],MATCH(0,INDEX(--(COUNTIF(B$1:B47,IdentAcoes[ID Ação])=IdentAcoes[[Quantidade de fontes de recursos ]]),0),0)),"") ->  | C48: =IFERROR(INDEX(IdentAcoes[Descrição da ação],MATCH(0,INDEX(--(COUNTIF(C$1:C47,IdentAcoes[Descrição da ação])=IdentAcoes[[Quantidade de fontes de recursos ]]),0),0)),"") -> 
A49: =Financeiro[[#This Row],[ID Ação]]&Financeiro[[#This Row],[Fonte]] ->  | B49: =IFERROR(INDEX(IdentAcoes[ID Ação],MATCH(0,INDEX(--(COUNTIF(B$1:B48,IdentAcoes[ID Ação])=IdentAcoes[[Quantidade de fontes de recursos ]]),0),0)),"") ->  | C49: =IFERROR(INDEX(IdentAcoes[Descrição da ação],MATCH(0,INDEX(--(COUNTIF(C$1:C48,IdentAcoes[Descrição da ação])=IdentAcoes[[Quantidade de fontes de recursos ]]),0),0)),"") -> 
A50: =Financeiro[[#This Row],[ID Ação]]&Financeiro[[#This Row],[Fonte]] ->  | B50: =IFERROR(INDEX(IdentAcoes[ID Ação],MATCH(0,INDEX(--(COUNTIF(B$1:B49,IdentAcoes[ID Ação])=IdentAcoes[[Quantidade de fontes de recursos ]]),0),0)),"") ->  | C50: =IFERROR(INDEX(IdentAcoes[Descrição da ação],MATCH(0,INDEX(--(COUNTIF(C$1:C49,IdentAcoes[Descrição da ação])=IdentAcoes[[Quantidade de fontes de recursos ]]),0),0)),"") -> 

Sheet PAPI 2024-2027
F1: R$ Planejado
A2: id_ação_Fonte_oculta | B2: ID Ação | C2: Descrição da ação | D2: Meta | E2: Fonte | F2: 2024 | G2: 2025 | H2: 2026 | I2: 2027 | J2: Total | K2: SubPDC | L2: Prioridade do PDC | M2: Segmento do executor | N2: Área de abrangência | O2: Nome da área de abrangência
A3: =IF(INDEX(Financeiro[],,1)=0,"",(INDEX(Financeiro[],,1))) -> ALPA_01_24FEHIDRO - CFURH | B3: =IF(INDEX(Financeiro[],,2)=0,"",(INDEX(Financeiro[],,2))) -> ALPA_01_24 | C3: =INDEX(Financeiro[Descrição da ação],MATCH(B3,Financeiro[ID Ação], 0)) -> Atualização do PBH-ALPA (diagnóstico prognostico e cenarizações) | D3: =IF(INDEX('Acompanhamento das metas 24-27'!$C$2:$C$50,MATCH(B3,'Acompanhamento das metas 24-27'!$A$2:$A$50,0))<>0,INDEX('Acompanhamento das metas 24-27'!$C$2:$C$50,MATCH(B3,'Acompanhamento das metas 24-27'!$A$2:$A$50,0)),"") -> Atualização do PBH-ALPA | E3: =IF(VLOOKUP(A3,Financeiro[[id_ação_Fonte_oculta]:[R$ Executado (2027)]],4,FALSE)=0,"",VLOOKUP(A3,Financeiro[[id_ação_Fonte_oculta]:[R$ Executado (2027)]],4,FALSE)) -> FEHIDRO - CFURH | F3: =IF(VLOOKUP(A3,Financeiro[[id_ação_Fonte_oculta]:[R$ Executado (2027)]],4,FALSE)=0,"",VLOOKUP(A3,Financeiro[[id_ação_Fonte_oculta]:[R$ Executado (2027)]],5,FALSE)) -> 581866.18 | G3: =IF(VLOOKUP(A3,Financeiro[[id_ação_Fonte_oculta]:[R$ Executado (2027)]],4,FALSE)=0,"",VLOOKUP(A3,Financeiro[[id_ação_Fonte_oculta]:[R$ Executado (2027)]],8,FALSE)) -> 612631.4181 | H3: =IF(VLOOKUP(A3,Financeiro[[id_ação_Fonte_oculta]:[R$ Executado (2027)]],4,FALSE)=0,"",VLOOKUP(A3,Financeiro[[id_ação_Fonte_oculta]:[R$ Executado (2027)]],11,FALSE)) -> 612631.4181 | I3: =IF(VLOOKUP(A3,Financeiro[[id_ação_Fonte_oculta]:[R$ Executado (2027)]],4,FALSE)=0,"",VLOOKUP(A3,Financeiro[[id_ação_Fonte_oculta]:[R$ Executado (2027)]],14,FALSE)) -> 612631.4181 | J3: =SUM(F3:I3) -> 2419760.434 | K3: =IFERROR(INDEX(IdentAcoes[SubPDC],MATCH(B3,IdentAcoes[ID Ação],0)),"") -> 2.1 - Plano | L3: =IFERROR(INDEX(IdentAcoes[Prioridade do PDC],MATCH($B3,IdentAcoes[ID Ação],0)),"") -> PDC 1 e 2 | M3: =IFERROR(INDEX(IdentAcoes[Segmento do executor],MATCH($B3,IdentAcoes[ID Ação],0)),"") -> Estado e Sociedade Civil | N3: =IFERROR(INDEX(IdentAcoes[Área de abrangência],MATCH($B3,IdentAcoes[ID Ação],0)),"") -> Região Hidrográfica | O3: =IFERROR(INDEX(IdentAcoes[Detalhamento da área de abrangência],MATCH($B3,IdentAcoes[ID Ação],0)),"") -> UGRHI-14
A4: ALPA_02_24FEHIDRO - Cobrança estadual | B4: ALPA_02_24 | C4: =INDEX(Financeiro[Descrição da ação],MATCH(B4,Financeiro[ID Ação], 0)) -> Monitoramento hidrológico das microbacias | D4: =IF(INDEX('Acompanhamento das metas 24-27'!$C$2:$C$50,MATCH(B4,'Acompanhamento das metas 24-27'!$A$2:$A$50,0))<>0,INDEX('Acompanhamento das metas 24-27'!$C$2:$C$50,MATCH(B4,'Acompanhamento das metas 24-27'!$A$2:$A$50,0)),"") -> Implementar um sistema de monitoramento de disponibilidade hídrica em 5 sub-bacias visando a gestão de outorgas e demandas | E4: =IF(VLOOKUP(A4,Financeiro[[id_ação_Fonte_oculta]:[R$ Executado (2027)]],4,FALSE)=0,"",VLOOKUP(A4,Financeiro[[id_ação_Fonte_oculta]:[R$ Executado (2027)]],4,FALSE)) -> FEHIDRO - Cobrança estadual | F4: =IF(VLOOKUP(A4,Financeiro[[id_ação_Fonte_oculta]:[R$ Executado (2027)]],4,FALSE)=0,"",VLOOKUP(A4,Financeiro[[id_ação_Fonte_oculta]:[R$ Executado (2027)]],5,FALSE)) -> 539844.08 | G4: =IF(VLOOKUP(A4,Financeiro[[id_ação_Fonte_oculta]:[R$ Executado (2027)]],4,FALSE)=0,"",VLOOKUP(A4,Financeiro[[id_ação_Fonte_oculta]:[R$ Executado (2027)]],8,FALSE)) -> 612631.4181 | H4: =IF(VLOOKUP(A4,Financeiro[[id_ação_Fonte_oculta]:[R$ Executado (2027)]],4,FALSE)=0,"",VLOOKUP(A4,Financeiro[[id_ação_Fonte_oculta]:[R$ Executado (2027)]],11,FALSE)) -> 612631.4181 | I4: =IF(VLOOKUP(A4,Financeiro[[id_ação_Fonte_oculta]:[R$ Executado (2027)]],4,FALSE)=0,"",VLOOKUP(A4,Financeiro[[id_ação_Fonte_oculta]:[R$ Executado (2027)]],14,FALSE)) -> 612631.4181 | J4: =SUM(F4:I4) -> 2377738.334 | K4: =IFERROR(INDEX(IdentAcoes[SubPDC],MATCH(B4,IdentAcoes[ID Ação],0)),"") -> 2.5 - Redes de monitoramento e SI | L4: =IFERROR(INDEX(IdentAcoes[Prioridade do PDC],MATCH(B4,IdentAcoes[ID Ação],0)),"") -> PDC 1 e 2 | M4: =IFERROR(INDEX(IdentAcoes[Segmento do executor],MATCH($B4,IdentAcoes[ID Ação],0)),"") -> Estado e Sociedade Civil | N4: =IFERROR(INDEX(IdentAcoes[Área de abrangência],MATCH($B4,IdentAcoes[ID Ação],0)),"") -> Sub-bacia | O4: =IFERROR(INDEX(IdentAcoes[Detalhamento da área de abrangência],MATCH($B4,IdentAcoes[ID Ação],0)),"") -> Subbacias da UGRHI-14
A5: ALPA_03_24FEHIDRO - Cobrança estadual | B5: ALPA_03_24 | C5: =INDEX(Financeiro[Descrição da ação],MATCH(B5,Financeiro[ID Ação], 0)) -> Investimento no sistema de esgotamento sanitário nos distritos operados pela SABESP. | D5: =IF(INDEX('Acompanhamento das metas 24-27'!$C$2:$C$50,MATCH(B5,'Acompanhamento das metas 24-27'!$A$2:$A$50,0))<>0,INDEX('Acompanhamento das metas 24-27'!$C$2:$C$50,MATCH(B5,'Acompanhamento das metas 24-27'!$A$2:$A$50,0)),"") -> Melhoria de sistema de esgotamento sanitário em municípios com distritos não operacionalizados pela SABESP | E5: =IF(VLOOKUP(A5,Financeiro[[id_ação_Fonte_oculta]:[R$ Executado (2027)]],4,FALSE)=0,"",VLOOKUP(A5,Financeiro[[id_ação_Fonte_oculta]:[R$ Executado (2027)]],4,FALSE)) -> FEHIDRO - Cobrança estadual | F5: =IF(VLOOKUP(A5,Financeiro[[id_ação_Fonte_oculta]:[R$ Executado (2027)]],4,FALSE)=0,"",VLOOKUP(A5,Financeiro[[id_ação_Fonte_oculta]:[R$ Executado (2027)]],5,FALSE)) -> 647812.9 | G5: =IF(VLOOKUP(A5,Financeiro[[id_ação_Fonte_oculta]:[R$ Executado (2027)]],4,FALSE)=0,"",VLOOKUP(A5,Financeiro[[id_ação_Fonte_oculta]:[R$ Executado (2027)]],8,FALSE)) -> 735157.7018 | H5: =IF(VLOOKUP(A5,Financeiro[[id_ação_Fonte_oculta]:[R$ Executado (2027)]],4,FALSE)=0,"",VLOOKUP(A5,Financeiro[[id_ação_Fonte_oculta]:[R$ Executado (2027)]],11,FALSE)) -> 735157.7018 | I5: =IF(VLOOKUP(A5,Financeiro[[id_ação_Fonte_oculta]:[R$ Executado (2027)]],4,FALSE)=0,"",VLOOKUP(A5,Financeiro[[id_ação_Fonte_oculta]:[R$ Executado (2027)]],14,FALSE)) -> 735157.7018 | J5: 2853286.005 | K5: =IFERROR(INDEX(IdentAcoes[SubPDC],MATCH(B5,IdentAcoes[ID Ação],0)),"") -> 3.1 - Efluentes | L5: =IFERROR(INDEX(IdentAcoes[Prioridade do PDC],MATCH(B5,IdentAcoes[ID Ação],0)),"") -> Não prioritário | M5: =IFERROR(INDEX(IdentAcoes[Segmento do executor],MATCH($B5,IdentAcoes[ID Ação],0)),"") -> Município | N5: =IFERROR(INDEX(IdentAcoes[Área de abrangência],MATCH($B5,IdentAcoes[ID Ação],0)),"") -> Outra | O5: =IFERROR(INDEX(IdentAcoes[Detalhamento da área de abrangência],MATCH($B5,IdentAcoes[ID Ação],0)),"") -> Distritos Municipais
A6: ALPA_04_24FEHIDRO - Cobrança estadual | B6: ALPA_04_24 | C6: =INDEX(Financeiro[Descrição da ação],MATCH(B6,Financeiro[ID Ação], 0)) -> Execução de obras de drenagem urbana | D6: =IF(INDEX('Acompanhamento das metas 24-27'!$C$2:$C$50,MATCH(B6,'Acompanhamento das metas 24-27'!$A$2:$A$50,0))<>0,INDEX('Acompanhamento das metas 24-27'!$C$2:$C$50,MATCH(B6,'Acompanhamento das metas 24-27'!$A$2:$A$50,0)),"") -> Implementação de sistema de drenagem urbana municípios da UGRHi-14 | E6: =IF(VLOOKUP(A6,Financeiro[[id_ação_Fonte_oculta]:[R$ Executado (2027)]],4,FALSE)=0,"",VLOOKUP(A6,Financeiro[[id_ação_Fonte_oculta]:[R$ Executado (2027)]],4,FALSE)) -> FEHIDRO - Cobrança estadual | F6: =IF(VLOOKUP(A6,Financeiro[[id_ação_Fonte_oculta]:[R$ Executado (2027)]],4,FALSE)=0,"",VLOOKUP(A6,Financeiro[[id_ação_Fonte_oculta]:[R$ Executado (2027)]],5,FALSE)) -> 269922.04 | G6: =IF(VLOOKUP(A6,Financeiro[[id_ação_Fonte_oculta]:[R$ Executado (2027)]],4,FALSE)=0,"",VLOOKUP(A6,Financeiro[[id_ação_Fonte_oculta]:[R$ Executado (2027)]],8,FALSE)) -> 490105.1345 | H6: =IF(VLOOKUP(A6,Financeiro[[id_ação_Fonte_oculta]:[R$ Executado (2027)]],4,FALSE)=0,"",VLOOKUP(A6,Financeiro[[id_ação_Fonte_oculta]:[R$ Executado (2027)]],11,FALSE)) -> 490105.1345 | I6: =IF(VLOOKUP(A6,Financeiro[[id_ação_Fonte_oculta]:[R$ Executado (2027)]],4,FALSE)=0,"",VLOOKUP(A6,Financeiro[[id_ação_Fonte_oculta]:[R$ Executado (2027)]],14,FALSE)) -> 490105.1345 | J6: 1740237.443 | K6: =IFERROR(INDEX(IdentAcoes[SubPDC],MATCH(B6,IdentAcoes[ID Ação],0)),"") -> 4.1 - Controle erosão | L6: =IFERROR(INDEX(IdentAcoes[Prioridade do PDC],MATCH(B6,IdentAcoes[ID Ação],0)),"") -> Prioritário | M6: =IFERROR(INDEX(IdentAcoes[Segmento do executor],MATCH($B6,IdentAcoes[ID Ação],0)),"") -> Município | N6: =IFERROR(INDEX(IdentAcoes[Área de abrangência],MATCH($B6,IdentAcoes[ID Ação],0)),"") -> Área urbana | O6: =IFERROR(INDEX(IdentAcoes[Detalhamento da área de abrangência],MATCH($B6,IdentAcoes[ID Ação],0)),"") -> Perímetro Urbano
A7: ALPA_05_24FEHIDRO - Cobrança estadual | B7: ALPA_05_24 | C7: =INDEX(Financeiro[Descrição da ação],MATCH(B7,Financeiro[ID Ação], 0)) -> Obras de controle à erosão nos municípios da UGRHI -14 | D7: =IF(INDEX('Acompanhamento das metas 24-27'!$C$2:$C$50,MATCH(B7,'Acompanhamento das metas 24-27'!$A$2:$A$50,0))<>0,INDEX('Acompanhamento das metas 24-27'!$C$2:$C$50,MATCH(B7,'Acompanhamento das metas 24-27'!$A$2:$A$50,0)),"") -> Implementação de sistema de drenagem urbana municípios da UGRHi-14 | E7: =IF(VLOOKUP(A7,Financeiro[[id_ação_Fonte_oculta]:[R$ Executado (2027)]],4,FALSE)=0,"",VLOOKUP(A7,Financeiro[[id_ação_Fonte_oculta]:[R$ Executado (2027)]],4,FALSE)) -> FEHIDRO - Cobrança estadual | F7: =IF(VLOOKUP(A7,Financeiro[[id_ação_Fonte_oculta]:[R$ Executado (2027)]],4,FALSE)=0,"",VLOOKUP(A7,Financeiro[[id_ação_Fonte_oculta]:[R$ Executado (2027)]],5,FALSE)) -> 269922.04 | G7: =IF(VLOOKUP(A7,Financeiro[[id_ação_Fonte_oculta]:[R$ Executado (2027)]],4,FALSE)=0,"",VLOOKUP(A7,Financeiro[[id_ação_Fonte_oculta]:[R$ Executado (2027)]],8,FALSE)) -> 490105.1345 | H7: =IF(VLOOKUP(A7,Financeiro[[id_ação_Fonte_oculta]:[R$ Executado (2027)]],4,FALSE)=0,"",VLOOKUP(A7,Financeiro[[id_ação_Fonte_oculta]:[R$ Executado (2027)]],11,FALSE)) -> 490105.1345 | I7: =IF(VLOOKUP(A7,Financeiro[[id_ação_Fonte_oculta]:[R$ Executado (2027)]],4,FALSE)=0,"",VLOOKUP(A7,Financeiro[[id_ação_Fonte_oculta]:[R$ Executado (2027)]],14,FALSE)) -> 490105.1345 | J7: 1740237.443 | K7: =IFERROR(INDEX(IdentAcoes[SubPDC],MATCH(B7,IdentAcoes[ID Ação],0)),"") -> 4.1 - Controle erosão | L7: =IFERROR(INDEX(IdentAcoes[Prioridade do PDC],MATCH(B7,IdentAcoes[ID Ação],0)),"") -> Prioritário | M7: =IFERROR(INDEX(IdentAcoes[Segmento do executor],MATCH($B7,IdentAcoes[ID Ação],0)),"") -> Município | N7: =IFERROR(INDEX(IdentAcoes[Área de abrangência],MATCH($B7,IdentAcoes[ID Ação],0)),"") -> Área urbana | O7: =IFERROR(INDEX(IdentAcoes[Detalhamento da área de abrangência],MATCH($B7,IdentAcoes[ID Ação],0)),"") -> Perímetro Urbano
A8: ALPA_06_24FEHIDRO - Cobrança estadual | B8: ALPA_06_24 | C8: =INDEX(Financeiro[Descrição da ação],MATCH(B8,Financeiro[ID Ação], 0)) -> Reduzir a ocorrência de alagamentos e inundações | D8: =IF(INDEX('Acompanhamento das metas 24-27'!$C$2:$C$50,MATCH(B8,'Acompanhamento das metas 24-27'!$A$2:$A$50,0))<>0,INDEX('Acompanhamento das metas 24-27'!$C$2:$C$50,MATCH(B8,'Acompanhamento das metas 24-27'!$A$2:$A$50,0)),"") -> Implementação de sistema de prevenção e defesa contra inundações nos municípios da UGRHi-14. | E8: =IF(VLOOKUP(A8,Financeiro[[id_ação_Fonte_oculta]:[R$ Executado (2027)]],4,FALSE)=0,"",VLOOKUP(A8,Financeiro[[id_ação_Fonte_oculta]:[R$ Executado (2027)]],4,FALSE)) -> FEHIDRO - Cobrança estadual | F8: =IF(VLOOKUP(A8,Financeiro[[id_ação_Fonte_oculta]:[R$ Executado (2027)]],4,FALSE)=0,"",VLOOKUP(A8,Financeiro[[id_ação_Fonte_oculta]:[R$ Executado (2027)]],5,FALSE)) -> 1295625.8 | G8: =IF(VLOOKUP(A8,Financeiro[[id_ação_Fonte_oculta]:[R$ Executado (2027)]],4,FALSE)=0,"",VLOOKUP(A8,Financeiro[[id_ação_Fonte_oculta]:[R$ Executado (2027)]],8,FALSE)) -> 490105.1345 | H8: =IF(VLOOKUP(A8,Financeiro[[id_ação_Fonte_oculta]:[R$ Executado (2027)]],4,FALSE)=0,"",VLOOKUP(A8,Financeiro[[id_ação_Fonte_oculta]:[R$ Executado (2027)]],11,FALSE)) -> 490105.1345 | I8: =IF(VLOOKUP(A8,Financeiro[[id_ação_Fonte_oculta]:[R$ Executado (2027)]],4,FALSE)=0,"",VLOOKUP(A8,Financeiro[[id_ação_Fonte_oculta]:[R$ Executado (2027)]],14,FALSE)) -> 490105.1345 | J8: 2765941.204 | K8: =IFERROR(INDEX(IdentAcoes[SubPDC],MATCH(B8,IdentAcoes[ID Ação],0)),"") -> 7.1 - Drenagem | L8: =IFERROR(INDEX(IdentAcoes[Prioridade do PDC],MATCH(B8,IdentAcoes[ID Ação],0)),"") -> Prioritário | M8: =IFERROR(INDEX(IdentAcoes[Segmento do executor],MATCH($B8,IdentAcoes[ID Ação],0)),"") -> Município | N8: =IFERROR(INDEX(IdentAcoes[Área de abrangência],MATCH($B8,IdentAcoes[ID Ação],0)),"") -> Área urbana | O8: =IFERROR(INDEX(IdentAcoes[Detalhamento da área de abrangência],MATCH($B8,IdentAcoes[ID Ação],0)),"") -> Perímetro Urbano
A9: ALPA_07_24FEHIDRO - Cobrança estadual | B9: ALPA_07_24 | C9: =INDEX(Financeiro[Descrição da ação],MATCH(B9,Financeiro[ID Ação], 0)) -> Executar obras de drenagem urbana nos 34 municípios da UGRHI-14, mencionados nos Planos de Macrodrenagem Urbana | D9: =IF(INDEX('Acompanhamento das metas 24-27'!$C$2:$C$50,MATCH(B9,'Acompanhamento das metas 24-27'!$A$2:$A$50,0))<>0,INDEX('Acompanhamento das metas 24-27'!$C$2:$C$50,MATCH(B9,'Acompanhamento das metas 24-27'!$A$2:$A$50,0)),"") -> Implementação de sistema de prevenção e defesa contra inundações nos municípios da UGRHi-14. | E9: =IF(VLOOKUP(A9,Financeiro[[id_ação_Fonte_oculta]:[R$ Executado (2027)]],4,FALSE)=0,"",VLOOKUP(A9,Financeiro[[id_ação_Fonte_oculta]:[R$ Executado (2027)]],4,FALSE)) -> FEHIDRO - Cobrança estadual | F9: =IF(VLOOKUP(A9,Financeiro[[id_ação_Fonte_oculta]:[R$ Executado (2027)]],4,FALSE)=0,"",VLOOKUP(A9,Financeiro[[id_ação_Fonte_oculta]:[R$ Executado (2027)]],5,FALSE)) -> 1295625.8 | G9: =IF(VLOOKUP(A9,Financeiro[[id_ação_Fonte_oculta]:[R$ Executado (2027)]],4,FALSE)=0,"",VLOOKUP(A9,Financeiro[[id_ação_Fonte_oculta]:[R$ Executado (2027)]],8,FALSE)) -> 1470315.404 | H9: =IF(VLOOKUP(A9,Financeiro[[id_ação_Fonte_oculta]:[R$ Executado (2027)]],4,FALSE)=0,"",VLOOKUP(A9,Financeiro[[id_ação_Fonte_oculta]:[R$ Executado (2027)]],11,FALSE)) -> 1470315.404 | I9: =IF(VLOOKUP(A9,Financeiro[[id_ação_Fonte_oculta]:[R$ Executado (2027)]],4,FALSE)=0,"",VLOOKUP(A9,Financeiro[[id_ação_Fonte_oculta]:[R$ Executado (2027)]],14,FALSE)) -> 1470315.404 | J9: 5706572.01 | K9: =IFERROR(INDEX(IdentAcoes[SubPDC],MATCH(B9,IdentAcoes[ID Ação],0)),"") -> 7.1 - Drenagem | L9: =IFERROR(INDEX(IdentAcoes[Prioridade do PDC],MATCH(B9,IdentAcoes[ID Ação],0)),"") -> Prioritário | M9: =IFERROR(INDEX(IdentAcoes[Segmento do executor],MATCH($B9,IdentAcoes[ID Ação],0)),"") -> Município | N9: =IFERROR(INDEX(IdentAcoes[Área de abrangência],MATCH($B9,IdentAcoes[ID Ação],0)),"") -> Área urbana | O9: =IFERROR(INDEX(IdentAcoes[Detalhamento da área de abrangência],MATCH($B9,IdentAcoes[ID Ação],0)),"") -> Perímetro Urbano
C10: =INDEX(Financeiro[Descrição da ação],MATCH(B10,Financeiro[ID Ação], 0)) ->  | E10: =IF(VLOOKUP(A10,Financeiro[[id_ação_Fonte_oculta]:[R$ Executado (2027)]],4,FALSE)=0,"",VLOOKUP(A10,Financeiro[[id_ação_Fonte_oculta]:[R$ Executado (2027)]],4,FALSE)) ->  | F10: =IF(VLOOKUP(A10,Financeiro[[id_ação_Fonte_oculta]:[R$ Executado (2027)]],4,FALSE)=0,"",VLOOKUP(A10,Financeiro[[id_ação_Fonte_oculta]:[R$ Executado (2027)]],5,FALSE)) ->  | G10: =IF(VLOOKUP(A10,Financeiro[[id_ação_Fonte_oculta]:[R$ Executado (2027)]],4,FALSE)=0,"",VLOOKUP(A10,Financeiro[[id_ação_Fonte_oculta]:[R$ Executado (2027)]],8,FALSE)) ->  | H10: =IF(VLOOKUP(A10,Financeiro[[id_ação_Fonte_oculta]:[R$ Executado (2027)]],4,FALSE)=0,"",VLOOKUP(A10,Financeiro[[id_ação_Fonte_oculta]:[R$ Executado (2027)]],11,FALSE)) ->  | I10: =IF(VLOOKUP(A10,Financeiro[[id_ação_Fonte_oculta]:[R$ Executado (2027)]],4,FALSE)=0,"",VLOOKUP(A10,Financeiro[[id_ação_Fonte_oculta]:[R$ Executado (2027)]],14,FALSE)) ->  | J10: 0 | K10: =IFERROR(INDEX(IdentAcoes[SubPDC],MATCH(B10,IdentAcoes[ID Ação],0)),"") ->  | L10: =IFERROR(INDEX(IdentAcoes[Prioridade do PDC],MATCH(B10,IdentAcoes[ID Ação],0)),"") ->  | M10: =IFERROR(INDEX(IdentAcoes[Segmento do executor],MATCH($B10,IdentAcoes[ID Ação],0)),"") ->  | N10: =IFERROR(INDEX(IdentAcoes[Área de abrangência],MATCH($B10,IdentAcoes[ID Ação],0)),"") ->  | O10: =IFERROR(INDEX(IdentAcoes[Detalhamento da área de abrangência],MATCH($B10,IdentAcoes[ID Ação],0)),"") -> 
C11: =INDEX(Financeiro[Descrição da ação],MATCH(B11,Financeiro[ID Ação], 0)) ->  | D11: =IF(INDEX('Acompanhamento das metas 24-27'!$C$2:$C$50,MATCH(B11,'Acompanhamento das metas 24-27'!$A$2:$A$50,0))<>0,INDEX('Acompanhamento das metas 24-27'!$C$2:$C$50,MATCH(B11,'Acompanhamento das metas 24-27'!$A$2:$A$50,0)),"") ->  | E11: =IF(VLOOKUP(A11,Financeiro[[id_ação_Fonte_oculta]:[R$ Executado (2027)]],4,FALSE)=0,"",VLOOKUP(A11,Financeiro[[id_ação_Fonte_oculta]:[R$ Executado (2027)]],4,FALSE)) ->  | F11: =IF(VLOOKUP(A11,Financeiro[[id_ação_Fonte_oculta]:[R$ Executado (2027)]],4,FALSE)=0,"",VLOOKUP(A11,Financeiro[[id_ação_Fonte_oculta]:[R$ Executado (2027)]],5,FALSE)) ->  | G11: =IF(VLOOKUP(A11,Financeiro[[id_ação_Fonte_oculta]:[R$ Executado (2027)]],4,FALSE)=0,"",VLOOKUP(A11,Financeiro[[id_ação_Fonte_oculta]:[R$ Executado (2027)]],8,FALSE)) ->  | H11: =IF(VLOOKUP(A11,Financeiro[[id_ação_Fonte_oculta]:[R$ Executado (2027)]],4,FALSE)=0,"",VLOOKUP(A11,Financeiro[[id_ação_Fonte_oculta]:[R$ Executado (2027)]],11,FALSE)) ->  | I11: =IF(VLOOKUP(A11,Financeiro[[id_ação_Fonte_oculta]:[R$ Executado (2027)]],4,FALSE)=0,"",VLOOKUP(A11,Financeiro[[id_ação_Fonte_oculta]:[R$ Executado (2027)]],14,FALSE)) ->  | J11: 0 | K11: =IFERROR(INDEX(IdentAcoes[SubPDC],MATCH(B11,IdentAcoes[ID Ação],0)),"") ->  | L11: =IFERROR(INDEX(IdentAcoes[Prioridade do PDC],MATCH(B11,IdentAcoes[ID Ação],0)),"") ->  | M11: =IFERROR(INDEX(IdentAcoes[Segmento do executor],MATCH($B11,IdentAcoes[ID Ação],0)),"") ->  | N11: =IFERROR(INDEX(IdentAcoes[Área de abrangência],MATCH($B11,IdentAcoes[ID Ação],0)),"") ->  | O11: =IFERROR(INDEX(IdentAcoes[Detalhamento da área de abrangência],MATCH($B11,IdentAcoes[ID Ação],0)),"") -> 
C12: =INDEX(Financeiro[Descrição da ação],MATCH(B12,Financeiro[ID Ação], 0)) ->  | D12: =IF(INDEX('Acompanhamento das metas 24-27'!$C$2:$C$50,MATCH(B12,'Acompanhamento das metas 24-27'!$A$2:$A$50,0))<>0,INDEX('Acompanhamento das metas 24-27'!$C$2:$C$50,MATCH(B12,'Acompanhamento das metas 24-27'!$A$2:$A$50,0)),"") ->  | E12: =IF(VLOOKUP(A12,Financeiro[[id_ação_Fonte_oculta]:[R$ Executado (2027)]],4,FALSE)=0,"",VLOOKUP(A12,Financeiro[[id_ação_Fonte_oculta]:[R$ Executado (2027)]],4,FALSE)) ->  | F12: =IF(VLOOKUP(A12,Financeiro[[id_ação_Fonte_oculta]:[R$ Executado (2027)]],4,FALSE)=0,"",VLOOKUP(A12,Financeiro[[id_ação_Fonte_oculta]:[R$ Executado (2027)]],5,FALSE)) ->  | G12: =IF(VLOOKUP(A12,Financeiro[[id_ação_Fonte_oculta]:[R$ Executado (2027)]],4,FALSE)=0,"",VLOOKUP(A12,Financeiro[[id_ação_Fonte_oculta]:[R$ Executado (2027)]],8,FALSE)) ->  | H12: =IF(VLOOKUP(A12,Financeiro[[id_ação_Fonte_oculta]:[R$ Executado (2027)]],4,FALSE)=0,"",VLOOKUP(A12,Financeiro[[id_ação_Fonte_oculta]:[R$ Executado (2027)]],11,FALSE)) ->  | I12: =IF(VLOOKUP(A12,Financeiro[[id_ação_Fonte_oculta]:[R$ Executado (2027)]],4,FALSE)=0,"",VLOOKUP(A12,Financeiro[[id_ação_Fonte_oculta]:[R$ Executado (2027)]],14,FALSE)) ->  | J12: 0 | K12: =IFERROR(INDEX(IdentAcoes[SubPDC],MATCH(B12,IdentAcoes[ID Ação],0)),"") ->  | L12: =IFERROR(INDEX(IdentAcoes[Prioridade do PDC],MATCH(B12,IdentAcoes[ID Ação],0)),"") ->  | M12: =IFERROR(INDEX(IdentAcoes[Segmento do executor],MATCH($B12,IdentAcoes[ID Ação],0)),"") ->  | N12: =IFERROR(INDEX(IdentAcoes[Área de abrangência],MATCH($B12,IdentAcoes[ID Ação],0)),"") ->  | O12: =IFERROR(INDEX(IdentAcoes[Detalhamento da área de abrangência],MATCH($B12,IdentAcoes[ID Ação],0)),"") -> 
C13: =INDEX(Financeiro[Descrição da ação],MATCH(B13,Financeiro[ID Ação], 0)) ->  | D13: =IF(INDEX('Acompanhamento das metas 24-27'!$C$2:$C$50,MATCH(B13,'Acompanhamento das metas 24-27'!$A$2:$A$50,0))<>0,INDEX('Acompanhamento das metas 24-27'!$C$2:$C$50,MATCH(B13,'Acompanhamento das metas 24-27'!$A$2:$A$50,0)),"") ->  | E13: =IF(VLOOKUP(A13,Financeiro[[id_ação_Fonte_oculta]:[R$ Executado (2027)]],4,FALSE)=0,"",VLOOKUP(A13,Financeiro[[id_ação_Fonte_oculta]:[R$ Executado (2027)]],4,FALSE)) ->  | F13: =IF(VLOOKUP(A13,Financeiro[[id_ação_Fonte_oculta]:[R$ Executado (2027)]],4,FALSE)=0,"",VLOOKUP(A13,Financeiro[[id_ação_Fonte_oculta]:[R$ Executado (2027)]],5,FALSE)) ->  | G13: =IF(VLOOKUP(A13,Financeiro[[id_ação_Fonte_oculta]:[R$ Executado (2027)]],4,FALSE)=0,"",VLOOKUP(A13,Financeiro[[id_ação_Fonte_oculta]:[R$ Executado (2027)]],8,FALSE)) ->  | H13: =IF(VLOOKUP(A13,Financeiro[[id_ação_Fonte_oculta]:[R$ Executado (2027)]],4,FALSE)=0,"",VLOOKUP(A13,Financeiro[[id_ação_Fonte_oculta]:[R$ Executado (2027)]],11,FALSE)) ->  | I13: =IF(VLOOKUP(A13,Financeiro[[id_ação_Fonte_oculta]:[R$ Executado (2027)]],4,FALSE)=0,"",VLOOKUP(A13,Financeiro[[id_ação_Fonte_oculta]:[R$ Executado (2027)]],14,FALSE)) ->  | J13: 0 | K13: =IFERROR(INDEX(IdentAcoes[SubPDC],MATCH(B13,IdentAcoes[ID Ação],0)),"") ->  | L13: =IFERROR(INDEX(IdentAcoes[Prioridade do PDC],MATCH(B13,IdentAcoes[ID Ação],0)),"") ->  | M13: =IFERROR(INDEX(IdentAcoes[Segmento do executor],MATCH($B13,IdentAcoes[ID Ação],0)),"") ->  | N13: =IFERROR(INDEX(IdentAcoes[Área de abrangência],MATCH($B13,IdentAcoes[ID Ação],0)),"") ->  | O13: =IFERROR(INDEX(IdentAcoes[Detalhamento da área de abrangência],MATCH($B13,IdentAcoes[ID Ação],0)),"") -> 
C14: =INDEX(Financeiro[Descrição da ação],MATCH(B14,Financeiro[ID Ação], 0)) ->  | D14: =IF(INDEX('Acompanhamento das metas 24-27'!$C$2:$C$50,MATCH(B14,'Acompanhamento das metas 24-27'!$A$2:$A$50,0))<>0,INDEX('Acompanhamento das metas 24-27'!$C$2:$C$50,MATCH(B14,'Acompanhamento das metas 24-27'!$A$2:$A$50,0)),"") ->  | E14: =IF(VLOOKUP(A14,Financeiro[[id_ação_Fonte_oculta]:[R$ Executado (2027)]],4,FALSE)=0,"",VLOOKUP(A14,Financeiro[[id_ação_Fonte_oculta]:[R$ Executado (2027)]],4,FALSE)) ->  | F14: =IF(VLOOKUP(A14,Financeiro[[id_ação_Fonte_oculta]:[R$ Executado (2027)]],4,FALSE)=0,"",VLOOKUP(A14,Financeiro[[id_ação_Fonte_oculta]:[R$ Executado (2027)]],5,FALSE)) ->  | G14: =IF(VLOOKUP(A14,Financeiro[[id_ação_Fonte_oculta]:[R$ Executado (2027)]],4,FALSE)=0,"",VLOOKUP(A14,Financeiro[[id_ação_Fonte_oculta]:[R$ Executado (2027)]],8,FALSE)) ->  | H14: =IF(VLOOKUP(A14,Financeiro[[id_ação_Fonte_oculta]:[R$ Executado (2027)]],4,FALSE)=0,"",VLOOKUP(A14,Financeiro[[id_ação_Fonte_oculta]:[R$ Executado (2027)]],11,FALSE)) ->  | I14: =IF(VLOOKUP(A14,Financeiro[[id_ação_Fonte_oculta]:[R$ Executado (2027)]],4,FALSE)=0,"",VLOOKUP(A14,Financeiro[[id_ação_Fonte_oculta]:[R$ Executado (2027)]],14,FALSE)) ->  | J14: 0 | K14: =IFERROR(INDEX(IdentAcoes[SubPDC],MATCH(B14,IdentAcoes[ID Ação],0)),"") ->  | L14: =IFERROR(INDEX(IdentAcoes[Prioridade do PDC],MATCH(B14,IdentAcoes[ID Ação],0)),"") ->  | M14: =IFERROR(INDEX(IdentAcoes[Segmento do executor],MATCH($B14,IdentAcoes[ID Ação],0)),"") ->  | N14: =IFERROR(INDEX(IdentAcoes[Área de abrangência],MATCH($B14,IdentAcoes[ID Ação],0)),"") ->  | O14: =IFERROR(INDEX(IdentAcoes[Detalhamento da área de abrangência],MATCH($B14,IdentAcoes[ID Ação],0)),"") -> 
C15: =INDEX(Financeiro[Descrição da ação],MATCH(B15,Financeiro[ID Ação], 0)) ->  | D15: =IF(INDEX('Acompanhamento das metas 24-27'!$C$2:$C$50,MATCH(B15,'Acompanhamento das metas 24-27'!$A$2:$A$50,0))<>0,INDEX('Acompanhamento das metas 24-27'!$C$2:$C$50,MATCH(B15,'Acompanhamento das metas 24-27'!$A$2:$A$50,0)),"") ->  | E15: =IF(VLOOKUP(A15,Financeiro[[id_ação_Fonte_oculta]:[R$ Executado (2027)]],4,FALSE)=0,"",VLOOKUP(A15,Financeiro[[id_ação_Fonte_oculta]:[R$ Executado (2027)]],4,FALSE)) ->  | F15: =IF(VLOOKUP(A15,Financeiro[[id_ação_Fonte_oculta]:[R$ Executado (2027)]],4,FALSE)=0,"",VLOOKUP(A15,Financeiro[[id_ação_Fonte_oculta]:[R$ Executado (2027)]],5,FALSE)) ->  | G15: =IF(VLOOKUP(A15,Financeiro[[id_ação_Fonte_oculta]:[R$ Executado (2027)]],4,FALSE)=0,"",VLOOKUP(A15,Financeiro[[id_ação_Fonte_oculta]:[R$ Executado (2027)]],8,FALSE)) ->  | H15: =IF(VLOOKUP(A15,Financeiro[[id_ação_Fonte_oculta]:[R$ Executado (2027)]],4,FALSE)=0,"",VLOOKUP(A15,Financeiro[[id_ação_Fonte_oculta]:[R$ Executado (2027)]],11,FALSE)) ->  | I15: =IF(VLOOKUP(A15,Financeiro[[id_ação_Fonte_oculta]:[R$ Executado (2027)]],4,FALSE)=0,"",VLOOKUP(A15,Financeiro[[id_ação_Fonte_oculta]:[R$ Executado (2027)]],14,FALSE)) ->  | J15: 0 | K15: =IFERROR(INDEX(IdentAcoes[SubPDC],MATCH(B15,IdentAcoes[ID Ação],0)),"") ->  | L15: =IFERROR(INDEX(IdentAcoes[Prioridade do PDC],MATCH(B15,IdentAcoes[ID Ação],0)),"") ->  | M15: =IFERROR(INDEX(IdentAcoes[Segmento do executor],MATCH($B15,IdentAcoes[ID Ação],0)),"") ->  | N15: =IFERROR(INDEX(IdentAcoes[Área de abrangência],MATCH($B15,IdentAcoes[ID Ação],0)),"") ->  | O15: =IFERROR(INDEX(IdentAcoes[Detalhamento da área de abrangência],MATCH($B15,IdentAcoes[ID Ação],0)),"") -> 
C16: =INDEX(Financeiro[Descrição da ação],MATCH(B16,Financeiro[ID Ação], 0)) ->  | D16: =IF(INDEX('Acompanhamento das metas 24-27'!$C$2:$C$50,MATCH(B16,'Acompanhamento das metas 24-27'!$A$2:$A$50,0))<>0,INDEX('Acompanhamento das metas 24-27'!$C$2:$C$50,MATCH(B16,'Acompanhamento das metas 24-27'!$A$2:$A$50,0)),"") ->  | E16: =IF(VLOOKUP(A16,Financeiro[[id_ação_Fonte_oculta]:[R$ Executado (2027)]],4,FALSE)=0,"",VLOOKUP(A16,Financeiro[[id_ação_Fonte_oculta]:[R$ Executado (2027)]],4,FALSE)) ->  | F16: =IF(VLOOKUP(A16,Financeiro[[id_ação_Fonte_oculta]:[R$ Executado (2027)]],4,FALSE)=0,"",VLOOKUP(A16,Financeiro[[id_ação_Fonte_oculta]:[R$ Executado (2027)]],5,FALSE)) ->  | G16: =IF(VLOOKUP(A16,Financeiro[[id_ação_Fonte_oculta]:[R$ Executado (2027)]],4,FALSE)=0,"",VLOOKUP(A16,Financeiro[[id_ação_Fonte_oculta]:[R$ Executado (2027)]],8,FALSE)) ->  | H16: =IF(VLOOKUP(A16,Financeiro[[id_ação_Fonte_oculta]:[R$ Executado (2027)]],4,FALSE)=0,"",VLOOKUP(A16,Financeiro[[id_ação_Fonte_oculta]:[R$ Executado (2027)]],11,FALSE)) ->  | I16: =IF(VLOOKUP(A16,Financeiro[[id_ação_Fonte_oculta]:[R$ Executado (2027)]],4,FALSE)=0,"",VLOOKUP(A16,Financeiro[[id_ação_Fonte_oculta]:[R$ Executado (2027)]],14,FALSE)) ->  | J16: 0 | K16: =IFERROR(INDEX(IdentAcoes[SubPDC],MATCH(B16,IdentAcoes[ID Ação],0)),"") ->  | L16: =IFERROR(INDEX(IdentAcoes[Prioridade do PDC],MATCH(B16,IdentAcoes[ID Ação],0)),"") ->  | M16: =IFERROR(INDEX(IdentAcoes[Segmento do executor],MATCH($B16,IdentAcoes[ID Ação],0)),"") ->  | N16: =IFERROR(INDEX(IdentAcoes[Área de abrangência],MATCH($B16,IdentAcoes[ID Ação],0)),"") ->  | O16: =IFERROR(INDEX(IdentAcoes[Detalhamento da área de abrangência],MATCH($B16,IdentAcoes[ID Ação],0)),"") -> 
C17: =INDEX(Financeiro[Descrição da ação],MATCH(B17,Financeiro[ID Ação], 0)) ->  | D17: =IF(INDEX('Acompanhamento das metas 24-27'!$C$2:$C$50,MATCH(B17,'Acompanhamento das metas 24-27'!$A$2:$A$50,0))<>0,INDEX('Acompanhamento das metas 24-27'!$C$2:$C$50,MATCH(B17,'Acompanhamento das metas 24-27'!$A$2:$A$50,0)),"") ->  | E17: =IF(VLOOKUP(A17,Financeiro[[id_ação_Fonte_oculta]:[R$ Executado (2027)]],4,FALSE)=0,"",VLOOKUP(A17,Financeiro[[id_ação_Fonte_oculta]:[R$ Executado (2027)]],4,FALSE)) ->  | F17: =IF(VLOOKUP(A17,Financeiro[[id_ação_Fonte_oculta]:[R$ Executado (2027)]],4,FALSE)=0,"",VLOOKUP(A17,Financeiro[[id_ação_Fonte_oculta]:[R$ Executado (2027)]],5,FALSE)) ->  | G17: =IF(VLOOKUP(A17,Financeiro[[id_ação_Fonte_oculta]:[R$ Executado (2027)]],4,FALSE)=0,"",VLOOKUP(A17,Financeiro[[id_ação_Fonte_oculta]:[R$ Executado (2027)]],8,FALSE)) ->  | H17: =IF(VLOOKUP(A17,Financeiro[[id_ação_Fonte_oculta]:[R$ Executado (2027)]],4,FALSE)=0,"",VLOOKUP(A17,Financeiro[[id_ação_Fonte_oculta]:[R$ Executado (2027)]],11,FALSE)) ->  | I17: =IF(VLOOKUP(A17,Financeiro[[id_ação_Fonte_oculta]:[R$ Executado (2027)]],4,FALSE)=0,"",VLOOKUP(A17,Financeiro[[id_ação_Fonte_oculta]:[R$ Executado (2027)]],14,FALSE)) ->  | J17: 0 | K17: =IFERROR(INDEX(IdentAcoes[SubPDC],MATCH(B17,IdentAcoes[ID Ação],0)),"") ->  | L17: =IFERROR(INDEX(IdentAcoes[Prioridade do PDC],MATCH(B17,IdentAcoes[ID Ação],0)),"") ->  | M17: =IFERROR(INDEX(IdentAcoes[Segmento do executor],MATCH($B17,IdentAcoes[ID Ação],0)),"") ->  | N17: =IFERROR(INDEX(IdentAcoes[Área de abrangência],MATCH($B17,IdentAcoes[ID Ação],0)),"") ->  | O17: =IFERROR(INDEX(IdentAcoes[Detalhamento da área de abrangência],MATCH($B17,IdentAcoes[ID Ação],0)),"") -> 
C18: =INDEX(Financeiro[Descrição da ação],MATCH(B18,Financeiro[ID Ação], 0)) ->  | D18: =IF(INDEX('Acompanhamento das metas 24-27'!$C$2:$C$50,MATCH(B18,'Acompanhamento das metas 24-27'!$A$2:$A$50,0))<>0,INDEX('Acompanhamento das metas 24-27'!$C$2:$C$50,MATCH(B18,'Acompanhamento das metas 24-27'!$A$2:$A$50,0)),"") ->  | E18: =IF(VLOOKUP(A18,Financeiro[[id_ação_Fonte_oculta]:[R$ Executado (2027)]],4,FALSE)=0,"",VLOOKUP(A18,Financeiro[[id_ação_Fonte_oculta]:[R$ Executado (2027)]],4,FALSE)) ->  | F18: =IF(VLOOKUP(A18,Financeiro[[id_ação_Fonte_oculta]:[R$ Executado (2027)]],4,FALSE)=0,"",VLOOKUP(A18,Financeiro[[id_ação_Fonte_oculta]:[R$ Executado (2027)]],5,FALSE)) ->  | G18: =IF(VLOOKUP(A18,Financeiro[[id_ação_Fonte_oculta]:[R$ Executado (2027)]],4,FALSE)=0,"",VLOOKUP(A18,Financeiro[[id_ação_Fonte_oculta]:[R$ Executado (2027)]],8,FALSE)) ->  | H18: =IF(VLOOKUP(A18,Financeiro[[id_ação_Fonte_oculta]:[R$ Executado (2027)]],4,FALSE)=0,"",VLOOKUP(A18,Financeiro[[id_ação_Fonte_oculta]:[R$ Executado (2027)]],11,FALSE)) ->  | I18: =IF(VLOOKUP(A18,Financeiro[[id_ação_Fonte_oculta]:[R$ Executado (2027)]],4,FALSE)=0,"",VLOOKUP(A18,Financeiro[[id_ação_Fonte_oculta]:[R$ Executado (2027)]],14,FALSE)) ->  | J18: 0 | K18: =IFERROR(INDEX(IdentAcoes[SubPDC],MATCH(B18,IdentAcoes[ID Ação],0)),"") ->  | L18: =IFERROR(INDEX(IdentAcoes[Prioridade do PDC],MATCH(B18,IdentAcoes[ID Ação],0)),"") ->  | M18: =IFERROR(INDEX(IdentAcoes[Segmento do executor],MATCH($B18,IdentAcoes[ID Ação],0)),"") ->  | N18: =IFERROR(INDEX(IdentAcoes[Área de abrangência],MATCH($B18,IdentAcoes[ID Ação],0)),"") ->  | O18: =IFERROR(INDEX(IdentAcoes[Detalhamento da área de abrangência],MATCH($B18,IdentAcoes[ID Ação],0)),"") -> 
C19: =INDEX(Financeiro[Descrição da ação],MATCH(B19,Financeiro[ID Ação], 0)) ->  | D19: =IF(INDEX('Acompanhamento das metas 24-27'!$C$2:$C$50,MATCH(B19,'Acompanhamento das metas 24-27'!$A$2:$A$50,0))<>0,INDEX('Acompanhamento das metas 24-27'!$C$2:$C$50,MATCH(B19,'Acompanhamento das metas 24-27'!$A$2:$A$50,0)),"") ->  | E19: =IF(VLOOKUP(A19,Financeiro[[id_ação_Fonte_oculta]:[R$ Executado (2027)]],4,FALSE)=0,"",VLOOKUP(A19,Financeiro[[id_ação_Fonte_oculta]:[R$ Executado (2027)]],4,FALSE)) ->  | F19: =IF(VLOOKUP(A19,Financeiro[[id_ação_Fonte_oculta]:[R$ Executado (2027)]],4,FALSE)=0,"",VLOOKUP(A19,Financeiro[[id_ação_Fonte_oculta]:[R$ Executado (2027)]],5,FALSE)) ->  | G19: =IF(VLOOKUP(A19,Financeiro[[id_ação_Fonte_oculta]:[R$ Executado (2027)]],4,FALSE)=0,"",VLOOKUP(A19,Financeiro[[id_ação_Fonte_oculta]:[R$ Executado (2027)]],8,FALSE)) ->  | H19: =IF(VLOOKUP(A19,Financeiro[[id_ação_Fonte_oculta]:[R$ Executado (2027)]],4,FALSE)=0,"",VLOOKUP(A19,Financeiro[[id_ação_Fonte_oculta]:[R$ Executado (2027)]],11,FALSE)) ->  | I19: =IF(VLOOKUP(A19,Financeiro[[id_ação_Fonte_oculta]:[R$ Executado (2027)]],4,FALSE)=0,"",VLOOKUP(A19,Financeiro[[id_ação_Fonte_oculta]:[R$ Executado (2027)]],14,FALSE)) ->  | J19: 0 | K19: =IFERROR(INDEX(IdentAcoes[SubPDC],MATCH(B19,IdentAcoes[ID Ação],0)),"") ->  | L19: =IFERROR(INDEX(IdentAcoes[Prioridade do PDC],MATCH(B19,IdentAcoes[ID Ação],0)),"") ->  | M19: =IFERROR(INDEX(IdentAcoes[Segmento do executor],MATCH($B19,IdentAcoes[ID Ação],0)),"") ->  | N19: =IFERROR(INDEX(IdentAcoes[Área de abrangência],MATCH($B19,IdentAcoes[ID Ação],0)),"") ->  | O19: =IFERROR(INDEX(IdentAcoes[Detalhamento da área de abrangência],MATCH($B19,IdentAcoes[ID Ação],0)),"") -> 
C20: =INDEX(Financeiro[Descrição da ação],MATCH(B20,Financeiro[ID Ação], 0)) ->  | D20: =IF(INDEX('Acompanhamento das metas 24-27'!$C$2:$C$50,MATCH(B20,'Acompanhamento das metas 24-27'!$A$2:$A$50,0))<>0,INDEX('Acompanhamento das metas 24-27'!$C$2:$C$50,MATCH(B20,'Acompanhamento das metas 24-27'!$A$2:$A$50,0)),"") ->  | E20: =IF(VLOOKUP(A20,Financeiro[[id_ação_Fonte_oculta]:[R$ Executado (2027)]],4,FALSE)=0,"",VLOOKUP(A20,Financeiro[[id_ação_Fonte_oculta]:[R$ Executado (2027)]],4,FALSE)) ->  | F20: =IF(VLOOKUP(A20,Financeiro[[id_ação_Fonte_oculta]:[R$ Executado (2027)]],4,FALSE)=0,"",VLOOKUP(A20,Financeiro[[id_ação_Fonte_oculta]:[R$ Executado (2027)]],5,FALSE)) ->  | G20: =IF(VLOOKUP(A20,Financeiro[[id_ação_Fonte_oculta]:[R$ Executado (2027)]],4,FALSE)=0,"",VLOOKUP(A20,Financeiro[[id_ação_Fonte_oculta]:[R$ Executado (2027)]],8,FALSE)) ->  | H20: =IF(VLOOKUP(A20,Financeiro[[id_ação_Fonte_oculta]:[R$ Executado (2027)]],4,FALSE)=0,"",VLOOKUP(A20,Financeiro[[id_ação_Fonte_oculta]:[R$ Executado (2027)]],11,FALSE)) ->  | I20: =IF(VLOOKUP(A20,Financeiro[[id_ação_Fonte_oculta]:[R$ Executado (2027)]],4,FALSE)=0,"",VLOOKUP(A20,Financeiro[[id_ação_Fonte_oculta]:[R$ Executado (2027)]],14,FALSE)) ->  | J20: 0 | K20: =IFERROR(INDEX(IdentAcoes[SubPDC],MATCH(B20,IdentAcoes[ID Ação],0)),"") ->  | L20: =IFERROR(INDEX(IdentAcoes[Prioridade do PDC],MATCH(B20,IdentAcoes[ID Ação],0)),"") ->  | M20: =IFERROR(INDEX(IdentAcoes[Segmento do executor],MATCH($B20,IdentAcoes[ID Ação],0)),"") ->  | N20: =IFERROR(INDEX(IdentAcoes[Área de abrangência],MATCH($B20,IdentAcoes[ID Ação],0)),"") ->  | O20: =IFERROR(INDEX(IdentAcoes[Detalhamento da área de abrangência],MATCH($B20,IdentAcoes[ID Ação],0)),"") -> 
C21: =INDEX(Financeiro[Descrição da ação],MATCH(B21,Financeiro[ID Ação], 0)) ->  | D21: =IF(INDEX('Acompanhamento das metas 24-27'!$C$2:$C$50,MATCH(B21,'Acompanhamento das metas 24-27'!$A$2:$A$50,0))<>0,INDEX('Acompanhamento das metas 24-27'!$C$2:$C$50,MATCH(B21,'Acompanhamento das metas 24-27'!$A$2:$A$50,0)),"") ->  | E21: =IF(VLOOKUP(A21,Financeiro[[id_ação_Fonte_oculta]:[R$ Executado (2027)]],4,FALSE)=0,"",VLOOKUP(A21,Financeiro[[id_ação_Fonte_oculta]:[R$ Executado (2027)]],4,FALSE)) ->  | F21: =IF(VLOOKUP(A21,Financeiro[[id_ação_Fonte_oculta]:[R$ Executado (2027)]],4,FALSE)=0,"",VLOOKUP(A21,Financeiro[[id_ação_Fonte_oculta]:[R$ Executado (2027)]],5,FALSE)) ->  | G21: =IF(VLOOKUP(A21,Financeiro[[id_ação_Fonte_oculta]:[R$ Executado (2027)]],4,FALSE)=0,"",VLOOKUP(A21,Financeiro[[id_ação_Fonte_oculta]:[R$ Executado (2027)]],8,FALSE)) ->  | H21: =IF(VLOOKUP(A21,Financeiro[[id_ação_Fonte_oculta]:[R$ Executado (2027)]],4,FALSE)=0,"",VLOOKUP(A21,Financeiro[[id_ação_Fonte_oculta]:[R$ Executado (2027)]],11,FALSE)) ->  | I21: =IF(VLOOKUP(A21,Financeiro[[id_ação_Fonte_oculta]:[R$ Executado (2027)]],4,FALSE)=0,"",VLOOKUP(A21,Financeiro[[id_ação_Fonte_oculta]:[R$ Executado (2027)]],14,FALSE)) ->  | J21: 0 | K21: =IFERROR(INDEX(IdentAcoes[SubPDC],MATCH(B21,IdentAcoes[ID Ação],0)),"") ->  | L21: =IFERROR(INDEX(IdentAcoes[Prioridade do PDC],MATCH(B21,IdentAcoes[ID Ação],0)),"") ->  | M21: =IFERROR(INDEX(IdentAcoes[Segmento do executor],MATCH($B21,IdentAcoes[ID Ação],0)),"") ->  | N21: =IFERROR(INDEX(IdentAcoes[Área de abrangência],MATCH($B21,IdentAcoes[ID Ação],0)),"") ->  | O21: =IFERROR(INDEX(IdentAcoes[Detalhamento da área de abrangência],MATCH($B21,IdentAcoes[ID Ação],0)),"") -> 
C22: =INDEX(Financeiro[Descrição da ação],MATCH(B22,Financeiro[ID Ação], 0)) ->  | D22: =IF(INDEX('Acompanhamento das metas 24-27'!$C$2:$C$50,MATCH(B22,'Acompanhamento das metas 24-27'!$A$2:$A$50,0))<>0,INDEX('Acompanhamento das metas 24-27'!$C$2:$C$50,MATCH(B22,'Acompanhamento das metas 24-27'!$A$2:$A$50,0)),"") ->  | E22: =IF(VLOOKUP(A22,Financeiro[[id_ação_Fonte_oculta]:[R$ Executado (2027)]],4,FALSE)=0,"",VLOOKUP(A22,Financeiro[[id_ação_Fonte_oculta]:[R$ Executado (2027)]],4,FALSE)) ->  | F22: =IF(VLOOKUP(A22,Financeiro[[id_ação_Fonte_oculta]:[R$ Executado (2027)]],4,FALSE)=0,"",VLOOKUP(A22,Financeiro[[id_ação_Fonte_oculta]:[R$ Executado (2027)]],5,FALSE)) ->  | G22: =IF(VLOOKUP(A22,Financeiro[[id_ação_Fonte_oculta]:[R$ Executado (2027)]],4,FALSE)=0,"",VLOOKUP(A22,Financeiro[[id_ação_Fonte_oculta]:[R$ Executado (2027)]],8,FALSE)) ->  | H22: =IF(VLOOKUP(A22,Financeiro[[id_ação_Fonte_oculta]:[R$ Executado (2027)]],4,FALSE)=0,"",VLOOKUP(A22,Financeiro[[id_ação_Fonte_oculta]:[R$ Executado (2027)]],11,FALSE)) ->  | I22: =IF(VLOOKUP(A22,Financeiro[[id_ação_Fonte_oculta]:[R$ Executado (2027)]],4,FALSE)=0,"",VLOOKUP(A22,Financeiro[[id_ação_Fonte_oculta]:[R$ Executado (2027)]],14,FALSE)) ->  | J22: 0 | K22: =IFERROR(INDEX(IdentAcoes[SubPDC],MATCH(B22,IdentAcoes[ID Ação],0)),"") ->  | L22: =IFERROR(INDEX(IdentAcoes[Prioridade do PDC],MATCH(B22,IdentAcoes[ID Ação],0)),"") ->  | M22: =IFERROR(INDEX(IdentAcoes[Segmento do executor],MATCH($B22,IdentAcoes[ID Ação],0)),"") ->  | N22: =IFERROR(INDEX(IdentAcoes[Área de abrangência],MATCH($B22,IdentAcoes[ID Ação],0)),"") ->  | O22: =IFERROR(INDEX(IdentAcoes[Detalhamento da área de abrangência],MATCH($B22,IdentAcoes[ID Ação],0)),"") -> 
C23: =INDEX(Financeiro[Descrição da ação],MATCH(B23,Financeiro[ID Ação], 0)) ->  | D23: =IF(INDEX('Acompanhamento das metas 24-27'!$C$2:$C$50,MATCH(B23,'Acompanhamento das metas 24-27'!$A$2:$A$50,0))<>0,INDEX('Acompanhamento das metas 24-27'!$C$2:$C$50,MATCH(B23,'Acompanhamento das metas 24-27'!$A$2:$A$50,0)),"") ->  | E23: =IF(VLOOKUP(A23,Financeiro[[id_ação_Fonte_oculta]:[R$ Executado (2027)]],4,FALSE)=0,"",VLOOKUP(A23,Financeiro[[id_ação_Fonte_oculta]:[R$ Executado (2027)]],4,FALSE)) ->  | F23: =IF(VLOOKUP(A23,Financeiro[[id_ação_Fonte_oculta]:[R$ Executado (2027)]],4,FALSE)=0,"",VLOOKUP(A23,Financeiro[[id_ação_Fonte_oculta]:[R$ Executado (2027)]],5,FALSE)) ->  | G23: =IF(VLOOKUP(A23,Financeiro[[id_ação_Fonte_oculta]:[R$ Executado (2027)]],4,FALSE)=0,"",VLOOKUP(A23,Financeiro[[id_ação_Fonte_oculta]:[R$ Executado (2027)]],8,FALSE)) ->  | H23: =IF(VLOOKUP(A23,Financeiro[[id_ação_Fonte_oculta]:[R$ Executado (2027)]],4,FALSE)=0,"",VLOOKUP(A23,Financeiro[[id_ação_Fonte_oculta]:[R$ Executado (2027)]],11,FALSE)) ->  | I23: =IF(VLOOKUP(A23,Financeiro[[id_ação_Fonte_oculta]:[R$ Executado (2027)]],4,FALSE)=0,"",VLOOKUP(A23,Financeiro[[id_ação_Fonte_oculta]:[R$ Executado (2027)]],14,FALSE)) ->  | J23: 0 | K23: =IFERROR(INDEX(IdentAcoes[SubPDC],MATCH(B23,IdentAcoes[ID Ação],0)),"") ->  | L23: =IFERROR(INDEX(IdentAcoes[Prioridade do PDC],MATCH(B23,IdentAcoes[ID Ação],0)),"") ->  | M23: =IFERROR(INDEX(IdentAcoes[Segmento do executor],MATCH($B23,IdentAcoes[ID Ação],0)),"") ->  | N23: =IFERROR(INDEX(IdentAcoes[Área de abrangência],MATCH($B23,IdentAcoes[ID Ação],0)),"") ->  | O23: =IFERROR(INDEX(IdentAcoes[Detalhamento da área de abrangência],MATCH($B23,IdentAcoes[ID Ação],0)),"") -> 
C24: =INDEX(Financeiro[Descrição da ação],MATCH(B24,Financeiro[ID Ação], 0)) ->  | D24: =IF(INDEX('Acompanhamento das metas 24-27'!$C$2:$C$50,MATCH(B24,'Acompanhamento das metas 24-27'!$A$2:$A$50,0))<>0,INDEX('Acompanhamento das metas 24-27'!$C$2:$C$50,MATCH(B24,'Acompanhamento das metas 24-27'!$A$2:$A$50,0)),"") ->  | E24: =IF(VLOOKUP(A24,Financeiro[[id_ação_Fonte_oculta]:[R$ Executado (2027)]],4,FALSE)=0,"",VLOOKUP(A24,Financeiro[[id_ação_Fonte_oculta]:[R$ Executado (2027)]],4,FALSE)) ->  | F24: =IF(VLOOKUP(A24,Financeiro[[id_ação_Fonte_oculta]:[R$ Executado (2027)]],4,FALSE)=0,"",VLOOKUP(A24,Financeiro[[id_ação_Fonte_oculta]:[R$ Executado (2027)]],5,FALSE)) ->  | G24: =IF(VLOOKUP(A24,Financeiro[[id_ação_Fonte_oculta]:[R$ Executado (2027)]],4,FALSE)=0,"",VLOOKUP(A24,Financeiro[[id_ação_Fonte_oculta]:[R$ Executado (2027)]],8,FALSE)) ->  | H24: =IF(VLOOKUP(A24,Financeiro[[id_ação_Fonte_oculta]:[R$ Executado (2027)]],4,FALSE)=0,"",VLOOKUP(A24,Financeiro[[id_ação_Fonte_oculta]:[R$ Executado (2027)]],11,FALSE)) ->  | I24: =IF(VLOOKUP(A24,Financeiro[[id_ação_Fonte_oculta]:[R$ Executado (2027)]],4,FALSE)=0,"",VLOOKUP(A24,Financeiro[[id_ação_Fonte_oculta]:[R$ Executado (2027)]],14,FALSE)) ->  | J24: 0 | K24: =IFERROR(INDEX(IdentAcoes[SubPDC],MATCH(B24,IdentAcoes[ID Ação],0)),"") ->  | L24: =IFERROR(INDEX(IdentAcoes[Prioridade do PDC],MATCH(B24,IdentAcoes[ID Ação],0)),"") ->  | M24: =IFERROR(INDEX(IdentAcoes[Segmento do executor],MATCH($B24,IdentAcoes[ID Ação],0)),"") ->  | N24: =IFERROR(INDEX(IdentAcoes[Área de abrangência],MATCH($B24,IdentAcoes[ID Ação],0)),"") ->  | O24: =IFERROR(INDEX(IdentAcoes[Detalhamento da área de abrangência],MATCH($B24,IdentAcoes[ID Ação],0)),"") -> 
C25: =INDEX(Financeiro[Descrição da ação],MATCH(B25,Financeiro[ID Ação], 0)) ->  | D25: =IF(INDEX('Acompanhamento das metas 24-27'!$C$2:$C$50,MATCH(B25,'Acompanhamento das metas 24-27'!$A$2:$A$50,0))<>0,INDEX('Acompanhamento das metas 24-27'!$C$2:$C$50,MATCH(B25,'Acompanhamento das metas 24-27'!$A$2:$A$50,0)),"") ->  | E25: =IF(VLOOKUP(A25,Financeiro[[id_ação_Fonte_oculta]:[R$ Executado (2027)]],4,FALSE)=0,"",VLOOKUP(A25,Financeiro[[id_ação_Fonte_oculta]:[R$ Executado (2027)]],4,FALSE)) ->  | F25: =IF(VLOOKUP(A25,Financeiro[[id_ação_Fonte_oculta]:[R$ Executado (2027)]],4,FALSE)=0,"",VLOOKUP(A25,Financeiro[[id_ação_Fonte_oculta]:[R$ Executado (2027)]],5,FALSE)) ->  | G25: =IF(VLOOKUP(A25,Financeiro[[id_ação_Fonte_oculta]:[R$ Executado (2027)]],4,FALSE)=0,"",VLOOKUP(A25,Financeiro[[id_ação_Fonte_oculta]:[R$ Executado (2027)]],8,FALSE)) ->  | H25: =IF(VLOOKUP(A25,Financeiro[[id_ação_Fonte_oculta]:[R$ Executado (2027)]],4,FALSE)=0,"",VLOOKUP(A25,Financeiro[[id_ação_Fonte_oculta]:[R$ Executado (2027)]],11,FALSE)) ->  | I25: =IF(VLOOKUP(A25,Financeiro[[id_ação_Fonte_oculta]:[R$ Executado (2027)]],4,FALSE)=0,"",VLOOKUP(A25,Financeiro[[id_ação_Fonte_oculta]:[R$ Executado (2027)]],14,FALSE)) ->  | J25: 0 | K25: =IFERROR(INDEX(IdentAcoes[SubPDC],MATCH(B25,IdentAcoes[ID Ação],0)),"") ->  | L25: =IFERROR(INDEX(IdentAcoes[Prioridade do PDC],MATCH(B25,IdentAcoes[ID Ação],0)),"") ->  | M25: =IFERROR(INDEX(IdentAcoes[Segmento do executor],MATCH($B25,IdentAcoes[ID Ação],0)),"") ->  | N25: =IFERROR(INDEX(IdentAcoes[Área de abrangência],MATCH($B25,IdentAcoes[ID Ação],0)),"") ->  | O25: =IFERROR(INDEX(IdentAcoes[Detalhamento da área de abrangência],MATCH($B25,IdentAcoes[ID Ação],0)),"") -> 
C26: =INDEX(Financeiro[Descrição da ação],MATCH(B26,Financeiro[ID Ação], 0)) ->  | D26: =IF(INDEX('Acompanhamento das metas 24-27'!$C$2:$C$50,MATCH(B26,'Acompanhamento das metas 24-27'!$A$2:$A$50,0))<>0,INDEX('Acompanhamento das metas 24-27'!$C$2:$C$50,MATCH(B26,'Acompanhamento das metas 24-27'!$A$2:$A$50,0)),"") ->  | E26: =IF(VLOOKUP(A26,Financeiro[[id_ação_Fonte_oculta]:[R$ Executado (2027)]],4,FALSE)=0,"",VLOOKUP(A26,Financeiro[[id_ação_Fonte_oculta]:[R$ Executado (2027)]],4,FALSE)) ->  | F26: =IF(VLOOKUP(A26,Financeiro[[id_ação_Fonte_oculta]:[R$ Executado (2027)]],4,FALSE)=0,"",VLOOKUP(A26,Financeiro[[id_ação_Fonte_oculta]:[R$ Executado (2027)]],5,FALSE)) ->  | G26: =IF(VLOOKUP(A26,Financeiro[[id_ação_Fonte_oculta]:[R$ Executado (2027)]],4,FALSE)=0,"",VLOOKUP(A26,Financeiro[[id_ação_Fonte_oculta]:[R$ Executado (2027)]],8,FALSE)) ->  | H26: =IF(VLOOKUP(A26,Financeiro[[id_ação_Fonte_oculta]:[R$ Executado (2027)]],4,FALSE)=0,"",VLOOKUP(A26,Financeiro[[id_ação_Fonte_oculta]:[R$ Executado (2027)]],11,FALSE)) ->  | I26: =IF(VLOOKUP(A26,Financeiro[[id_ação_Fonte_oculta]:[R$ Executado (2027)]],4,FALSE)=0,"",VLOOKUP(A26,Financeiro[[id_ação_Fonte_oculta]:[R$ Executado (2027)]],14,FALSE)) ->  | J26: 0 | K26: =IFERROR(INDEX(IdentAcoes[SubPDC],MATCH(B26,IdentAcoes[ID Ação],0)),"") ->  | L26: =IFERROR(INDEX(IdentAcoes[Prioridade do PDC],MATCH(B26,IdentAcoes[ID Ação],0)),"") ->  | M26: =IFERROR(INDEX(IdentAcoes[Segmento do executor],MATCH($B26,IdentAcoes[ID Ação],0)),"") ->  | N26: =IFERROR(INDEX(IdentAcoes[Área de abrangência],MATCH($B26,IdentAcoes[ID Ação],0)),"") ->  | O26: =IFERROR(INDEX(IdentAcoes[Detalhamento da área de abrangência],MATCH($B26,IdentAcoes[ID Ação],0)),"") -> 
C27: =INDEX(Financeiro[Descrição da ação],MATCH(B27,Financeiro[ID Ação], 0)) ->  | D27: =IF(INDEX('Acompanhamento das metas 24-27'!$C$2:$C$50,MATCH(B27,'Acompanhamento das metas 24-27'!$A$2:$A$50,0))<>0,INDEX('Acompanhamento das metas 24-27'!$C$2:$C$50,MATCH(B27,'Acompanhamento das metas 24-27'!$A$2:$A$50,0)),"") ->  | E27: =IF(VLOOKUP(A27,Financeiro[[id_ação_Fonte_oculta]:[R$ Executado (2027)]],4,FALSE)=0,"",VLOOKUP(A27,Financeiro[[id_ação_Fonte_oculta]:[R$ Executado (2027)]],4,FALSE)) ->  | F27: =IF(VLOOKUP(A27,Financeiro[[id_ação_Fonte_oculta]:[R$ Executado (2027)]],4,FALSE)=0,"",VLOOKUP(A27,Financeiro[[id_ação_Fonte_oculta]:[R$ Executado (2027)]],5,FALSE)) ->  | G27: =IF(VLOOKUP(A27,Financeiro[[id_ação_Fonte_oculta]:[R$ Executado (2027)]],4,FALSE)=0,"",VLOOKUP(A27,Financeiro[[id_ação_Fonte_oculta]:[R$ Executado (2027)]],8,FALSE)) ->  | H27: =IF(VLOOKUP(A27,Financeiro[[id_ação_Fonte_oculta]:[R$ Executado (2027)]],4,FALSE)=0,"",VLOOKUP(A27,Financeiro[[id_ação_Fonte_oculta]:[R$ Executado (2027)]],11,FALSE)) ->  | I27: =IF(VLOOKUP(A27,Financeiro[[id_ação_Fonte_oculta]:[R$ Executado (2027)]],4,FALSE)=0,"",VLOOKUP(A27,Financeiro[[id_ação_Fonte_oculta]:[R$ Executado (2027)]],14,FALSE)) ->  | J27: 0 | K27: =IFERROR(INDEX(IdentAcoes[SubPDC],MATCH(B27,IdentAcoes[ID Ação],0)),"") ->  | L27: =IFERROR(INDEX(IdentAcoes[Prioridade do PDC],MATCH(B27,IdentAcoes[ID Ação],0)),"") ->  | M27: =IFERROR(INDEX(IdentAcoes[Segmento do executor],MATCH($B27,IdentAcoes[ID Ação],0)),"") ->  | N27: =IFERROR(INDEX(IdentAcoes[Área de abrangência],MATCH($B27,IdentAcoes[ID Ação],0)),"") ->  | O27: =IFERROR(INDEX(IdentAcoes[Detalhamento da área de abrangência],MATCH($B27,IdentAcoes[ID Ação],0)),"") -> 
C28: =INDEX(Financeiro[Descrição da ação],MATCH(B28,Financeiro[ID Ação], 0)) ->  | D28: =IF(INDEX('Acompanhamento das metas 24-27'!$C$2:$C$50,MATCH(B28,'Acompanhamento das metas 24-27'!$A$2:$A$50,0))<>0,INDEX('Acompanhamento das metas 24-27'!$C$2:$C$50,MATCH(B28,'Acompanhamento das metas 24-27'!$A$2:$A$50,0)),"") ->  | E28: =IF(VLOOKUP(A28,Financeiro[[id_ação_Fonte_oculta]:[R$ Executado (2027)]],4,FALSE)=0,"",VLOOKUP(A28,Financeiro[[id_ação_Fonte_oculta]:[R$ Executado (2027)]],4,FALSE)) ->  | F28: =IF(VLOOKUP(A28,Financeiro[[id_ação_Fonte_oculta]:[R$ Executado (2027)]],4,FALSE)=0,"",VLOOKUP(A28,Financeiro[[id_ação_Fonte_oculta]:[R$ Executado (2027)]],5,FALSE)) ->  | G28: =IF(VLOOKUP(A28,Financeiro[[id_ação_Fonte_oculta]:[R$ Executado (2027)]],4,FALSE)=0,"",VLOOKUP(A28,Financeiro[[id_ação_Fonte_oculta]:[R$ Executado (2027)]],8,FALSE)) ->  | H28: =IF(VLOOKUP(A28,Financeiro[[id_ação_Fonte_oculta]:[R$ Executado (2027)]],4,FALSE)=0,"",VLOOKUP(A28,Financeiro[[id_ação_Fonte_oculta]:[R$ Executado (2027)]],11,FALSE)) ->  | I28: =IF(VLOOKUP(A28,Financeiro[[id_ação_Fonte_oculta]:[R$ Executado (2027)]],4,FALSE)=0,"",VLOOKUP(A28,Financeiro[[id_ação_Fonte_oculta]:[R$ Executado (2027)]],14,FALSE)) ->  | J28: 0 | K28: =IFERROR(INDEX(IdentAcoes[SubPDC],MATCH(B28,IdentAcoes[ID Ação],0)),"") ->  | L28: =IFERROR(INDEX(IdentAcoes[Prioridade do PDC],MATCH(B28,IdentAcoes[ID Ação],0)),"") ->  | M28: =IFERROR(INDEX(IdentAcoes[Segmento do executor],MATCH($B28,IdentAcoes[ID Ação],0)),"") ->  | N28: =IFERROR(INDEX(IdentAcoes[Área de abrangência],MATCH($B28,IdentAcoes[ID Ação],0)),"") ->  | O28: =IFERROR(INDEX(IdentAcoes[Detalhamento da área de abrangência],MATCH($B28,IdentAcoes[ID Ação],0)),"") -> 
C29: =INDEX(Financeiro[Descrição da ação],MATCH(B29,Financeiro[ID Ação], 0)) ->  | D29: =IF(INDEX('Acompanhamento das metas 24-27'!$C$2:$C$50,MATCH(B29,'Acompanhamento das metas 24-27'!$A$2:$A$50,0))<>0,INDEX('Acompanhamento das metas 24-27'!$C$2:$C$50,MATCH(B29,'Acompanhamento das metas 24-27'!$A$2:$A$50,0)),"") ->  | E29: =IF(VLOOKUP(A29,Financeiro[[id_ação_Fonte_oculta]:[R$ Executado (2027)]],4,FALSE)=0,"",VLOOKUP(A29,Financeiro[[id_ação_Fonte_oculta]:[R$ Executado (2027)]],4,FALSE)) ->  | F29: =IF(VLOOKUP(A29,Financeiro[[id_ação_Fonte_oculta]:[R$ Executado (2027)]],4,FALSE)=0,"",VLOOKUP(A29,Financeiro[[id_ação_Fonte_oculta]:[R$ Executado (2027)]],5,FALSE)) ->  | G29: =IF(VLOOKUP(A29,Financeiro[[id_ação_Fonte_oculta]:[R$ Executado (2027)]],4,FALSE)=0,"",VLOOKUP(A29,Financeiro[[id_ação_Fonte_oculta]:[R$ Executado (2027)]],8,FALSE)) ->  | H29: =IF(VLOOKUP(A29,Financeiro[[id_ação_Fonte_oculta]:[R$ Executado (2027)]],4,FALSE)=0,"",VLOOKUP(A29,Financeiro[[id_ação_Fonte_oculta]:[R$ Executado (2027)]],11,FALSE)) ->  | I29: =IF(VLOOKUP(A29,Financeiro[[id_ação_Fonte_oculta]:[R$ Executado (2027)]],4,FALSE)=0,"",VLOOKUP(A29,Financeiro[[id_ação_Fonte_oculta]:[R$ Executado (2027)]],14,FALSE)) ->  | J29: 0 | K29: =IFERROR(INDEX(IdentAcoes[SubPDC],MATCH(B29,IdentAcoes[ID Ação],0)),"") ->  | L29: =IFERROR(INDEX(IdentAcoes[Prioridade do PDC],MATCH(B29,IdentAcoes[ID Ação],0)),"") ->  | M29: =IFERROR(INDEX(IdentAcoes[Segmento do executor],MATCH($B29,IdentAcoes[ID Ação],0)),"") ->  | N29: =IFERROR(INDEX(IdentAcoes[Área de abrangência],MATCH($B29,IdentAcoes[ID Ação],0)),"") ->  | O29: =IFERROR(INDEX(IdentAcoes[Detalhamento da área de abrangência],MATCH($B29,IdentAcoes[ID Ação],0)),"") -> 
C30: =INDEX(Financeiro[Descrição da ação],MATCH(B30,Financeiro[ID Ação], 0)) ->  | D30: =IF(INDEX('Acompanhamento das metas 24-27'!$C$2:$C$50,MATCH(B30,'Acompanhamento das metas 24-27'!$A$2:$A$50,0))<>0,INDEX('Acompanhamento das metas 24-27'!$C$2:$C$50,MATCH(B30,'Acompanhamento das metas 24-27'!$A$2:$A$50,0)),"") ->  | E30: =IF(VLOOKUP(A30,Financeiro[[id_ação_Fonte_oculta]:[R$ Executado (2027)]],4,FALSE)=0,"",VLOOKUP(A30,Financeiro[[id_ação_Fonte_oculta]:[R$ Executado (2027)]],4,FALSE)) ->  | F30: =IF(VLOOKUP(A30,Financeiro[[id_ação_Fonte_oculta]:[R$ Executado (2027)]],4,FALSE)=0,"",VLOOKUP(A30,Financeiro[[id_ação_Fonte_oculta]:[R$ Executado (2027)]],5,FALSE)) ->  | G30: =IF(VLOOKUP(A30,Financeiro[[id_ação_Fonte_oculta]:[R$ Executado (2027)]],4,FALSE)=0,"",VLOOKUP(A30,Financeiro[[id_ação_Fonte_oculta]:[R$ Executado (2027)]],8,FALSE)) ->  | H30: =IF(VLOOKUP(A30,Financeiro[[id_ação_Fonte_oculta]:[R$ Executado (2027)]],4,FALSE)=0,"",VLOOKUP(A30,Financeiro[[id_ação_Fonte_oculta]:[R$ Executado (2027)]],11,FALSE)) ->  | I30: =IF(VLOOKUP(A30,Financeiro[[id_ação_Fonte_oculta]:[R$ Executado (2027)]],4,FALSE)=0,"",VLOOKUP(A30,Financeiro[[id_ação_Fonte_oculta]:[R$ Executado (2027)]],14,FALSE)) ->  | J30: 0 | K30: =IFERROR(INDEX(IdentAcoes[SubPDC],MATCH(B30,IdentAcoes[ID Ação],0)),"") ->  | L30: =IFERROR(INDEX(IdentAcoes[Prioridade do PDC],MATCH(B30,IdentAcoes[ID Ação],0)),"") ->  | M30: =IFERROR(INDEX(IdentAcoes[Segmento do executor],MATCH($B30,IdentAcoes[ID Ação],0)),"") ->  | N30: =IFERROR(INDEX(IdentAcoes[Área de abrangência],MATCH($B30,IdentAcoes[ID Ação],0)),"") ->  | O30: =IFERROR(INDEX(IdentAcoes[Detalhamento da área de abrangência],MATCH($B30,IdentAcoes[ID Ação],0)),"") -> 
C31: =INDEX(Financeiro[Descrição da ação],MATCH(B31,Financeiro[ID Ação], 0)) ->  | D31: =IF(INDEX('Acompanhamento das metas 24-27'!$C$2:$C$50,MATCH(B31,'Acompanhamento das metas 24-27'!$A$2:$A$50,0))<>0,INDEX('Acompanhamento das metas 24-27'!$C$2:$C$50,MATCH(B31,'Acompanhamento das metas 24-27'!$A$2:$A$50,0)),"") ->  | E31: =IF(VLOOKUP(A31,Financeiro[[id_ação_Fonte_oculta]:[R$ Executado (2027)]],4,FALSE)=0,"",VLOOKUP(A31,Financeiro[[id_ação_Fonte_oculta]:[R$ Executado (2027)]],4,FALSE)) ->  | F31: =IF(VLOOKUP(A31,Financeiro[[id_ação_Fonte_oculta]:[R$ Executado (2027)]],4,FALSE)=0,"",VLOOKUP(A31,Financeiro[[id_ação_Fonte_oculta]:[R$ Executado (2027)]],5,FALSE)) ->  | G31: =IF(VLOOKUP(A31,Financeiro[[id_ação_Fonte_oculta]:[R$ Executado (2027)]],4,FALSE)=0,"",VLOOKUP(A31,Financeiro[[id_ação_Fonte_oculta]:[R$ Executado (2027)]],8,FALSE)) ->  | H31: =IF(VLOOKUP(A31,Financeiro[[id_ação_Fonte_oculta]:[R$ Executado (2027)]],4,FALSE)=0,"",VLOOKUP(A31,Financeiro[[id_ação_Fonte_oculta]:[R$ Executado (2027)]],11,FALSE)) ->  | I31: =IF(VLOOKUP(A31,Financeiro[[id_ação_Fonte_oculta]:[R$ Executado (2027)]],4,FALSE)=0,"",VLOOKUP(A31,Financeiro[[id_ação_Fonte_oculta]:[R$ Executado (2027)]],14,FALSE)) ->  | J31: 0 | K31: =IFERROR(INDEX(IdentAcoes[SubPDC],MATCH(B31,IdentAcoes[ID Ação],0)),"") ->  | L31: =IFERROR(INDEX(IdentAcoes[Prioridade do PDC],MATCH(B31,IdentAcoes[ID Ação],0)),"") ->  | M31: =IFERROR(INDEX(IdentAcoes[Segmento do executor],MATCH($B31,IdentAcoes[ID Ação],0)),"") ->  | N31: =IFERROR(INDEX(IdentAcoes[Área de abrangência],MATCH($B31,IdentAcoes[ID Ação],0)),"") ->  | O31: =IFERROR(INDEX(IdentAcoes[Detalhamento da área de abrangência],MATCH($B31,IdentAcoes[ID Ação],0)),"") -> 
C32: =INDEX(Financeiro[Descrição da ação],MATCH(B32,Financeiro[ID Ação], 0)) ->  | D32: =IF(INDEX('Acompanhamento das metas 24-27'!$C$2:$C$50,MATCH(B32,'Acompanhamento das metas 24-27'!$A$2:$A$50,0))<>0,INDEX('Acompanhamento das metas 24-27'!$C$2:$C$50,MATCH(B32,'Acompanhamento das metas 24-27'!$A$2:$A$50,0)),"") ->  | E32: =IF(VLOOKUP(A32,Financeiro[[id_ação_Fonte_oculta]:[R$ Executado (2027)]],4,FALSE)=0,"",VLOOKUP(A32,Financeiro[[id_ação_Fonte_oculta]:[R$ Executado (2027)]],4,FALSE)) ->  | F32: =IF(VLOOKUP(A32,Financeiro[[id_ação_Fonte_oculta]:[R$ Executado (2027)]],4,FALSE)=0,"",VLOOKUP(A32,Financeiro[[id_ação_Fonte_oculta]:[R$ Executado (2027)]],5,FALSE)) ->  | G32: =IF(VLOOKUP(A32,Financeiro[[id_ação_Fonte_oculta]:[R$ Executado (2027)]],4,FALSE)=0,"",VLOOKUP(A32,Financeiro[[id_ação_Fonte_oculta]:[R$ Executado (2027)]],8,FALSE)) ->  | H32: =IF(VLOOKUP(A32,Financeiro[[id_ação_Fonte_oculta]:[R$ Executado (2027)]],4,FALSE)=0,"",VLOOKUP(A32,Financeiro[[id_ação_Fonte_oculta]:[R$ Executado (2027)]],11,FALSE)) ->  | I32: =IF(VLOOKUP(A32,Financeiro[[id_ação_Fonte_oculta]:[R$ Executado (2027)]],4,FALSE)=0,"",VLOOKUP(A32,Financeiro[[id_ação_Fonte_oculta]:[R$ Executado (2027)]],14,FALSE)) ->  | J32: 0 | K32: =IFERROR(INDEX(IdentAcoes[SubPDC],MATCH(B32,IdentAcoes[ID Ação],0)),"") ->  | L32: =IFERROR(INDEX(IdentAcoes[Prioridade do PDC],MATCH(B32,IdentAcoes[ID Ação],0)),"") ->  | M32: =IFERROR(INDEX(IdentAcoes[Segmento do executor],MATCH($B32,IdentAcoes[ID Ação],0)),"") ->  | N32: =IFERROR(INDEX(IdentAcoes[Área de abrangência],MATCH($B32,IdentAcoes[ID Ação],0)),"") ->  | O32: =IFERROR(INDEX(IdentAcoes[Detalhamento da área de abrangência],MATCH($B32,IdentAcoes[ID Ação],0)),"") -> 
C33: =INDEX(Financeiro[Descrição da ação],MATCH(B33,Financeiro[ID Ação], 0)) ->  | D33: =IF(INDEX('Acompanhamento das metas 24-27'!$C$2:$C$50,MATCH(B33,'Acompanhamento das metas 24-27'!$A$2:$A$50,0))<>0,INDEX('Acompanhamento das metas 24-27'!$C$2:$C$50,MATCH(B33,'Acompanhamento das metas 24-27'!$A$2:$A$50,0)),"") ->  | E33: =IF(VLOOKUP(A33,Financeiro[[id_ação_Fonte_oculta]:[R$ Executado (2027)]],4,FALSE)=0,"",VLOOKUP(A33,Financeiro[[id_ação_Fonte_oculta]:[R$ Executado (2027)]],4,FALSE)) ->  | F33: =IF(VLOOKUP(A33,Financeiro[[id_ação_Fonte_oculta]:[R$ Executado (2027)]],4,FALSE)=0,"",VLOOKUP(A33,Financeiro[[id_ação_Fonte_oculta]:[R$ Executado (2027)]],5,FALSE)) ->  | G33: =IF(VLOOKUP(A33,Financeiro[[id_ação_Fonte_oculta]:[R$ Executado (2027)]],4,FALSE)=0,"",VLOOKUP(A33,Financeiro[[id_ação_Fonte_oculta]:[R$ Executado (2027)]],8,FALSE)) ->  | H33: =IF(VLOOKUP(A33,Financeiro[[id_ação_Fonte_oculta]:[R$ Executado (2027)]],4,FALSE)=0,"",VLOOKUP(A33,Financeiro[[id_ação_Fonte_oculta]:[R$ Executado (2027)]],11,FALSE)) ->  | I33: =IF(VLOOKUP(A33,Financeiro[[id_ação_Fonte_oculta]:[R$ Executado (2027)]],4,FALSE)=0,"",VLOOKUP(A33,Financeiro[[id_ação_Fonte_oculta]:[R$ Executado (2027)]],14,FALSE)) ->  | J33: 0 | K33: =IFERROR(INDEX(IdentAcoes[SubPDC],MATCH(B33,IdentAcoes[ID Ação],0)),"") ->  | L33: =IFERROR(INDEX(IdentAcoes[Prioridade do PDC],MATCH(B33,IdentAcoes[ID Ação],0)),"") ->  | M33: =IFERROR(INDEX(IdentAcoes[Segmento do executor],MATCH($B33,IdentAcoes[ID Ação],0)),"") ->  | N33: =IFERROR(INDEX(IdentAcoes[Área de abrangência],MATCH($B33,IdentAcoes[ID Ação],0)),"") ->  | O33: =IFERROR(INDEX(IdentAcoes[Detalhamento da área de abrangência],MATCH($B33,IdentAcoes[ID Ação],0)),"") -> 
C34: =INDEX(Financeiro[Descrição da ação],MATCH(B34,Financeiro[ID Ação], 0)) ->  | D34: =IF(INDEX('Acompanhamento das metas 24-27'!$C$2:$C$50,MATCH(B34,'Acompanhamento das metas 24-27'!$A$2:$A$50,0))<>0,INDEX('Acompanhamento das metas 24-27'!$C$2:$C$50,MATCH(B34,'Acompanhamento das metas 24-27'!$A$2:$A$50,0)),"") ->  | E34: =IF(VLOOKUP(A34,Financeiro[[id_ação_Fonte_oculta]:[R$ Executado (2027)]],4,FALSE)=0,"",VLOOKUP(A34,Financeiro[[id_ação_Fonte_oculta]:[R$ Executado (2027)]],4,FALSE)) ->  | F34: =IF(VLOOKUP(A34,Financeiro[[id_ação_Fonte_oculta]:[R$ Executado (2027)]],4,FALSE)=0,"",VLOOKUP(A34,Financeiro[[id_ação_Fonte_oculta]:[R$ Executado (2027)]],5,FALSE)) ->  | G34: =IF(VLOOKUP(A34,Financeiro[[id_ação_Fonte_oculta]:[R$ Executado (2027)]],4,FALSE)=0,"",VLOOKUP(A34,Financeiro[[id_ação_Fonte_oculta]:[R$ Executado (2027)]],8,FALSE)) ->  | H34: =IF(VLOOKUP(A34,Financeiro[[id_ação_Fonte_oculta]:[R$ Executado (2027)]],4,FALSE)=0,"",VLOOKUP(A34,Financeiro[[id_ação_Fonte_oculta]:[R$ Executado (2027)]],11,FALSE)) ->  | I34: =IF(VLOOKUP(A34,Financeiro[[id_ação_Fonte_oculta]:[R$ Executado (2027)]],4,FALSE)=0,"",VLOOKUP(A34,Financeiro[[id_ação_Fonte_oculta]:[R$ Executado (2027)]],14,FALSE)) ->  | J34: 0 | K34: =IFERROR(INDEX(IdentAcoes[SubPDC],MATCH(B34,IdentAcoes[ID Ação],0)),"") ->  | L34: =IFERROR(INDEX(IdentAcoes[Prioridade do PDC],MATCH(B34,IdentAcoes[ID Ação],0)),"") ->  | M34: =IFERROR(INDEX(IdentAcoes[Segmento do executor],MATCH($B34,IdentAcoes[ID Ação],0)),"") ->  | N34: =IFERROR(INDEX(IdentAcoes[Área de abrangência],MATCH($B34,IdentAcoes[ID Ação],0)),"") ->  | O34: =IFERROR(INDEX(IdentAcoes[Detalhamento da área de abrangência],MATCH($B34,IdentAcoes[ID Ação],0)),"") -> 
C35: =INDEX(Financeiro[Descrição da ação],MATCH(B35,Financeiro[ID Ação], 0)) ->  | D35: =IF(INDEX('Acompanhamento das metas 24-27'!$C$2:$C$50,MATCH(B35,'Acompanhamento das metas 24-27'!$A$2:$A$50,0))<>0,INDEX('Acompanhamento das metas 24-27'!$C$2:$C$50,MATCH(B35,'Acompanhamento das metas 24-27'!$A$2:$A$50,0)),"") ->  | E35: =IF(VLOOKUP(A35,Financeiro[[id_ação_Fonte_oculta]:[R$ Executado (2027)]],4,FALSE)=0,"",VLOOKUP(A35,Financeiro[[id_ação_Fonte_oculta]:[R$ Executado (2027)]],4,FALSE)) ->  | F35: =IF(VLOOKUP(A35,Financeiro[[id_ação_Fonte_oculta]:[R$ Executado (2027)]],4,FALSE)=0,"",VLOOKUP(A35,Financeiro[[id_ação_Fonte_oculta]:[R$ Executado (2027)]],5,FALSE)) ->  | G35: =IF(VLOOKUP(A35,Financeiro[[id_ação_Fonte_oculta]:[R$ Executado (2027)]],4,FALSE)=0,"",VLOOKUP(A35,Financeiro[[id_ação_Fonte_oculta]:[R$ Executado (2027)]],8,FALSE)) ->  | H35: =IF(VLOOKUP(A35,Financeiro[[id_ação_Fonte_oculta]:[R$ Executado (2027)]],4,FALSE)=0,"",VLOOKUP(A35,Financeiro[[id_ação_Fonte_oculta]:[R$ Executado (2027)]],11,FALSE)) ->  | I35: =IF(VLOOKUP(A35,Financeiro[[id_ação_Fonte_oculta]:[R$ Executado (2027)]],4,FALSE)=0,"",VLOOKUP(A35,Financeiro[[id_ação_Fonte_oculta]:[R$ Executado (2027)]],14,FALSE)) ->  | J35: 0 | K35: =IFERROR(INDEX(IdentAcoes[SubPDC],MATCH(B35,IdentAcoes[ID Ação],0)),"") ->  | L35: =IFERROR(INDEX(IdentAcoes[Prioridade do PDC],MATCH(B35,IdentAcoes[ID Ação],0)),"") ->  | M35: =IFERROR(INDEX(IdentAcoes[Segmento do executor],MATCH($B35,IdentAcoes[ID Ação],0)),"") ->  | N35: =IFERROR(INDEX(IdentAcoes[Área de abrangência],MATCH($B35,IdentAcoes[ID Ação],0)),"") ->  | O35: =IFERROR(INDEX(IdentAcoes[Detalhamento da área de abrangência],MATCH($B35,IdentAcoes[ID Ação],0)),"") -> 
C36: =INDEX(Financeiro[Descrição da ação],MATCH(B36,Financeiro[ID Ação], 0)) ->  | D36: =IF(INDEX('Acompanhamento das metas 24-27'!$C$2:$C$50,MATCH(B36,'Acompanhamento das metas 24-27'!$A$2:$A$50,0))<>0,INDEX('Acompanhamento das metas 24-27'!$C$2:$C$50,MATCH(B36,'Acompanhamento das metas 24-27'!$A$2:$A$50,0)),"") ->  | E36: =IF(VLOOKUP(A36,Financeiro[[id_ação_Fonte_oculta]:[R$ Executado (2027)]],4,FALSE)=0,"",VLOOKUP(A36,Financeiro[[id_ação_Fonte_oculta]:[R$ Executado (2027)]],4,FALSE)) ->  | F36: =IF(VLOOKUP(A36,Financeiro[[id_ação_Fonte_oculta]:[R$ Executado (2027)]],4,FALSE)=0,"",VLOOKUP(A36,Financeiro[[id_ação_Fonte_oculta]:[R$ Executado (2027)]],5,FALSE)) ->  | G36: =IF(VLOOKUP(A36,Financeiro[[id_ação_Fonte_oculta]:[R$ Executado (2027)]],4,FALSE)=0,"",VLOOKUP(A36,Financeiro[[id_ação_Fonte_oculta]:[R$ Executado (2027)]],8,FALSE)) ->  | H36: =IF(VLOOKUP(A36,Financeiro[[id_ação_Fonte_oculta]:[R$ Executado (2027)]],4,FALSE)=0,"",VLOOKUP(A36,Financeiro[[id_ação_Fonte_oculta]:[R$ Executado (2027)]],11,FALSE)) ->  | I36: =IF(VLOOKUP(A36,Financeiro[[id_ação_Fonte_oculta]:[R$ Executado (2027)]],4,FALSE)=0,"",VLOOKUP(A36,Financeiro[[id_ação_Fonte_oculta]:[R$ Executado (2027)]],14,FALSE)) ->  | J36: 0 | K36: =IFERROR(INDEX(IdentAcoes[SubPDC],MATCH(B36,IdentAcoes[ID Ação],0)),"") ->  | L36: =IFERROR(INDEX(IdentAcoes[Prioridade do PDC],MATCH(B36,IdentAcoes[ID Ação],0)),"") ->  | M36: =IFERROR(INDEX(IdentAcoes[Segmento do executor],MATCH($B36,IdentAcoes[ID Ação],0)),"") ->  | N36: =IFERROR(INDEX(IdentAcoes[Área de abrangência],MATCH($B36,IdentAcoes[ID Ação],0)),"") ->  | O36: =IFERROR(INDEX(IdentAcoes[Detalhamento da área de abrangência],MATCH($B36,IdentAcoes[ID Ação],0)),"") -> 
C37: =INDEX(Financeiro[Descrição da ação],MATCH(B37,Financeiro[ID Ação], 0)) ->  | D37: =IF(INDEX('Acompanhamento das metas 24-27'!$C$2:$C$50,MATCH(B37,'Acompanhamento das metas 24-27'!$A$2:$A$50,0))<>0,INDEX('Acompanhamento das metas 24-27'!$C$2:$C$50,MATCH(B37,'Acompanhamento das metas 24-27'!$A$2:$A$50,0)),"") ->  | E37: =IF(VLOOKUP(A37,Financeiro[[id_ação_Fonte_oculta]:[R$ Executado (2027)]],4,FALSE)=0,"",VLOOKUP(A37,Financeiro[[id_ação_Fonte_oculta]:[R$ Executado (2027)]],4,FALSE)) ->  | F37: =IF(VLOOKUP(A37,Financeiro[[id_ação_Fonte_oculta]:[R$ Executado (2027)]],4,FALSE)=0,"",VLOOKUP(A37,Financeiro[[id_ação_Fonte_oculta]:[R$ Executado (2027)]],5,FALSE)) ->  | G37: =IF(VLOOKUP(A37,Financeiro[[id_ação_Fonte_oculta]:[R$ Executado (2027)]],4,FALSE)=0,"",VLOOKUP(A37,Financeiro[[id_ação_Fonte_oculta]:[R$ Executado (2027)]],8,FALSE)) ->  | H37: =IF(VLOOKUP(A37,Financeiro[[id_ação_Fonte_oculta]:[R$ Executado (2027)]],4,FALSE)=0,"",VLOOKUP(A37,Financeiro[[id_ação_Fonte_oculta]:[R$ Executado (2027)]],11,FALSE)) ->  | I37: =IF(VLOOKUP(A37,Financeiro[[id_ação_Fonte_oculta]:[R$ Executado (2027)]],4,FALSE)=0,"",VLOOKUP(A37,Financeiro[[id_ação_Fonte_oculta]:[R$ Executado (2027)]],14,FALSE)) ->  | J37: 0 | K37: =IFERROR(INDEX(IdentAcoes[SubPDC],MATCH(B37,IdentAcoes[ID Ação],0)),"") ->  | L37: =IFERROR(INDEX(IdentAcoes[Prioridade do PDC],MATCH(B37,IdentAcoes[ID Ação],0)),"") ->  | M37: =IFERROR(INDEX(IdentAcoes[Segmento do executor],MATCH($B37,IdentAcoes[ID Ação],0)),"") ->  | N37: =IFERROR(INDEX(IdentAcoes[Área de abrangência],MATCH($B37,IdentAcoes[ID Ação],0)),"") ->  | O37: =IFERROR(INDEX(IdentAcoes[Detalhamento da área de abrangência],MATCH($B37,IdentAcoes[ID Ação],0)),"") -> 
C38: =INDEX(Financeiro[Descrição da ação],MATCH(B38,Financeiro[ID Ação], 0)) ->  | D38: =IF(INDEX('Acompanhamento das metas 24-27'!$C$2:$C$50,MATCH(B38,'Acompanhamento das metas 24-27'!$A$2:$A$50,0))<>0,INDEX('Acompanhamento das metas 24-27'!$C$2:$C$50,MATCH(B38,'Acompanhamento das metas 24-27'!$A$2:$A$50,0)),"") ->  | E38: =IF(VLOOKUP(A38,Financeiro[[id_ação_Fonte_oculta]:[R$ Executado (2027)]],4,FALSE)=0,"",VLOOKUP(A38,Financeiro[[id_ação_Fonte_oculta]:[R$ Executado (2027)]],4,FALSE)) ->  | F38: =IF(VLOOKUP(A38,Financeiro[[id_ação_Fonte_oculta]:[R$ Executado (2027)]],4,FALSE)=0,"",VLOOKUP(A38,Financeiro[[id_ação_Fonte_oculta]:[R$ Executado (2027)]],5,FALSE)) ->  | G38: =IF(VLOOKUP(A38,Financeiro[[id_ação_Fonte_oculta]:[R$ Executado (2027)]],4,FALSE)=0,"",VLOOKUP(A38,Financeiro[[id_ação_Fonte_oculta]:[R$ Executado (2027)]],8,FALSE)) ->  | H38: =IF(VLOOKUP(A38,Financeiro[[id_ação_Fonte_oculta]:[R$ Executado (2027)]],4,FALSE)=0,"",VLOOKUP(A38,Financeiro[[id_ação_Fonte_oculta]:[R$ Executado (2027)]],11,FALSE)) ->  | I38: =IF(VLOOKUP(A38,Financeiro[[id_ação_Fonte_oculta]:[R$ Executado (2027)]],4,FALSE)=0,"",VLOOKUP(A38,Financeiro[[id_ação_Fonte_oculta]:[R$ Executado (2027)]],14,FALSE)) ->  | J38: 0 | K38: =IFERROR(INDEX(IdentAcoes[SubPDC],MATCH(B38,IdentAcoes[ID Ação],0)),"") ->  | L38: =IFERROR(INDEX(IdentAcoes[Prioridade do PDC],MATCH(B38,IdentAcoes[ID Ação],0)),"") ->  | M38: =IFERROR(INDEX(IdentAcoes[Segmento do executor],MATCH($B38,IdentAcoes[ID Ação],0)),"") ->  | N38: =IFERROR(INDEX(IdentAcoes[Área de abrangência],MATCH($B38,IdentAcoes[ID Ação],0)),"") ->  | O38: =IFERROR(INDEX(IdentAcoes[Detalhamento da área de abrangência],MATCH($B38,IdentAcoes[ID Ação],0)),"") -> 
C39: =INDEX(Financeiro[Descrição da ação],MATCH(B39,Financeiro[ID Ação], 0)) ->  | D39: =IF(INDEX('Acompanhamento das metas 24-27'!$C$2:$C$50,MATCH(B39,'Acompanhamento das metas 24-27'!$A$2:$A$50,0))<>0,INDEX('Acompanhamento das metas 24-27'!$C$2:$C$50,MATCH(B39,'Acompanhamento das metas 24-27'!$A$2:$A$50,0)),"") ->  | E39: =IF(VLOOKUP(A39,Financeiro[[id_ação_Fonte_oculta]:[R$ Executado (2027)]],4,FALSE)=0,"",VLOOKUP(A39,Financeiro[[id_ação_Fonte_oculta]:[R$ Executado (2027)]],4,FALSE)) ->  | F39: =IF(VLOOKUP(A39,Financeiro[[id_ação_Fonte_oculta]:[R$ Executado (2027)]],4,FALSE)=0,"",VLOOKUP(A39,Financeiro[[id_ação_Fonte_oculta]:[R$ Executado (2027)]],5,FALSE)) ->  | G39: =IF(VLOOKUP(A39,Financeiro[[id_ação_Fonte_oculta]:[R$ Executado (2027)]],4,FALSE)=0,"",VLOOKUP(A39,Financeiro[[id_ação_Fonte_oculta]:[R$ Executado (2027)]],8,FALSE)) ->  | H39: =IF(VLOOKUP(A39,Financeiro[[id_ação_Fonte_oculta]:[R$ Executado (2027)]],4,FALSE)=0,"",VLOOKUP(A39,Financeiro[[id_ação_Fonte_oculta]:[R$ Executado (2027)]],11,FALSE)) ->  | I39: =IF(VLOOKUP(A39,Financeiro[[id_ação_Fonte_oculta]:[R$ Executado (2027)]],4,FALSE)=0,"",VLOOKUP(A39,Financeiro[[id_ação_Fonte_oculta]:[R$ Executado (2027)]],14,FALSE)) ->  | J39: 0 | K39: =IFERROR(INDEX(IdentAcoes[SubPDC],MATCH(B39,IdentAcoes[ID Ação],0)),"") ->  | L39: =IFERROR(INDEX(IdentAcoes[Prioridade do PDC],MATCH(B39,IdentAcoes[ID Ação],0)),"") ->  | M39: =IFERROR(INDEX(IdentAcoes[Segmento do executor],MATCH($B39,IdentAcoes[ID Ação],0)),"") ->  | N39: =IFERROR(INDEX(IdentAcoes[Área de abrangência],MATCH($B39,IdentAcoes[ID Ação],0)),"") ->  | O39: =IFERROR(INDEX(IdentAcoes[Detalhamento da área de abrangência],MATCH($B39,IdentAcoes[ID Ação],0)),"") -> 
C40: =INDEX(Financeiro[Descrição da ação],MATCH(B40,Financeiro[ID Ação], 0)) ->  | D40: =IF(INDEX('Acompanhamento das metas 24-27'!$C$2:$C$50,MATCH(B40,'Acompanhamento das metas 24-27'!$A$2:$A$50,0))<>0,INDEX('Acompanhamento das metas 24-27'!$C$2:$C$50,MATCH(B40,'Acompanhamento das metas 24-27'!$A$2:$A$50,0)),"") ->  | E40: =IF(VLOOKUP(A40,Financeiro[[id_ação_Fonte_oculta]:[R$ Executado (2027)]],4,FALSE)=0,"",VLOOKUP(A40,Financeiro[[id_ação_Fonte_oculta]:[R$ Executado (2027)]],4,FALSE)) ->  | F40: =IF(VLOOKUP(A40,Financeiro[[id_ação_Fonte_oculta]:[R$ Executado (2027)]],4,FALSE)=0,"",VLOOKUP(A40,Financeiro[[id_ação_Fonte_oculta]:[R$ Executado (2027)]],5,FALSE)) ->  | G40: =IF(VLOOKUP(A40,Financeiro[[id_ação_Fonte_oculta]:[R$ Executado (2027)]],4,FALSE)=0,"",VLOOKUP(A40,Financeiro[[id_ação_Fonte_oculta]:[R$ Executado (2027)]],8,FALSE)) ->  | H40: =IF(VLOOKUP(A40,Financeiro[[id_ação_Fonte_oculta]:[R$ Executado (2027)]],4,FALSE)=0,"",VLOOKUP(A40,Financeiro[[id_ação_Fonte_oculta]:[R$ Executado (2027)]],11,FALSE)) ->  | I40: =IF(VLOOKUP(A40,Financeiro[[id_ação_Fonte_oculta]:[R$ Executado (2027)]],4,FALSE)=0,"",VLOOKUP(A40,Financeiro[[id_ação_Fonte_oculta]:[R$ Executado (2027)]],14,FALSE)) ->  | J40: 0 | K40: =IFERROR(INDEX(IdentAcoes[SubPDC],MATCH(B40,IdentAcoes[ID Ação],0)),"") ->  | L40: =IFERROR(INDEX(IdentAcoes[Prioridade do PDC],MATCH(B40,IdentAcoes[ID Ação],0)),"") ->  | M40: =IFERROR(INDEX(IdentAcoes[Segmento do executor],MATCH($B40,IdentAcoes[ID Ação],0)),"") ->  | N40: =IFERROR(INDEX(IdentAcoes[Área de abrangência],MATCH($B40,IdentAcoes[ID Ação],0)),"") ->  | O40: =IFERROR(INDEX(IdentAcoes[Detalhamento da área de abrangência],MATCH($B40,IdentAcoes[ID Ação],0)),"") -> 
C41: =INDEX(Financeiro[Descrição da ação],MATCH(B41,Financeiro[ID Ação], 0)) ->  | D41: =IF(INDEX('Acompanhamento das metas 24-27'!$C$2:$C$50,MATCH(B41,'Acompanhamento das metas 24-27'!$A$2:$A$50,0))<>0,INDEX('Acompanhamento das metas 24-27'!$C$2:$C$50,MATCH(B41,'Acompanhamento das metas 24-27'!$A$2:$A$50,0)),"") ->  | E41: =IF(VLOOKUP(A41,Financeiro[[id_ação_Fonte_oculta]:[R$ Executado (2027)]],4,FALSE)=0,"",VLOOKUP(A41,Financeiro[[id_ação_Fonte_oculta]:[R$ Executado (2027)]],4,FALSE)) ->  | F41: =IF(VLOOKUP(A41,Financeiro[[id_ação_Fonte_oculta]:[R$ Executado (2027)]],4,FALSE)=0,"",VLOOKUP(A41,Financeiro[[id_ação_Fonte_oculta]:[R$ Executado (2027)]],5,FALSE)) ->  | G41: =IF(VLOOKUP(A41,Financeiro[[id_ação_Fonte_oculta]:[R$ Executado (2027)]],4,FALSE)=0,"",VLOOKUP(A41,Financeiro[[id_ação_Fonte_oculta]:[R$ Executado (2027)]],8,FALSE)) ->  | H41: =IF(VLOOKUP(A41,Financeiro[[id_ação_Fonte_oculta]:[R$ Executado (2027)]],4,FALSE)=0,"",VLOOKUP(A41,Financeiro[[id_ação_Fonte_oculta]:[R$ Executado (2027)]],11,FALSE)) ->  | I41: =IF(VLOOKUP(A41,Financeiro[[id_ação_Fonte_oculta]:[R$ Executado (2027)]],4,FALSE)=0,"",VLOOKUP(A41,Financeiro[[id_ação_Fonte_oculta]:[R$ Executado (2027)]],14,FALSE)) ->  | J41: 0 | K41: =IFERROR(INDEX(IdentAcoes[SubPDC],MATCH(B41,IdentAcoes[ID Ação],0)),"") ->  | L41: =IFERROR(INDEX(IdentAcoes[Prioridade do PDC],MATCH(B41,IdentAcoes[ID Ação],0)),"") ->  | M41: =IFERROR(INDEX(IdentAcoes[Segmento do executor],MATCH($B41,IdentAcoes[ID Ação],0)),"") ->  | N41: =IFERROR(INDEX(IdentAcoes[Área de abrangência],MATCH($B41,IdentAcoes[ID Ação],0)),"") ->  | O41: =IFERROR(INDEX(IdentAcoes[Detalhamento da área de abrangência],MATCH($B41,IdentAcoes[ID Ação],0)),"") -> 
C42: =INDEX(Financeiro[Descrição da ação],MATCH(B42,Financeiro[ID Ação], 0)) ->  | D42: =IF(INDEX('Acompanhamento das metas 24-27'!$C$2:$C$50,MATCH(B42,'Acompanhamento das metas 24-27'!$A$2:$A$50,0))<>0,INDEX('Acompanhamento das metas 24-27'!$C$2:$C$50,MATCH(B42,'Acompanhamento das metas 24-27'!$A$2:$A$50,0)),"") ->  | E42: =IF(VLOOKUP(A42,Financeiro[[id_ação_Fonte_oculta]:[R$ Executado (2027)]],4,FALSE)=0,"",VLOOKUP(A42,Financeiro[[id_ação_Fonte_oculta]:[R$ Executado (2027)]],4,FALSE)) ->  | F42: =IF(VLOOKUP(A42,Financeiro[[id_ação_Fonte_oculta]:[R$ Executado (2027)]],4,FALSE)=0,"",VLOOKUP(A42,Financeiro[[id_ação_Fonte_oculta]:[R$ Executado (2027)]],5,FALSE)) ->  | G42: =IF(VLOOKUP(A42,Financeiro[[id_ação_Fonte_oculta]:[R$ Executado (2027)]],4,FALSE)=0,"",VLOOKUP(A42,Financeiro[[id_ação_Fonte_oculta]:[R$ Executado (2027)]],8,FALSE)) ->  | H42: =IF(VLOOKUP(A42,Financeiro[[id_ação_Fonte_oculta]:[R$ Executado (2027)]],4,FALSE)=0,"",VLOOKUP(A42,Financeiro[[id_ação_Fonte_oculta]:[R$ Executado (2027)]],11,FALSE)) ->  | I42: =IF(VLOOKUP(A42,Financeiro[[id_ação_Fonte_oculta]:[R$ Executado (2027)]],4,FALSE)=0,"",VLOOKUP(A42,Financeiro[[id_ação_Fonte_oculta]:[R$ Executado (2027)]],14,FALSE)) ->  | J42: 0 | K42: =IFERROR(INDEX(IdentAcoes[SubPDC],MATCH(B42,IdentAcoes[ID Ação],0)),"") ->  | L42: =IFERROR(INDEX(IdentAcoes[Prioridade do PDC],MATCH(B42,IdentAcoes[ID Ação],0)),"") ->  | M42: =IFERROR(INDEX(IdentAcoes[Segmento do executor],MATCH($B42,IdentAcoes[ID Ação],0)),"") ->  | N42: =IFERROR(INDEX(IdentAcoes[Área de abrangência],MATCH($B42,IdentAcoes[ID Ação],0)),"") ->  | O42: =IFERROR(INDEX(IdentAcoes[Detalhamento da área de abrangência],MATCH($B42,IdentAcoes[ID Ação],0)),"") -> 
C43: =INDEX(Financeiro[Descrição da ação],MATCH(B43,Financeiro[ID Ação], 0)) ->  | D43: =IF(INDEX('Acompanhamento das metas 24-27'!$C$2:$C$50,MATCH(B43,'Acompanhamento das metas 24-27'!$A$2:$A$50,0))<>0,INDEX('Acompanhamento das metas 24-27'!$C$2:$C$50,MATCH(B43,'Acompanhamento das metas 24-27'!$A$2:$A$50,0)),"") ->  | E43: =IF(VLOOKUP(A43,Financeiro[[id_ação_Fonte_oculta]:[R$ Executado (2027)]],4,FALSE)=0,"",VLOOKUP(A43,Financeiro[[id_ação_Fonte_oculta]:[R$ Executado (2027)]],4,FALSE)) ->  | F43: =IF(VLOOKUP(A43,Financeiro[[id_ação_Fonte_oculta]:[R$ Executado (2027)]],4,FALSE)=0,"",VLOOKUP(A43,Financeiro[[id_ação_Fonte_oculta]:[R$ Executado (2027)]],5,FALSE)) ->  | G43: =IF(VLOOKUP(A43,Financeiro[[id_ação_Fonte_oculta]:[R$ Executado (2027)]],4,FALSE)=0,"",VLOOKUP(A43,Financeiro[[id_ação_Fonte_oculta]:[R$ Executado (2027)]],8,FALSE)) ->  | H43: =IF(VLOOKUP(A43,Financeiro[[id_ação_Fonte_oculta]:[R$ Executado (2027)]],4,FALSE)=0,"",VLOOKUP(A43,Financeiro[[id_ação_Fonte_oculta]:[R$ Executado (2027)]],11,FALSE)) ->  | I43: =IF(VLOOKUP(A43,Financeiro[[id_ação_Fonte_oculta]:[R$ Executado (2027)]],4,FALSE)=0,"",VLOOKUP(A43,Financeiro[[id_ação_Fonte_oculta]:[R$ Executado (2027)]],14,FALSE)) ->  | J43: 0 | K43: =IFERROR(INDEX(IdentAcoes[SubPDC],MATCH(B43,IdentAcoes[ID Ação],0)),"") ->  | L43: =IFERROR(INDEX(IdentAcoes[Prioridade do PDC],MATCH(B43,IdentAcoes[ID Ação],0)),"") ->  | M43: =IFERROR(INDEX(IdentAcoes[Segmento do executor],MATCH($B43,IdentAcoes[ID Ação],0)),"") ->  | N43: =IFERROR(INDEX(IdentAcoes[Área de abrangência],MATCH($B43,IdentAcoes[ID Ação],0)),"") ->  | O43: =IFERROR(INDEX(IdentAcoes[Detalhamento da área de abrangência],MATCH($B43,IdentAcoes[ID Ação],0)),"") -> 
C44: =INDEX(Financeiro[Descrição da ação],MATCH(B44,Financeiro[ID Ação], 0)) ->  | D44: =IF(INDEX('Acompanhamento das metas 24-27'!$C$2:$C$50,MATCH(B44,'Acompanhamento das metas 24-27'!$A$2:$A$50,0))<>0,INDEX('Acompanhamento das metas 24-27'!$C$2:$C$50,MATCH(B44,'Acompanhamento das metas 24-27'!$A$2:$A$50,0)),"") ->  | E44: =IF(VLOOKUP(A44,Financeiro[[id_ação_Fonte_oculta]:[R$ Executado (2027)]],4,FALSE)=0,"",VLOOKUP(A44,Financeiro[[id_ação_Fonte_oculta]:[R$ Executado (2027)]],4,FALSE)) ->  | F44: =IF(VLOOKUP(A44,Financeiro[[id_ação_Fonte_oculta]:[R$ Executado (2027)]],4,FALSE)=0,"",VLOOKUP(A44,Financeiro[[id_ação_Fonte_oculta]:[R$ Executado (2027)]],5,FALSE)) ->  | G44: =IF(VLOOKUP(A44,Financeiro[[id_ação_Fonte_oculta]:[R$ Executado (2027)]],4,FALSE)=0,"",VLOOKUP(A44,Financeiro[[id_ação_Fonte_oculta]:[R$ Executado (2027)]],8,FALSE)) ->  | H44: =IF(VLOOKUP(A44,Financeiro[[id_ação_Fonte_oculta]:[R$ Executado (2027)]],4,FALSE)=0,"",VLOOKUP(A44,Financeiro[[id_ação_Fonte_oculta]:[R$ Executado (2027)]],11,FALSE)) ->  | I44: =IF(VLOOKUP(A44,Financeiro[[id_ação_Fonte_oculta]:[R$ Executado (2027)]],4,FALSE)=0,"",VLOOKUP(A44,Financeiro[[id_ação_Fonte_oculta]:[R$ Executado (2027)]],14,FALSE)) ->  | J44: 0 | K44: =IFERROR(INDEX(IdentAcoes[SubPDC],MATCH(B44,IdentAcoes[ID Ação],0)),"") ->  | L44: =IFERROR(INDEX(IdentAcoes[Prioridade do PDC],MATCH(B44,IdentAcoes[ID Ação],0)),"") ->  | M44: =IFERROR(INDEX(IdentAcoes[Segmento do executor],MATCH($B44,IdentAcoes[ID Ação],0)),"") ->  | N44: =IFERROR(INDEX(IdentAcoes[Área de abrangência],MATCH($B44,IdentAcoes[ID Ação],0)),"") ->  | O44: =IFERROR(INDEX(IdentAcoes[Detalhamento da área de abrangência],MATCH($B44,IdentAcoes[ID Ação],0)),"") -> 
C45: =INDEX(Financeiro[Descrição da ação],MATCH(B45,Financeiro[ID Ação], 0)) ->  | D45: =IF(INDEX('Acompanhamento das metas 24-27'!$C$2:$C$50,MATCH(B45,'Acompanhamento das metas 24-27'!$A$2:$A$50,0))<>0,INDEX('Acompanhamento das metas 24-27'!$C$2:$C$50,MATCH(B45,'Acompanhamento das metas 24-27'!$A$2:$A$50,0)),"") ->  | E45: =IF(VLOOKUP(A45,Financeiro[[id_ação_Fonte_oculta]:[R$ Executado (2027)]],4,FALSE)=0,"",VLOOKUP(A45,Financeiro[[id_ação_Fonte_oculta]:[R$ Executado (2027)]],4,FALSE)) ->  | F45: =IF(VLOOKUP(A45,Financeiro[[id_ação_Fonte_oculta]:[R$ Executado (2027)]],4,FALSE)=0,"",VLOOKUP(A45,Financeiro[[id_ação_Fonte_oculta]:[R$ Executado (2027)]],5,FALSE)) ->  | G45: =IF(VLOOKUP(A45,Financeiro[[id_ação_Fonte_oculta]:[R$ Executado (2027)]],4,FALSE)=0,"",VLOOKUP(A45,Financeiro[[id_ação_Fonte_oculta]:[R$ Executado (2027)]],8,FALSE)) ->  | H45: =IF(VLOOKUP(A45,Financeiro[[id_ação_Fonte_oculta]:[R$ Executado (2027)]],4,FALSE)=0,"",VLOOKUP(A45,Financeiro[[id_ação_Fonte_oculta]:[R$ Executado (2027)]],11,FALSE)) ->  | I45: =IF(VLOOKUP(A45,Financeiro[[id_ação_Fonte_oculta]:[R$ Executado (2027)]],4,FALSE)=0,"",VLOOKUP(A45,Financeiro[[id_ação_Fonte_oculta]:[R$ Executado (2027)]],14,FALSE)) ->  | J45: 0 | K45: =IFERROR(INDEX(IdentAcoes[SubPDC],MATCH(B45,IdentAcoes[ID Ação],0)),"") ->  | L45: =IFERROR(INDEX(IdentAcoes[Prioridade do PDC],MATCH(B45,IdentAcoes[ID Ação],0)),"") ->  | M45: =IFERROR(INDEX(IdentAcoes[Segmento do executor],MATCH($B45,IdentAcoes[ID Ação],0)),"") ->  | N45: =IFERROR(INDEX(IdentAcoes[Área de abrangência],MATCH($B45,IdentAcoes[ID Ação],0)),"") ->  | O45: =IFERROR(INDEX(IdentAcoes[Detalhamento da área de abrangência],MATCH($B45,IdentAcoes[ID Ação],0)),"") -> 
C46: =INDEX(Financeiro[Descrição da ação],MATCH(B46,Financeiro[ID Ação], 0)) ->  | D46: =IF(INDEX('Acompanhamento das metas 24-27'!$C$2:$C$50,MATCH(B46,'Acompanhamento das metas 24-27'!$A$2:$A$50,0))<>0,INDEX('Acompanhamento das metas 24-27'!$C$2:$C$50,MATCH(B46,'Acompanhamento das metas 24-27'!$A$2:$A$50,0)),"") ->  | E46: =IF(VLOOKUP(A46,Financeiro[[id_ação_Fonte_oculta]:[R$ Executado (2027)]],4,FALSE)=0,"",VLOOKUP(A46,Financeiro[[id_ação_Fonte_oculta]:[R$ Executado (2027)]],4,FALSE)) ->  | F46: =IF(VLOOKUP(A46,Financeiro[[id_ação_Fonte_oculta]:[R$ Executado (2027)]],4,FALSE)=0,"",VLOOKUP(A46,Financeiro[[id_ação_Fonte_oculta]:[R$ Executado (2027)]],5,FALSE)) ->  | G46: =IF(VLOOKUP(A46,Financeiro[[id_ação_Fonte_oculta]:[R$ Executado (2027)]],4,FALSE)=0,"",VLOOKUP(A46,Financeiro[[id_ação_Fonte_oculta]:[R$ Executado (2027)]],8,FALSE)) ->  | H46: =IF(VLOOKUP(A46,Financeiro[[id_ação_Fonte_oculta]:[R$ Executado (2027)]],4,FALSE)=0,"",VLOOKUP(A46,Financeiro[[id_ação_Fonte_oculta]:[R$ Executado (2027)]],11,FALSE)) ->  | I46: =IF(VLOOKUP(A46,Financeiro[[id_ação_Fonte_oculta]:[R$ Executado (2027)]],4,FALSE)=0,"",VLOOKUP(A46,Financeiro[[id_ação_Fonte_oculta]:[R$ Executado (2027)]],14,FALSE)) ->  | J46: 0 | K46: =IFERROR(INDEX(IdentAcoes[SubPDC],MATCH(B46,IdentAcoes[ID Ação],0)),"") ->  | L46: =IFERROR(INDEX(IdentAcoes[Prioridade do PDC],MATCH(B46,IdentAcoes[ID Ação],0)),"") ->  | M46: =IFERROR(INDEX(IdentAcoes[Segmento do executor],MATCH($B46,IdentAcoes[ID Ação],0)),"") ->  | N46: =IFERROR(INDEX(IdentAcoes[Área de abrangência],MATCH($B46,IdentAcoes[ID Ação],0)),"") ->  | O46: =IFERROR(INDEX(IdentAcoes[Detalhamento da área de abrangência],MATCH($B46,IdentAcoes[ID Ação],0)),"") -> 
C47: =INDEX(Financeiro[Descrição da ação],MATCH(B47,Financeiro[ID Ação], 0)) ->  | D47: =IF(INDEX('Acompanhamento das metas 24-27'!$C$2:$C$50,MATCH(B47,'Acompanhamento das metas 24-27'!$A$2:$A$50,0))<>0,INDEX('Acompanhamento das metas 24-27'!$C$2:$C$50,MATCH(B47,'Acompanhamento das metas 24-27'!$A$2:$A$50,0)),"") ->  | E47: =IF(VLOOKUP(A47,Financeiro[[id_ação_Fonte_oculta]:[R$ Executado (2027)]],4,FALSE)=0,"",VLOOKUP(A47,Financeiro[[id_ação_Fonte_oculta]:[R$ Executado (2027)]],4,FALSE)) ->  | F47: =IF(VLOOKUP(A47,Financeiro[[id_ação_Fonte_oculta]:[R$ Executado (2027)]],4,FALSE)=0,"",VLOOKUP(A47,Financeiro[[id_ação_Fonte_oculta]:[R$ Executado (2027)]],5,FALSE)) ->  | G47: =IF(VLOOKUP(A47,Financeiro[[id_ação_Fonte_oculta]:[R$ Executado (2027)]],4,FALSE)=0,"",VLOOKUP(A47,Financeiro[[id_ação_Fonte_oculta]:[R$ Executado (2027)]],8,FALSE)) ->  | H47: =IF(VLOOKUP(A47,Financeiro[[id_ação_Fonte_oculta]:[R$ Executado (2027)]],4,FALSE)=0,"",VLOOKUP(A47,Financeiro[[id_ação_Fonte_oculta]:[R$ Executado (2027)]],11,FALSE)) ->  | I47: =IF(VLOOKUP(A47,Financeiro[[id_ação_Fonte_oculta]:[R$ Executado (2027)]],4,FALSE)=0,"",VLOOKUP(A47,Financeiro[[id_ação_Fonte_oculta]:[R$ Executado (2027)]],14,FALSE)) ->  | J47: 0 | K47: =IFERROR(INDEX(IdentAcoes[SubPDC],MATCH(B47,IdentAcoes[ID Ação],0)),"") ->  | L47: =IFERROR(INDEX(IdentAcoes[Prioridade do PDC],MATCH(B47,IdentAcoes[ID Ação],0)),"") ->  | M47: =IFERROR(INDEX(IdentAcoes[Segmento do executor],MATCH($B47,IdentAcoes[ID Ação],0)),"") ->  | N47: =IFERROR(INDEX(IdentAcoes[Área de abrangência],MATCH($B47,IdentAcoes[ID Ação],0)),"") ->  | O47: =IFERROR(INDEX(IdentAcoes[Detalhamento da área de abrangência],MATCH($B47,IdentAcoes[ID Ação],0)),"") -> 
C48: =INDEX(Financeiro[Descrição da ação],MATCH(B48,Financeiro[ID Ação], 0)) ->  | D48: =IF(INDEX('Acompanhamento das metas 24-27'!$C$2:$C$50,MATCH(B48,'Acompanhamento das metas 24-27'!$A$2:$A$50,0))<>0,INDEX('Acompanhamento das metas 24-27'!$C$2:$C$50,MATCH(B48,'Acompanhamento das metas 24-27'!$A$2:$A$50,0)),"") ->  | E48: =IF(VLOOKUP(A48,Financeiro[[id_ação_Fonte_oculta]:[R$ Executado (2027)]],4,FALSE)=0,"",VLOOKUP(A48,Financeiro[[id_ação_Fonte_oculta]:[R$ Executado (2027)]],4,FALSE)) ->  | F48: =IF(VLOOKUP(A48,Financeiro[[id_ação_Fonte_oculta]:[R$ Executado (2027)]],4,FALSE)=0,"",VLOOKUP(A48,Financeiro[[id_ação_Fonte_oculta]:[R$ Executado (2027)]],5,FALSE)) ->  | G48: =IF(VLOOKUP(A48,Financeiro[[id_ação_Fonte_oculta]:[R$ Executado (2027)]],4,FALSE)=0,"",VLOOKUP(A48,Financeiro[[id_ação_Fonte_oculta]:[R$ Executado (2027)]],8,FALSE)) ->  | H48: =IF(VLOOKUP(A48,Financeiro[[id_ação_Fonte_oculta]:[R$ Executado (2027)]],4,FALSE)=0,"",VLOOKUP(A48,Financeiro[[id_ação_Fonte_oculta]:[R$ Executado (2027)]],11,FALSE)) ->  | I48: =IF(VLOOKUP(A48,Financeiro[[id_ação_Fonte_oculta]:[R$ Executado (2027)]],4,FALSE)=0,"",VLOOKUP(A48,Financeiro[[id_ação_Fonte_oculta]:[R$ Executado (2027)]],14,FALSE)) ->  | J48: 0 | K48: =IFERROR(INDEX(IdentAcoes[SubPDC],MATCH(B48,IdentAcoes[ID Ação],0)),"") ->  | L48: =IFERROR(INDEX(IdentAcoes[Prioridade do PDC],MATCH(B48,IdentAcoes[ID Ação],0)),"") ->  | M48: =IFERROR(INDEX(IdentAcoes[Segmento do executor],MATCH($B48,IdentAcoes[ID Ação],0)),"") ->  | N48: =IFERROR(INDEX(IdentAcoes[Área de abrangência],MATCH($B48,IdentAcoes[ID Ação],0)),"") ->  | O48: =IFERROR(INDEX(IdentAcoes[Detalhamento da área de abrangência],MATCH($B48,IdentAcoes[ID Ação],0)),"") -> 
C49: =INDEX(Financeiro[Descrição da ação],MATCH(B49,Financeiro[ID Ação], 0)) ->  | D49: =IF(INDEX('Acompanhamento das metas 24-27'!$C$2:$C$50,MATCH(B49,'Acompanhamento das metas 24-27'!$A$2:$A$50,0))<>0,INDEX('Acompanhamento das metas 24-27'!$C$2:$C$50,MATCH(B49,'Acompanhamento das metas 24-27'!$A$2:$A$50,0)),"") ->  | E49: =IF(VLOOKUP(A49,Financeiro[[id_ação_Fonte_oculta]:[R$ Executado (2027)]],4,FALSE)=0,"",VLOOKUP(A49,Financeiro[[id_ação_Fonte_oculta]:[R$ Executado (2027)]],4,FALSE)) ->  | F49: =IF(VLOOKUP(A49,Financeiro[[id_ação_Fonte_oculta]:[R$ Executado (2027)]],4,FALSE)=0,"",VLOOKUP(A49,Financeiro[[id_ação_Fonte_oculta]:[R$ Executado (2027)]],5,FALSE)) ->  | G49: =IF(VLOOKUP(A49,Financeiro[[id_ação_Fonte_oculta]:[R$ Executado (2027)]],4,FALSE)=0,"",VLOOKUP(A49,Financeiro[[id_ação_Fonte_oculta]:[R$ Executado (2027)]],8,FALSE)) ->  | H49: =IF(VLOOKUP(A49,Financeiro[[id_ação_Fonte_oculta]:[R$ Executado (2027)]],4,FALSE)=0,"",VLOOKUP(A49,Financeiro[[id_ação_Fonte_oculta]:[R$ Executado (2027)]],11,FALSE)) ->  | I49: =IF(VLOOKUP(A49,Financeiro[[id_ação_Fonte_oculta]:[R$ Executado (2027)]],4,FALSE)=0,"",VLOOKUP(A49,Financeiro[[id_ação_Fonte_oculta]:[R$ Executado (2027)]],14,FALSE)) ->  | J49: 0 | K49: =IFERROR(INDEX(IdentAcoes[SubPDC],MATCH(B49,IdentAcoes[ID Ação],0)),"") ->  | L49: =IFERROR(INDEX(IdentAcoes[Prioridade do PDC],MATCH(B49,IdentAcoes[ID Ação],0)),"") ->  | M49: =IFERROR(INDEX(IdentAcoes[Segmento do executor],MATCH($B49,IdentAcoes[ID Ação],0)),"") ->  | N49: =IFERROR(INDEX(IdentAcoes[Área de abrangência],MATCH($B49,IdentAcoes[ID Ação],0)),"") ->  | O49: =IFERROR(INDEX(IdentAcoes[Detalhamento da área de abrangência],MATCH($B49,IdentAcoes[ID Ação],0)),"") -> 
C50: =INDEX(Financeiro[Descrição da ação],MATCH(B50,Financeiro[ID Ação], 0)) ->  | D50: =IF(INDEX('Acompanhamento das metas 24-27'!$C$2:$C$50,MATCH(B50,'Acompanhamento das metas 24-27'!$A$2:$A$50,0))<>0,INDEX('Acompanhamento das metas 24-27'!$C$2:$C$50,MATCH(B50,'Acompanhamento das metas 24-27'!$A$2:$A$50,0)),"") ->  | E50: =IF(VLOOKUP(A50,Financeiro[[id_ação_Fonte_oculta]:[R$ Executado (2027)]],4,FALSE)=0,"",VLOOKUP(A50,Financeiro[[id_ação_Fonte_oculta]:[R$ Executado (2027)]],4,FALSE)) ->  | F50: =IF(VLOOKUP(A50,Financeiro[[id_ação_Fonte_oculta]:[R$ Executado (2027)]],4,FALSE)=0,"",VLOOKUP(A50,Financeiro[[id_ação_Fonte_oculta]:[R$ Executado (2027)]],5,FALSE)) ->  | G50: =IF(VLOOKUP(A50,Financeiro[[id_ação_Fonte_oculta]:[R$ Executado (2027)]],4,FALSE)=0,"",VLOOKUP(A50,Financeiro[[id_ação_Fonte_oculta]:[R$ Executado (2027)]],8,FALSE)) ->  | H50: =IF(VLOOKUP(A50,Financeiro[[id_ação_Fonte_oculta]:[R$ Executado (2027)]],4,FALSE)=0,"",VLOOKUP(A50,Financeiro[[id_ação_Fonte_oculta]:[R$ Executado (2027)]],11,FALSE)) ->  | I50: =IF(VLOOKUP(A50,Financeiro[[id_ação_Fonte_oculta]:[R$ Executado (2027)]],4,FALSE)=0,"",VLOOKUP(A50,Financeiro[[id_ação_Fonte_oculta]:[R$ Executado (2027)]],14,FALSE)) ->  | J50: 0 | K50: =IFERROR(INDEX(IdentAcoes[SubPDC],MATCH(B50,IdentAcoes[ID Ação],0)),"") ->  | L50: =IFERROR(INDEX(IdentAcoes[Prioridade do PDC],MATCH(B50,IdentAcoes[ID Ação],0)),"") ->  | M50: =IFERROR(INDEX(IdentAcoes[Segmento do executor],MATCH($B50,IdentAcoes[ID Ação],0)),"") ->  | N50: =IFERROR(INDEX(IdentAcoes[Área de abrangência],MATCH($B50,IdentAcoes[ID Ação],0)),"") ->  | O50: =IFERROR(INDEX(IdentAcoes[Detalhamento da área de abrangência],MATCH($B50,IdentAcoes[ID Ação],0)),"") -> 
C51: =INDEX(Financeiro[Descrição da ação],MATCH(B51,Financeiro[ID Ação], 0)) ->  | E51: =IF(VLOOKUP(A51,Financeiro[[id_ação_Fonte_oculta]:[R$ Executado (2027)]],4,FALSE)=0,"",VLOOKUP(A51,Financeiro[[id_ação_Fonte_oculta]:[R$ Executado (2027)]],4,FALSE)) ->  | F51: =IF(VLOOKUP(A51,Financeiro[[id_ação_Fonte_oculta]:[R$ Executado (2027)]],4,FALSE)=0,"",VLOOKUP(A51,Financeiro[[id_ação_Fonte_oculta]:[R$ Executado (2027)]],5,FALSE)) ->  | G51: =IF(VLOOKUP(A51,Financeiro[[id_ação_Fonte_oculta]:[R$ Executado (2027)]],4,FALSE)=0,"",VLOOKUP(A51,Financeiro[[id_ação_Fonte_oculta]:[R$ Executado (2027)]],8,FALSE)) ->  | H51: =IF(VLOOKUP(A51,Financeiro[[id_ação_Fonte_oculta]:[R$ Executado (2027)]],4,FALSE)=0,"",VLOOKUP(A51,Financeiro[[id_ação_Fonte_oculta]:[R$ Executado (2027)]],11,FALSE)) ->  | I51: =IF(VLOOKUP(A51,Financeiro[[id_ação_Fonte_oculta]:[R$ Executado (2027)]],4,FALSE)=0,"",VLOOKUP(A51,Financeiro[[id_ação_Fonte_oculta]:[R$ Executado (2027)]],14,FALSE)) ->  | K51: =IFERROR(INDEX(IdentAcoes[SubPDC],MATCH(B51,IdentAcoes[ID Ação],0)),"") ->  | L51: =IFERROR(INDEX(IdentAcoes[Prioridade do PDC],MATCH(B51,IdentAcoes[ID Ação],0)),"") ->  | M51: =IFERROR(INDEX(IdentAcoes[Segmento do executor],MATCH($B51,IdentAcoes[ID Ação],0)),"") ->  | N51: =IFERROR(INDEX(IdentAcoes[Área de abrangência],MATCH($B51,IdentAcoes[ID Ação],0)),"") ->  | O51: =IFERROR(INDEX(IdentAcoes[Detalhamento da área de abrangência],MATCH($B51,IdentAcoes[ID Ação],0)),"") -> 

Sheet Consolidaçao - 1 (hidden)
A1: Delib. 190 | C1: 2021 (R$ Estimado) | H1: Delib. 246 | I1: 2022 (R$ Estimado) | N1: 2023 (R$ Estimado) | S1: 2022 - 2023 (R$ Estimado)
A2: SubPDC | B2: CFURH | C2: Cobrança Estadual | D2: Cobrança Federal | E2: Outras | F2: TOTAL | H2: SubPDC | I2: CFURH | J2: Cobrança Estadual | K2: Cobrança Federal | L2: Outras | M2: TOTAL | N2: CFURH | O2: Cobrança Estadual | P2: Cobrança Federal | Q2: Outras | R2: TOTAL | S2: TOTAL
A3: 1.1 - SI | B3: =SUMIFS(#REF!,#REF!,A3,#REF!,2021) ->  | C3: =SUMIFS(#REF!,#REF!,A3,#REF!,2021) ->  | D3: =SUMIFS(#REF!,#REF!,A3,#REF!,2021) ->  | E3: =SUMIFS(#REF!,#REF!,A3,#REF!,2021) ->  | F3: =SUM(B3:E3) ->  | H3: 1.1 - Legislação | I3: =SUMIFS(PAPI20_22_23[Recurso financeiro estimado no ano (R$) - CFURH],PAPI20_22_23[SubPDC],'Consolidaçao - 1'!H3,PAPI20_22_23[Ano previsto para início],2022) -> 0 | J3: =SUMIFS(PAPI20_22_23[Recurso financeiro estimado no ano (R$) - Cobrança Estadual],PAPI20_22_23[SubPDC],'Consolidaçao - 1'!H3,PAPI20_22_23[Ano previsto para início],2022) -> 0 | K3: =SUMIFS(PAPI20_22_23[Recurso financeiro estimado no ano (R$) - Cobrança Federal],PAPI20_22_23[SubPDC],'Consolidaçao - 1'!H3,PAPI20_22_23[Ano previsto para início],2022) -> 0 | L3: =SUMIFS(PAPI20_22_23[Recurso financeiro estimado no ano (R$) - Outras],PAPI20_22_23[SubPDC],'Consolidaçao - 1'!H3,PAPI20_22_23[Ano previsto para início],2022) -> 0 | M3: =SUM(I3:L3) -> 0 | N3: =SUMIFS(PAPI20_22_23[Recurso financeiro estimado no ano (R$) - CFURH],PAPI20_22_23[SubPDC],'Consolidaçao - 1'!H3,PAPI20_22_23[Ano previsto para início],2023) -> 0 | O3: =SUMIFS(PAPI20_22_23[Recurso financeiro estimado no ano (R$) - Cobrança Estadual],PAPI20_22_23[SubPDC],'Consolidaçao - 1'!M3,PAPI20_22_23[Ano previsto para início],2023) -> 0 | P3: =SUMIFS(PAPI20_22_23[Recurso financeiro estimado no ano (R$) - Cobrança Federal],PAPI20_22_23[SubPDC],'Consolidaçao - 1'!M3,PAPI20_22_23[Ano previsto para início],2023) -> 0 | Q3: =SUMIFS(PAPI20_22_23[Recurso financeiro estimado no ano (R$) - Outras],PAPI20_22_23[SubPDC],'Consolidaçao - 1'!M3,PAPI20_22_23[Ano previsto para início],2023) -> 0 | R3: =SUM(N3:Q3) -> 0 | S3: =SUM(M3,R3) -> 0
A4: 1.2 - Planejamento | B4: =SUMIFS(#REF!,#REF!,A4,#REF!,2021) ->  | C4: =SUMIFS(#REF!,#REF!,A4,#REF!,2021) ->  | D4: =SUMIFS(#REF!,#REF!,A4,#REF!,2021) ->  | E4: =SUMIFS(#REF!,#REF!,A4,#REF!,2021) ->  | H4: 1.2 - Planejamento | I4: =SUMIFS(PAPI20_22_23[Recurso financeiro estimado no ano (R$) - CFURH],PAPI20_22_23[SubPDC],'Consolidaçao - 1'!H4,PAPI20_22_23[Ano previsto para início],2022) -> 0 | J4: =SUMIFS(PAPI20_22_23[Recurso financeiro estimado no ano (R$) - Cobrança Estadual],PAPI20_22_23[SubPDC],'Consolidaçao - 1'!H4,PAPI20_22_23[Ano previsto para início],2022) -> 0 | K4: =SUMIFS(PAPI20_22_23[Recurso financeiro estimado no ano (R$) - Cobrança Federal],PAPI20_22_23[SubPDC],'Consolidaçao - 1'!H4,PAPI20_22_23[Ano previsto para início],2022) -> 0 | L4: =SUMIFS(PAPI20_22_23[Recurso financeiro estimado no ano (R$) - Outras],PAPI20_22_23[SubPDC],'Consolidaçao - 1'!H4,PAPI20_22_23[Ano previsto para início],2022) -> 0 | M4: 0 | N4: =SUMIFS(PAPI20_22_23[Recurso financeiro estimado no ano (R$) - CFURH],PAPI20_22_23[SubPDC],'Consolidaçao - 1'!H4,PAPI20_22_23[Ano previsto para início],2023) -> 0 | O4: =SUMIFS(PAPI20_22_23[Recurso financeiro estimado no ano (R$) - Cobrança Estadual],PAPI20_22_23[SubPDC],'Consolidaçao - 1'!M4,PAPI20_22_23[Ano previsto para início],2023) -> 0 | P4: =SUMIFS(PAPI20_22_23[Recurso financeiro estimado no ano (R$) - Cobrança Federal],PAPI20_22_23[SubPDC],'Consolidaçao - 1'!M4,PAPI20_22_23[Ano previsto para início],2023) -> 0 | Q4: =SUMIFS(PAPI20_22_23[Recurso financeiro estimado no ano (R$) - Outras],PAPI20_22_23[SubPDC],'Consolidaçao - 1'!M4,PAPI20_22_23[Ano previsto para início],2023) -> 0 | R4: 0 | S4: =SUM(M4,R4) -> 0
A5: 1.3 - Enquadramento | B5: =SUMIFS(#REF!,#REF!,A5,#REF!,2021) ->  | C5: =SUMIFS(#REF!,#REF!,A5,#REF!,2021) ->  | D5: =SUMIFS(#REF!,#REF!,A5,#REF!,2021) ->  | E5: =SUMIFS(#REF!,#REF!,A5,#REF!,2021) ->  | H5: 2.1 - Plano | I5: =SUMIFS(PAPI20_22_23[Recurso financeiro estimado no ano (R$) - CFURH],PAPI20_22_23[SubPDC],'Consolidaçao - 1'!H5,PAPI20_22_23[Ano previsto para início],2022) -> 0 | J5: =SUMIFS(PAPI20_22_23[Recurso financeiro estimado no ano (R$) - Cobrança Estadual],PAPI20_22_23[SubPDC],'Consolidaçao - 1'!H5,PAPI20_22_23[Ano previsto para início],2022) -> 0 | K5: =SUMIFS(PAPI20_22_23[Recurso financeiro estimado no ano (R$) - Cobrança Federal],PAPI20_22_23[SubPDC],'Consolidaçao - 1'!H5,PAPI20_22_23[Ano previsto para início],2022) -> 0 | L5: =SUMIFS(PAPI20_22_23[Recurso financeiro estimado no ano (R$) - Outras],PAPI20_22_23[SubPDC],'Consolidaçao - 1'!H5,PAPI20_22_23[Ano previsto para início],2022) -> 0 | M5: 0 | N5: =SUMIFS(PAPI20_22_23[Recurso financeiro estimado no ano (R$) - CFURH],PAPI20_22_23[SubPDC],'Consolidaçao - 1'!H5,PAPI20_22_23[Ano previsto para início],2023) -> 0 | O5: =SUMIFS(PAPI20_22_23[Recurso financeiro estimado no ano (R$) - Cobrança Estadual],PAPI20_22_23[SubPDC],'Consolidaçao - 1'!M5,PAPI20_22_23[Ano previsto para início],2023) -> 0 | P5: =SUMIFS(PAPI20_22_23[Recurso financeiro estimado no ano (R$) - Cobrança Federal],PAPI20_22_23[SubPDC],'Consolidaçao - 1'!M5,PAPI20_22_23[Ano previsto para início],2023) -> 0 | Q5: =SUMIFS(PAPI20_22_23[Recurso financeiro estimado no ano (R$) - Outras],PAPI20_22_23[SubPDC],'Consolidaçao - 1'!M5,PAPI20_22_23[Ano previsto para início],2023) -> 0 | R5: 0 | S5: 0
A6: 1.4 - Monitoramento | B6: =SUMIFS(#REF!,#REF!,A6,#REF!,2021) ->  | C6: =SUMIFS(#REF!,#REF!,A6,#REF!,2021) ->  | D6: =SUMIFS(#REF!,#REF!,A6,#REF!,2021) ->  | E6: =SUMIFS(#REF!,#REF!,A6,#REF!,2021) ->  | H6: 2.2 - Outorga | I6: =SUMIFS(PAPI20_22_23[Recurso financeiro estimado no ano (R$) - CFURH],PAPI20_22_23[SubPDC],'Consolidaçao - 1'!H6,PAPI20_22_23[Ano previsto para início],2022) -> 0 | J6: =SUMIFS(PAPI20_22_23[Recurso financeiro estimado no ano (R$) - Cobrança Estadual],PAPI20_22_23[SubPDC],'Consolidaçao - 1'!H6,PAPI20_22_23[Ano previsto para início],2022) -> 0 | K6: =SUMIFS(PAPI20_22_23[Recurso financeiro estimado no ano (R$) - Cobrança Federal],PAPI20_22_23[SubPDC],'Consolidaçao - 1'!H6,PAPI20_22_23[Ano previsto para início],2022) -> 0 | L6: =SUMIFS(PAPI20_22_23[Recurso financeiro estimado no ano (R$) - Outras],PAPI20_22_23[SubPDC],'Consolidaçao - 1'!H6,PAPI20_22_23[Ano previsto para início],2022) -> 0 | M6: 0 | N6: =SUMIFS(PAPI20_22_23[Recurso financeiro estimado no ano (R$) - CFURH],PAPI20_22_23[SubPDC],'Consolidaçao - 1'!H6,PAPI20_22_23[Ano previsto para início],2023) -> 0 | O6: =SUMIFS(PAPI20_22_23[Recurso financeiro estimado no ano (R$) - Cobrança Estadual],PAPI20_22_23[SubPDC],'Consolidaçao - 1'!M6,PAPI20_22_23[Ano previsto para início],2023) -> 0 | P6: =SUMIFS(PAPI20_22_23[Recurso financeiro estimado no ano (R$) - Cobrança Federal],PAPI20_22_23[SubPDC],'Consolidaçao - 1'!M6,PAPI20_22_23[Ano previsto para início],2023) -> 0 | Q6: =SUMIFS(PAPI20_22_23[Recurso financeiro estimado no ano (R$) - Outras],PAPI20_22_23[SubPDC],'Consolidaçao - 1'!M6,PAPI20_22_23[Ano previsto para início],2023) -> 0 | R6: 0 | S6: 0
A7: 1.5 - Disponibilidade | B7: =SUMIFS(#REF!,#REF!,A7,#REF!,2021) ->  | C7: =SUMIFS(#REF!,#REF!,A7,#REF!,2021) ->  | D7: =SUMIFS(#REF!,#REF!,A7,#REF!,2021) ->  | E7: =SUMIFS(#REF!,#REF!,A7,#REF!,2021) ->  | H7: 2.3 - Cobrança | I7: =SUMIFS(PAPI20_22_23[Recurso financeiro estimado no ano (R$) - CFURH],PAPI20_22_23[SubPDC],'Consolidaçao - 1'!H7,PAPI20_22_23[Ano previsto para início],2022) -> 0 | J7: =SUMIFS(PAPI20_22_23[Recurso financeiro estimado no ano (R$) - Cobrança Estadual],PAPI20_22_23[SubPDC],'Consolidaçao - 1'!H7,PAPI20_22_23[Ano previsto para início],2022) -> 0 | K7: =SUMIFS(PAPI20_22_23[Recurso financeiro estimado no ano (R$) - Cobrança Federal],PAPI20_22_23[SubPDC],'Consolidaçao - 1'!H7,PAPI20_22_23[Ano previsto para início],2022) -> 0 | L7: =SUMIFS(PAPI20_22_23[Recurso financeiro estimado no ano (R$) - Outras],PAPI20_22_23[SubPDC],'Consolidaçao - 1'!H7,PAPI20_22_23[Ano previsto para início],2022) -> 0 | M7: 0 | N7: =SUMIFS(PAPI20_22_23[Recurso financeiro estimado no ano (R$) - CFURH],PAPI20_22_23[SubPDC],'Consolidaçao - 1'!H7,PAPI20_22_23[Ano previsto para início],2023) -> 0 | O7: =SUMIFS(PAPI20_22_23[Recurso financeiro estimado no ano (R$) - Cobrança Estadual],PAPI20_22_23[SubPDC],'Consolidaçao - 1'!M7,PAPI20_22_23[Ano previsto para início],2023) -> 0 | P7: =SUMIFS(PAPI20_22_23[Recurso financeiro estimado no ano (R$) - Cobrança Federal],PAPI20_22_23[SubPDC],'Consolidaçao - 1'!M7,PAPI20_22_23[Ano previsto para início],2023) -> 0 | Q7: =SUMIFS(PAPI20_22_23[Recurso financeiro estimado no ano (R$) - Outras],PAPI20_22_23[SubPDC],'Consolidaçao - 1'!M7,PAPI20_22_23[Ano previsto para início],2023) -> 0 | R7: 0 | S7: 0
A8: 1.6 - Legislação | B8: =SUMIFS(#REF!,#REF!,A8,#REF!,2021) ->  | C8: =SUMIFS(#REF!,#REF!,A8,#REF!,2021) ->  | D8: =SUMIFS(#REF!,#REF!,A8,#REF!,2021) ->  | E8: =SUMIFS(#REF!,#REF!,A8,#REF!,2021) ->  | H8: 2.4 - Enquadramento | I8: =SUMIFS(PAPI20_22_23[Recurso financeiro estimado no ano (R$) - CFURH],PAPI20_22_23[SubPDC],'Consolidaçao - 1'!H8,PAPI20_22_23[Ano previsto para início],2022) -> 0 | J8: =SUMIFS(PAPI20_22_23[Recurso financeiro estimado no ano (R$) - Cobrança Estadual],PAPI20_22_23[SubPDC],'Consolidaçao - 1'!H8,PAPI20_22_23[Ano previsto para início],2022) -> 0 | K8: =SUMIFS(PAPI20_22_23[Recurso financeiro estimado no ano (R$) - Cobrança Federal],PAPI20_22_23[SubPDC],'Consolidaçao - 1'!H8,PAPI20_22_23[Ano previsto para início],2022) -> 0 | L8: =SUMIFS(PAPI20_22_23[Recurso financeiro estimado no ano (R$) - Outras],PAPI20_22_23[SubPDC],'Consolidaçao - 1'!H8,PAPI20_22_23[Ano previsto para início],2022) -> 0 | M8: 0 | N8: =SUMIFS(PAPI20_22_23[Recurso financeiro estimado no ano (R$) - CFURH],PAPI20_22_23[SubPDC],'Consolidaçao - 1'!H8,PAPI20_22_23[Ano previsto para início],2023) -> 0 | O8: =SUMIFS(PAPI20_22_23[Recurso financeiro estimado no ano (R$) - Cobrança Estadual],PAPI20_22_23[SubPDC],'Consolidaçao - 1'!M8,PAPI20_22_23[Ano previsto para início],2023) -> 0 | P8: =SUMIFS(PAPI20_22_23[Recurso financeiro estimado no ano (R$) - Cobrança Federal],PAPI20_22_23[SubPDC],'Consolidaçao - 1'!M8,PAPI20_22_23[Ano previsto para início],2023) -> 0 | Q8: =SUMIFS(PAPI20_22_23[Recurso financeiro estimado no ano (R$) - Outras],PAPI20_22_23[SubPDC],'Consolidaçao - 1'!M8,PAPI20_22_23[Ano previsto para início],2023) -> 0 | R8: 0 | S8: 0
A9: 1.7 - Poluição | B9: =SUMIFS(#REF!,#REF!,A9,#REF!,2021) ->  | C9: =SUMIFS(#REF!,#REF!,A9,#REF!,2021) ->  | D9: =SUMIFS(#REF!,#REF!,A9,#REF!,2021) ->  | E9: =SUMIFS(#REF!,#REF!,A9,#REF!,2021) ->  | H9: 2.5 - Monitoramento e SI | I9: =SUMIFS(PAPI20_22_23[Recurso financeiro estimado no ano (R$) - CFURH],PAPI20_22_23[SubPDC],'Consolidaçao - 1'!H9,PAPI20_22_23[Ano previsto para início],2022) -> 0 | J9: =SUMIFS(PAPI20_22_23[Recurso financeiro estimado no ano (R$) - Cobrança Estadual],PAPI20_22_23[SubPDC],'Consolidaçao - 1'!H9,PAPI20_22_23[Ano previsto para início],2022) -> 0 | K9: =SUMIFS(PAPI20_22_23[Recurso financeiro estimado no ano (R$) - Cobrança Federal],PAPI20_22_23[SubPDC],'Consolidaçao - 1'!H9,PAPI20_22_23[Ano previsto para início],2022) -> 0 | L9: =SUMIFS(PAPI20_22_23[Recurso financeiro estimado no ano (R$) - Outras],PAPI20_22_23[SubPDC],'Consolidaçao - 1'!H9,PAPI20_22_23[Ano previsto para início],2022) -> 0 | M9: 0 | N9: =SUMIFS(PAPI20_22_23[Recurso financeiro estimado no ano (R$) - CFURH],PAPI20_22_23[SubPDC],'Consolidaçao - 1'!H9,PAPI20_22_23[Ano previsto para início],2023) -> 0 | O9: =SUMIFS(PAPI20_22_23[Recurso financeiro estimado no ano (R$) - Cobrança Estadual],PAPI20_22_23[SubPDC],'Consolidaçao - 1'!M9,PAPI20_22_23[Ano previsto para início],2023) -> 0 | P9: =SUMIFS(PAPI20_22_23[Recurso financeiro estimado no ano (R$) - Cobrança Federal],PAPI20_22_23[SubPDC],'Consolidaçao - 1'!M9,PAPI20_22_23[Ano previsto para início],2023) -> 0 | Q9: =SUMIFS(PAPI20_22_23[Recurso financeiro estimado no ano (R$) - Outras],PAPI20_22_23[SubPDC],'Consolidaçao - 1'!M9,PAPI20_22_23[Ano previsto para início],2023) -> 0 | R9: 0 | S9: 0
A10: 2.1 - Planos | B10: =SUMIFS(#REF!,#REF!,A10,#REF!,2021) ->  | C10: =SUMIFS(#REF!,#REF!,A10,#REF!,2021) ->  | D10: =SUMIFS(#REF!,#REF!,A10,#REF!,2021) ->  | E10: =SUMIFS(#REF!,#REF!,A10,#REF!,2021) ->  | H10: 2.6 - Integração | I10: =SUMIFS(PAPI20_22_23[Recurso financeiro estimado no ano (R$) - CFURH],PAPI20_22_23[SubPDC],'Consolidaçao - 1'!H10,PAPI20_22_23[Ano previsto para início],2022) -> 0 | J10: =SUMIFS(PAPI20_22_23[Recurso financeiro estimado no ano (R$) - Cobrança Estadual],PAPI20_22_23[SubPDC],'Consolidaçao - 1'!H10,PAPI20_22_23[Ano previsto para início],2022) -> 0 | K10: =SUMIFS(PAPI20_22_23[Recurso financeiro estimado no ano (R$) - Cobrança Federal],PAPI20_22_23[SubPDC],'Consolidaçao - 1'!H10,PAPI20_22_23[Ano previsto para início],2022) -> 0 | L10: =SUMIFS(PAPI20_22_23[Recurso financeiro estimado no ano (R$) - Outras],PAPI20_22_23[SubPDC],'Consolidaçao - 1'!H10,PAPI20_22_23[Ano previsto para início],2022) -> 0 | M10: 0 | N10: =SUMIFS(PAPI20_22_23[Recurso financeiro estimado no ano (R$) - CFURH],PAPI20_22_23[SubPDC],'Consolidaçao - 1'!H10,PAPI20_22_23[Ano previsto para início],2023) -> 0 | O10: =SUMIFS(PAPI20_22_23[Recurso financeiro estimado no ano (R$) - Cobrança Estadual],PAPI20_22_23[SubPDC],'Consolidaçao - 1'!M10,PAPI20_22_23[Ano previsto para início],2023) -> 0 | P10: =SUMIFS(PAPI20_22_23[Recurso financeiro estimado no ano (R$) - Cobrança Federal],PAPI20_22_23[SubPDC],'Consolidaçao - 1'!M10,PAPI20_22_23[Ano previsto para início],2023) -> 0 | Q10: =SUMIFS(PAPI20_22_23[Recurso financeiro estimado no ano (R$) - Outras],PAPI20_22_23[SubPDC],'Consolidaçao - 1'!M10,PAPI20_22_23[Ano previsto para início],2023) -> 0 | R10: 0 | S10: 0
A11: 2.2 - Outorga | B11: =SUMIFS(#REF!,#REF!,A11,#REF!,2021) ->  | C11: =SUMIFS(#REF!,#REF!,A11,#REF!,2021) ->  | D11: =SUMIFS(#REF!,#REF!,A11,#REF!,2021) ->  | E11: =SUMIFS(#REF!,#REF!,A11,#REF!,2021) ->  | H11: 2.7 - CORHI | I11: =SUMIFS(PAPI20_22_23[Recurso financeiro estimado no ano (R$) - CFURH],PAPI20_22_23[SubPDC],'Consolidaçao - 1'!H11,PAPI20_22_23[Ano previsto para início],2022) -> 0 | J11: =SUMIFS(PAPI20_22_23[Recurso financeiro estimado no ano (R$) - Cobrança Estadual],PAPI20_22_23[SubPDC],'Consolidaçao - 1'!H11,PAPI20_22_23[Ano previsto para início],2022) -> 0 | K11: =SUMIFS(PAPI20_22_23[Recurso financeiro estimado no ano (R$) - Cobrança Federal],PAPI20_22_23[SubPDC],'Consolidaçao - 1'!H11,PAPI20_22_23[Ano previsto para início],2022) -> 0 | L11: =SUMIFS(PAPI20_22_23[Recurso financeiro estimado no ano (R$) - Outras],PAPI20_22_23[SubPDC],'Consolidaçao - 1'!H11,PAPI20_22_23[Ano previsto para início],2022) -> 0 | M11: 0 | N11: =SUMIFS(PAPI20_22_23[Recurso financeiro estimado no ano (R$) - CFURH],PAPI20_22_23[SubPDC],'Consolidaçao - 1'!H11,PAPI20_22_23[Ano previsto para início],2023) -> 0 | O11: =SUMIFS(PAPI20_22_23[Recurso financeiro estimado no ano (R$) - Cobrança Estadual],PAPI20_22_23[SubPDC],'Consolidaçao - 1'!M11,PAPI20_22_23[Ano previsto para início],2023) -> 0 | P11: =SUMIFS(PAPI20_22_23[Recurso financeiro estimado no ano (R$) - Cobrança Federal],PAPI20_22_23[SubPDC],'Consolidaçao - 1'!M11,PAPI20_22_23[Ano previsto para início],2023) -> 0 | Q11: =SUMIFS(PAPI20_22_23[Recurso financeiro estimado no ano (R$) - Outras],PAPI20_22_23[SubPDC],'Consolidaçao - 1'!M11,PAPI20_22_23[Ano previsto para início],2023) -> 0 | R11: 0 | S11: 0
A12: 2.3 - Cobrança | B12: =SUMIFS(#REF!,#REF!,A12,#REF!,2021) ->  | C12: =SUMIFS(#REF!,#REF!,A12,#REF!,2021) ->  | D12: =SUMIFS(#REF!,#REF!,A12,#REF!,2021) ->  | E12: =SUMIFS(#REF!,#REF!,A12,#REF!,2021) ->  | H12: 3.1 - Efluentes | I12: =SUMIFS(PAPI20_22_23[Recurso financeiro estimado no ano (R$) - CFURH],PAPI20_22_23[SubPDC],'Consolidaçao - 1'!H12,PAPI20_22_23[Ano previsto para início],2022) -> 0 | J12: =SUMIFS(PAPI20_22_23[Recurso financeiro estimado no ano (R$) - Cobrança Estadual],PAPI20_22_23[SubPDC],'Consolidaçao - 1'!H12,PAPI20_22_23[Ano previsto para início],2022) -> 0 | K12: =SUMIFS(PAPI20_22_23[Recurso financeiro estimado no ano (R$) - Cobrança Federal],PAPI20_22_23[SubPDC],'Consolidaçao - 1'!H12,PAPI20_22_23[Ano previsto para início],2022) -> 0 | L12: =SUMIFS(PAPI20_22_23[Recurso financeiro estimado no ano (R$) - Outras],PAPI20_22_23[SubPDC],'Consolidaçao - 1'!H12,PAPI20_22_23[Ano previsto para início],2022) -> 0 | M12: 0 | N12: =SUMIFS(PAPI20_22_23[Recurso financeiro estimado no ano (R$) - CFURH],PAPI20_22_23[SubPDC],'Consolidaçao - 1'!H12,PAPI20_22_23[Ano previsto para início],2023) -> 0 | O12: =SUMIFS(PAPI20_22_23[Recurso financeiro estimado no ano (R$) - Cobrança Estadual],PAPI20_22_23[SubPDC],'Consolidaçao - 1'!M12,PAPI20_22_23[Ano previsto para início],2023) -> 0 | P12: =SUMIFS(PAPI20_22_23[Recurso financeiro estimado no ano (R$) - Cobrança Federal],PAPI20_22_23[SubPDC],'Consolidaçao - 1'!M12,PAPI20_22_23[Ano previsto para início],2023) -> 0 | Q12: =SUMIFS(PAPI20_22_23[Recurso financeiro estimado no ano (R$) - Outras],PAPI20_22_23[SubPDC],'Consolidaçao - 1'!M12,PAPI20_22_23[Ano previsto para início],2023) -> 0 | R12: 0 | S12: 0
A13: 2.4 - Efetivação | B13: =SUMIFS(#REF!,#REF!,A13,#REF!,2021) ->  | C13: =SUMIFS(#REF!,#REF!,A13,#REF!,2021) ->  | D13: =SUMIFS(#REF!,#REF!,A13,#REF!,2021) ->  | E13: =SUMIFS(#REF!,#REF!,A13,#REF!,2021) ->  | H13: 3.2 - Poluição | I13: =SUMIFS(PAPI20_22_23[Recurso financeiro estimado no ano (R$) - CFURH],PAPI20_22_23[SubPDC],'Consolidaçao - 1'!H13,PAPI20_22_23[Ano previsto para início],2022) -> 0 | J13: =SUMIFS(PAPI20_22_23[Recurso financeiro estimado no ano (R$) - Cobrança Estadual],PAPI20_22_23[SubPDC],'Consolidaçao - 1'!H13,PAPI20_22_23[Ano previsto para início],2022) -> 0 | K13: =SUMIFS(PAPI20_22_23[Recurso financeiro estimado no ano (R$) - Cobrança Federal],PAPI20_22_23[SubPDC],'Consolidaçao - 1'!H13,PAPI20_22_23[Ano previsto para início],2022) -> 0 | L13: =SUMIFS(PAPI20_22_23[Recurso financeiro estimado no ano (R$) - Outras],PAPI20_22_23[SubPDC],'Consolidaçao - 1'!H13,PAPI20_22_23[Ano previsto para início],2022) -> 0 | M13: 0 | N13: =SUMIFS(PAPI20_22_23[Recurso financeiro estimado no ano (R$) - CFURH],PAPI20_22_23[SubPDC],'Consolidaçao - 1'!H13,PAPI20_22_23[Ano previsto para início],2023) -> 0 | O13: =SUMIFS(PAPI20_22_23[Recurso financeiro estimado no ano (R$) - Cobrança Estadual],PAPI20_22_23[SubPDC],'Consolidaçao - 1'!M13,PAPI20_22_23[Ano previsto para início],2023) -> 0 | P13: =SUMIFS(PAPI20_22_23[Recurso financeiro estimado no ano (R$) - Cobrança Federal],PAPI20_22_23[SubPDC],'Consolidaçao - 1'!M13,PAPI20_22_23[Ano previsto para início],2023) -> 0 | Q13: =SUMIFS(PAPI20_22_23[Recurso financeiro estimado no ano (R$) - Outras],PAPI20_22_23[SubPDC],'Consolidaçao - 1'!M13,PAPI20_22_23[Ano previsto para início],2023) -> 0 | R13: 0 | S13: 0
A14: 2.5 - Integração | B14: =SUMIFS(#REF!,#REF!,A14,#REF!,2021) ->  | C14: =SUMIFS(#REF!,#REF!,A14,#REF!,2021) ->  | D14: =SUMIFS(#REF!,#REF!,A14,#REF!,2021) ->  | E14: =SUMIFS(#REF!,#REF!,A14,#REF!,2021) ->  | H14: 3.3 - Resíduos | I14: =SUMIFS(PAPI20_22_23[Recurso financeiro estimado no ano (R$) - CFURH],PAPI20_22_23[SubPDC],'Consolidaçao - 1'!H14,PAPI20_22_23[Ano previsto para início],2022) -> 0 | J14: =SUMIFS(PAPI20_22_23[Recurso financeiro estimado no ano (R$) - Cobrança Estadual],PAPI20_22_23[SubPDC],'Consolidaçao - 1'!H14,PAPI20_22_23[Ano previsto para início],2022) -> 0 | K14: =SUMIFS(PAPI20_22_23[Recurso financeiro estimado no ano (R$) - Cobrança Federal],PAPI20_22_23[SubPDC],'Consolidaçao - 1'!H14,PAPI20_22_23[Ano previsto para início],2022) -> 0 | L14: =SUMIFS(PAPI20_22_23[Recurso financeiro estimado no ano (R$) - Outras],PAPI20_22_23[SubPDC],'Consolidaçao - 1'!H14,PAPI20_22_23[Ano previsto para início],2022) -> 0 | M14: 0 | N14: =SUMIFS(PAPI20_22_23[Recurso financeiro estimado no ano (R$) - CFURH],PAPI20_22_23[SubPDC],'Consolidaçao - 1'!H14,PAPI20_22_23[Ano previsto para início],2023) -> 0 | O14: =SUMIFS(PAPI20_22_23[Recurso financeiro estimado no ano (R$) - Cobrança Estadual],PAPI20_22_23[SubPDC],'Consolidaçao - 1'!M14,PAPI20_22_23[Ano previsto para início],2023) -> 0 | P14: =SUMIFS(PAPI20_22_23[Recurso financeiro estimado no ano (R$) - Cobrança Federal],PAPI20_22_23[SubPDC],'Consolidaçao - 1'!M14,PAPI20_22_23[Ano previsto para início],2023) -> 0 | Q14: =SUMIFS(PAPI20_22_23[Recurso financeiro estimado no ano (R$) - Outras],PAPI20_22_23[SubPDC],'Consolidaçao - 1'!M14,PAPI20_22_23[Ano previsto para início],2023) -> 0 | R14: 0 | S14: 0
A15: 2.6 - CORHI | B15: =SUMIFS(#REF!,#REF!,A15,#REF!,2021) ->  | C15: =SUMIFS(#REF!,#REF!,A15,#REF!,2021) ->  | D15: =SUMIFS(#REF!,#REF!,A15,#REF!,2021) ->  | E15: =SUMIFS(#REF!,#REF!,A15,#REF!,2021) ->  | H15: 3.4 - Intervenções | I15: =SUMIFS(PAPI20_22_23[Recurso financeiro estimado no ano (R$) - CFURH],PAPI20_22_23[SubPDC],'Consolidaçao - 1'!H15,PAPI20_22_23[Ano previsto para início],2022) -> 0 | J15: =SUMIFS(PAPI20_22_23[Recurso financeiro estimado no ano (R$) - Cobrança Estadual],PAPI20_22_23[SubPDC],'Consolidaçao - 1'!H15,PAPI20_22_23[Ano previsto para início],2022) -> 0 | K15: =SUMIFS(PAPI20_22_23[Recurso financeiro estimado no ano (R$) - Cobrança Federal],PAPI20_22_23[SubPDC],'Consolidaçao - 1'!H15,PAPI20_22_23[Ano previsto para início],2022) -> 0 | L15: =SUMIFS(PAPI20_22_23[Recurso financeiro estimado no ano (R$) - Outras],PAPI20_22_23[SubPDC],'Consolidaçao - 1'!H15,PAPI20_22_23[Ano previsto para início],2022) -> 0 | M15: 0 | N15: =SUMIFS(PAPI20_22_23[Recurso financeiro estimado no ano (R$) - CFURH],PAPI20_22_23[SubPDC],'Consolidaçao - 1'!H15,PAPI20_22_23[Ano previsto para início],2023) -> 0 | O15: =SUMIFS(PAPI20_22_23[Recurso financeiro estimado no ano (R$) - Cobrança Estadual],PAPI20_22_23[SubPDC],'Consolidaçao - 1'!H15,PAPI20_22_23[Ano previsto para início],2023) -> 0 | P15: =SUMIFS(PAPI20_22_23[Recurso financeiro estimado no ano (R$) - Cobrança Federal],PAPI20_22_23[SubPDC],'Consolidaçao - 1'!H15,PAPI20_22_23[Ano previsto para início],2023) -> 0 | Q15: =SUMIFS(PAPI20_22_23[Recurso financeiro estimado no ano (R$) - Outras],PAPI20_22_23[SubPDC],'Consolidaçao - 1'!H15,PAPI20_22_23[Ano previsto para início],2023) -> 0 | R15: 0 | S15: 0
A16: 3.1 - Efluentes | B16: =SUMIFS(#REF!,#REF!,A16,#REF!,2021) ->  | C16: =SUMIFS(#REF!,#REF!,A16,#REF!,2021) ->  | D16: =SUMIFS(#REF!,#REF!,A16,#REF!,2021) ->  | E16: =SUMIFS(#REF!,#REF!,A16,#REF!,2021) ->  | H16: 4.1 - Erosão | I16: =SUMIFS(PAPI20_22_23[Recurso financeiro estimado no ano (R$) - CFURH],PAPI20_22_23[SubPDC],'Consolidaçao - 1'!H16,PAPI20_22_23[Ano previsto para início],2022) -> 0 | J16: =SUMIFS(PAPI20_22_23[Recurso financeiro estimado no ano (R$) - Cobrança Estadual],PAPI20_22_23[SubPDC],'Consolidaçao - 1'!H16,PAPI20_22_23[Ano previsto para início],2022) -> 0 | K16: =SUMIFS(PAPI20_22_23[Recurso financeiro estimado no ano (R$) - Cobrança Federal],PAPI20_22_23[SubPDC],'Consolidaçao - 1'!H16,PAPI20_22_23[Ano previsto para início],2022) -> 0 | L16: =SUMIFS(PAPI20_22_23[Recurso financeiro estimado no ano (R$) - Outras],PAPI20_22_23[SubPDC],'Consolidaçao - 1'!H16,PAPI20_22_23[Ano previsto para início],2022) -> 0 | M16: 0 | N16: =SUMIFS(PAPI20_22_23[Recurso financeiro estimado no ano (R$) - CFURH],PAPI20_22_23[SubPDC],'Consolidaçao - 1'!H16,PAPI20_22_23[Ano previsto para início],2023) -> 0 | O16: =SUMIFS(PAPI20_22_23[Recurso financeiro estimado no ano (R$) - Cobrança Estadual],PAPI20_22_23[SubPDC],'Consolidaçao - 1'!H16,PAPI20_22_23[Ano previsto para início],2023) -> 0 | P16: =SUMIFS(PAPI20_22_23[Recurso financeiro estimado no ano (R$) - Cobrança Federal],PAPI20_22_23[SubPDC],'Consolidaçao - 1'!H16,PAPI20_22_23[Ano previsto para início],2023) -> 0 | Q16: =SUMIFS(PAPI20_22_23[Recurso financeiro estimado no ano (R$) - Outras],PAPI20_22_23[SubPDC],'Consolidaçao - 1'!H16,PAPI20_22_23[Ano previsto para início],2023) -> 0 | R16: 0 | S16: 0
A17: 3.2 - Resíduos | B17: =SUMIFS(#REF!,#REF!,A17,#REF!,2021) ->  | C17: =SUMIFS(#REF!,#REF!,A17,#REF!,2021) ->  | D17: =SUMIFS(#REF!,#REF!,A17,#REF!,2021) ->  | E17: =SUMIFS(#REF!,#REF!,A17,#REF!,2021) ->  | H17: 4.2 - Conservação | I17: =SUMIFS(PAPI20_22_23[Recurso financeiro estimado no ano (R$) - CFURH],PAPI20_22_23[SubPDC],'Consolidaçao - 1'!H17,PAPI20_22_23[Ano previsto para início],2022) -> 0 | J17: =SUMIFS(PAPI20_22_23[Recurso financeiro estimado no ano (R$) - Cobrança Estadual],PAPI20_22_23[SubPDC],'Consolidaçao - 1'!H17,PAPI20_22_23[Ano previsto para início],2022) -> 0 | K17: =SUMIFS(PAPI20_22_23[Recurso financeiro estimado no ano (R$) - Cobrança Federal],PAPI20_22_23[SubPDC],'Consolidaçao - 1'!H17,PAPI20_22_23[Ano previsto para início],2022) -> 0 | L17: =SUMIFS(PAPI20_22_23[Recurso financeiro estimado no ano (R$) - Outras],PAPI20_22_23[SubPDC],'Consolidaçao - 1'!H17,PAPI20_22_23[Ano previsto para início],2022) -> 0 | M17: 0 | N17: =SUMIFS(PAPI20_22_23[Recurso financeiro estimado no ano (R$) - CFURH],PAPI20_22_23[SubPDC],'Consolidaçao - 1'!H17,PAPI20_22_23[Ano previsto para início],2023) -> 0 | O17: =SUMIFS(PAPI20_22_23[Recurso financeiro estimado no ano (R$) - Cobrança Estadual],PAPI20_22_23[SubPDC],'Consolidaçao - 1'!H17,PAPI20_22_23[Ano previsto para início],2023) -> 0 | P17: =SUMIFS(PAPI20_22_23[Recurso financeiro estimado no ano (R$) - Cobrança Federal],PAPI20_22_23[SubPDC],'Consolidaçao - 1'!H17,PAPI20_22_23[Ano previsto para início],2023) -> 0 | Q17: =SUMIFS(PAPI20_22_23[Recurso financeiro estimado no ano (R$) - Outras],PAPI20_22_23[SubPDC],'Consolidaçao - 1'!H17,PAPI20_22_23[Ano previsto para início],2023) -> 0 | R17: 0 | S17: 0
A18: 3.3 - Drenagem | B18: =SUMIFS(#REF!,#REF!,A18,#REF!,2021) ->  | C18: =SUMIFS(#REF!,#REF!,A18,#REF!,2021) ->  | D18: =SUMIFS(#REF!,#REF!,A18,#REF!,2021) ->  | E18: =SUMIFS(#REF!,#REF!,A18,#REF!,2021) ->  | H18: 4.3 - Mananciais | I18: =SUMIFS(PAPI20_22_23[Recurso financeiro estimado no ano (R$) - CFURH],PAPI20_22_23[SubPDC],'Consolidaçao - 1'!H18,PAPI20_22_23[Ano previsto para início],2022) -> 0 | J18: =SUMIFS(PAPI20_22_23[Recurso financeiro estimado no ano (R$) - Cobrança Estadual],PAPI20_22_23[SubPDC],'Consolidaçao - 1'!H18,PAPI20_22_23[Ano previsto para início],2022) -> 0 | K18: =SUMIFS(PAPI20_22_23[Recurso financeiro estimado no ano (R$) - Cobrança Federal],PAPI20_22_23[SubPDC],'Consolidaçao - 1'!H18,PAPI20_22_23[Ano previsto para início],2022) -> 0 | L18: =SUMIFS(PAPI20_22_23[Recurso financeiro estimado no ano (R$) - Outras],PAPI20_22_23[SubPDC],'Consolidaçao - 1'!H18,PAPI20_22_23[Ano previsto para início],2022) -> 0 | M18: 0 | N18: =SUMIFS(PAPI20_22_23[Recurso financeiro estimado no ano (R$) - CFURH],PAPI20_22_23[SubPDC],'Consolidaçao - 1'!H18,PAPI20_22_23[Ano previsto para início],2023) -> 0 | O18: =SUMIFS(PAPI20_22_23[Recurso financeiro estimado no ano (R$) - Cobrança Estadual],PAPI20_22_23[SubPDC],'Consolidaçao - 1'!H18,PAPI20_22_23[Ano previsto para início],2023) -> 0 | P18: =SUMIFS(PAPI20_22_23[Recurso financeiro estimado no ano (R$) - Cobrança Federal],PAPI20_22_23[SubPDC],'Consolidaçao - 1'!H18,PAPI20_22_23[Ano previsto para início],2023) -> 0 | Q18: =SUMIFS(PAPI20_22_23[Recurso financeiro estimado no ano (R$) - Outras],PAPI20_22_23[SubPDC],'Consolidaçao - 1'!H18,PAPI20_22_23[Ano previsto para início],2023) -> 0 | R18: 0 | S18: 0
A19: 3.4 - Erosão | B19: =SUMIFS(#REF!,#REF!,A19,#REF!,2021) ->  | C19: =SUMIFS(#REF!,#REF!,A19,#REF!,2021) ->  | D19: =SUMIFS(#REF!,#REF!,A19,#REF!,2021) ->  | E19: =SUMIFS(#REF!,#REF!,A19,#REF!,2021) ->  | H19: 5.1 - Perdas | I19: =SUMIFS(PAPI20_22_23[Recurso financeiro estimado no ano (R$) - CFURH],PAPI20_22_23[SubPDC],'Consolidaçao - 1'!H19,PAPI20_22_23[Ano previsto para início],2022) -> 0 | J19: =SUMIFS(PAPI20_22_23[Recurso financeiro estimado no ano (R$) - Cobrança Estadual],PAPI20_22_23[SubPDC],'Consolidaçao - 1'!H19,PAPI20_22_23[Ano previsto para início],2022) -> 0 | K19: =SUMIFS(PAPI20_22_23[Recurso financeiro estimado no ano (R$) - Cobrança Federal],PAPI20_22_23[SubPDC],'Consolidaçao - 1'!H19,PAPI20_22_23[Ano previsto para início],2022) -> 0 | L19: =SUMIFS(PAPI20_22_23[Recurso financeiro estimado no ano (R$) - Outras],PAPI20_22_23[SubPDC],'Consolidaçao - 1'!H19,PAPI20_22_23[Ano previsto para início],2022) -> 0 | M19: 0 | N19: =SUMIFS(PAPI20_22_23[Recurso financeiro estimado no ano (R$) - CFURH],PAPI20_22_23[SubPDC],'Consolidaçao - 1'!H19,PAPI20_22_23[Ano previsto para início],2023) -> 0 | O19: =SUMIFS(PAPI20_22_23[Recurso financeiro estimado no ano (R$) - Cobrança Estadual],PAPI20_22_23[SubPDC],'Consolidaçao - 1'!H19,PAPI20_22_23[Ano previsto para início],2023) -> 0 | P19: =SUMIFS(PAPI20_22_23[Recurso financeiro estimado no ano (R$) - Cobrança Federal],PAPI20_22_23[SubPDC],'Consolidaçao - 1'!H19,PAPI20_22_23[Ano previsto para início],2023) -> 0 | Q19: =SUMIFS(PAPI20_22_23[Recurso financeiro estimado no ano (R$) - Outras],PAPI20_22_23[SubPDC],'Consolidaçao - 1'!H19,PAPI20_22_23[Ano previsto para início],2023) -> 0 | R19: 0 | S19: 0
A20: 3.5 - Intervenções | B20: =SUMIFS(#REF!,#REF!,A20,#REF!,2021) ->  | C20: =SUMIFS(#REF!,#REF!,A20,#REF!,2021) ->  | D20: =SUMIFS(#REF!,#REF!,A20,#REF!,2021) ->  | E20: =SUMIFS(#REF!,#REF!,A20,#REF!,2021) ->  | H20: 5.2 - Racionalização | I20: =SUMIFS(PAPI20_22_23[Recurso financeiro estimado no ano (R$) - CFURH],PAPI20_22_23[SubPDC],'Consolidaçao - 1'!H20,PAPI20_22_23[Ano previsto para início],2022) -> 0 | J20: =SUMIFS(PAPI20_22_23[Recurso financeiro estimado no ano (R$) - Cobrança Estadual],PAPI20_22_23[SubPDC],'Consolidaçao - 1'!H20,PAPI20_22_23[Ano previsto para início],2022) -> 0 | K20: =SUMIFS(PAPI20_22_23[Recurso financeiro estimado no ano (R$) - Cobrança Federal],PAPI20_22_23[SubPDC],'Consolidaçao - 1'!H20,PAPI20_22_23[Ano previsto para início],2022) -> 0 | L20: =SUMIFS(PAPI20_22_23[Recurso financeiro estimado no ano (R$) - Outras],PAPI20_22_23[SubPDC],'Consolidaçao - 1'!H20,PAPI20_22_23[Ano previsto para início],2022) -> 0 | M20: 0 | N20: =SUMIFS(PAPI20_22_23[Recurso financeiro estimado no ano (R$) - CFURH],PAPI20_22_23[SubPDC],'Consolidaçao - 1'!H20,PAPI20_22_23[Ano previsto para início],2023) -> 0 | O20: =SUMIFS(PAPI20_22_23[Recurso financeiro estimado no ano (R$) - Cobrança Estadual],PAPI20_22_23[SubPDC],'Consolidaçao - 1'!H20,PAPI20_22_23[Ano previsto para início],2023) -> 0 | P20: =SUMIFS(PAPI20_22_23[Recurso financeiro estimado no ano (R$) - Cobrança Federal],PAPI20_22_23[SubPDC],'Consolidaçao - 1'!H20,PAPI20_22_23[Ano previsto para início],2023) -> 0 | Q20: =SUMIFS(PAPI20_22_23[Recurso financeiro estimado no ano (R$) - Outras],PAPI20_22_23[SubPDC],'Consolidaçao - 1'!H20,PAPI20_22_23[Ano previsto para início],2023) -> 0 | R20: 0 | S20: 0
A21: 4.1 - Mananciais | B21: =SUMIFS(#REF!,#REF!,A21,#REF!,2021) ->  | C21: =SUMIFS(#REF!,#REF!,A21,#REF!,2021) ->  | D21: =SUMIFS(#REF!,#REF!,A21,#REF!,2021) ->  | E21: =SUMIFS(#REF!,#REF!,A21,#REF!,2021) ->  | H21: 5.3 - Reuso | I21: =SUMIFS(PAPI20_22_23[Recurso financeiro estimado no ano (R$) - CFURH],PAPI20_22_23[SubPDC],'Consolidaçao - 1'!H21,PAPI20_22_23[Ano previsto para início],2022) -> 0 | J21: =SUMIFS(PAPI20_22_23[Recurso financeiro estimado no ano (R$) - Cobrança Estadual],PAPI20_22_23[SubPDC],'Consolidaçao - 1'!H21,PAPI20_22_23[Ano previsto para início],2022) -> 0 | K21: =SUMIFS(PAPI20_22_23[Recurso financeiro estimado no ano (R$) - Cobrança Federal],PAPI20_22_23[SubPDC],'Consolidaçao - 1'!H21,PAPI20_22_23[Ano previsto para início],2022) -> 0 | L21: =SUMIFS(PAPI20_22_23[Recurso financeiro estimado no ano (R$) - Outras],PAPI20_22_23[SubPDC],'Consolidaçao - 1'!H21,PAPI20_22_23[Ano previsto para início],2022) -> 0 | M21: 0 | N21: =SUMIFS(PAPI20_22_23[Recurso financeiro estimado no ano (R$) - CFURH],PAPI20_22_23[SubPDC],'Consolidaçao - 1'!H21,PAPI20_22_23[Ano previsto para início],2023) -> 0 | O21: =SUMIFS(PAPI20_22_23[Recurso financeiro estimado no ano (R$) - Cobrança Estadual],PAPI20_22_23[SubPDC],'Consolidaçao - 1'!H21,PAPI20_22_23[Ano previsto para início],2023) -> 0 | P21: =SUMIFS(PAPI20_22_23[Recurso financeiro estimado no ano (R$) - Cobrança Federal],PAPI20_22_23[SubPDC],'Consolidaçao - 1'!H21,PAPI20_22_23[Ano previsto para início],2023) -> 0 | Q21: =SUMIFS(PAPI20_22_23[Recurso financeiro estimado no ano (R$) - Outras],PAPI20_22_23[SubPDC],'Consolidaçao - 1'!H21,PAPI20_22_23[Ano previsto para início],2023) -> 0 | R21: 0 | S21: 0
A22: 4.2 - Vegetação | B22: =SUMIFS(#REF!,#REF!,A22,#REF!,2021) ->  | C22: =SUMIFS(#REF!,#REF!,A22,#REF!,2021) ->  | D22: =SUMIFS(#REF!,#REF!,A22,#REF!,2021) ->  | E22: =SUMIFS(#REF!,#REF!,A22,#REF!,2021) ->  | H22: 6.1 - Captação | I22: =SUMIFS(PAPI20_22_23[Recurso financeiro estimado no ano (R$) - CFURH],PAPI20_22_23[SubPDC],'Consolidaçao - 1'!H22,PAPI20_22_23[Ano previsto para início],2022) -> 0 | J22: =SUMIFS(PAPI20_22_23[Recurso financeiro estimado no ano (R$) - Cobrança Estadual],PAPI20_22_23[SubPDC],'Consolidaçao - 1'!H22,PAPI20_22_23[Ano previsto para início],2022) -> 0 | K22: =SUMIFS(PAPI20_22_23[Recurso financeiro estimado no ano (R$) - Cobrança Federal],PAPI20_22_23[SubPDC],'Consolidaçao - 1'!H22,PAPI20_22_23[Ano previsto para início],2022) -> 0 | L22: =SUMIFS(PAPI20_22_23[Recurso financeiro estimado no ano (R$) - Outras],PAPI20_22_23[SubPDC],'Consolidaçao - 1'!H22,PAPI20_22_23[Ano previsto para início],2022) -> 0 | M22: 0 | N22: =SUMIFS(PAPI20_22_23[Recurso financeiro estimado no ano (R$) - CFURH],PAPI20_22_23[SubPDC],'Consolidaçao - 1'!H22,PAPI20_22_23[Ano previsto para início],2023) -> 0 | O22: =SUMIFS(PAPI20_22_23[Recurso financeiro estimado no ano (R$) - Cobrança Estadual],PAPI20_22_23[SubPDC],'Consolidaçao - 1'!H22,PAPI20_22_23[Ano previsto para início],2023) -> 0 | P22: =SUMIFS(PAPI20_22_23[Recurso financeiro estimado no ano (R$) - Cobrança Federal],PAPI20_22_23[SubPDC],'Consolidaçao - 1'!H22,PAPI20_22_23[Ano previsto para início],2023) -> 0 | Q22: =SUMIFS(PAPI20_22_23[Recurso financeiro estimado no ano (R$) - Outras],PAPI20_22_23[SubPDC],'Consolidaçao - 1'!H22,PAPI20_22_23[Ano previsto para início],2023) -> 0 | R22: 0 | S22: 0
A23: 5.1 - Perdas | B23: =SUMIFS(#REF!,#REF!,A23,#REF!,2021) ->  | C23: =SUMIFS(#REF!,#REF!,A23,#REF!,2021) ->  | D23: =SUMIFS(#REF!,#REF!,A23,#REF!,2021) ->  | E23: =SUMIFS(#REF!,#REF!,A23,#REF!,2021) ->  | H23: 6.2 - Regularização | I23: =SUMIFS(PAPI20_22_23[Recurso financeiro estimado no ano (R$) - CFURH],PAPI20_22_23[SubPDC],'Consolidaçao - 1'!H23,PAPI20_22_23[Ano previsto para início],2022) -> 0 | J23: =SUMIFS(PAPI20_22_23[Recurso financeiro estimado no ano (R$) - Cobrança Estadual],PAPI20_22_23[SubPDC],'Consolidaçao - 1'!H23,PAPI20_22_23[Ano previsto para início],2022) -> 0 | K23: =SUMIFS(PAPI20_22_23[Recurso financeiro estimado no ano (R$) - Cobrança Federal],PAPI20_22_23[SubPDC],'Consolidaçao - 1'!H23,PAPI20_22_23[Ano previsto para início],2022) -> 0 | L23: =SUMIFS(PAPI20_22_23[Recurso financeiro estimado no ano (R$) - Outras],PAPI20_22_23[SubPDC],'Consolidaçao - 1'!H23,PAPI20_22_23[Ano previsto para início],2022) -> 0 | M23: 0 | N23: =SUMIFS(PAPI20_22_23[Recurso financeiro estimado no ano (R$) - CFURH],PAPI20_22_23[SubPDC],'Consolidaçao - 1'!H23,PAPI20_22_23[Ano previsto para início],2023) -> 0 | O23: =SUMIFS(PAPI20_22_23[Recurso financeiro estimado no ano (R$) - Cobrança Estadual],PAPI20_22_23[SubPDC],'Consolidaçao - 1'!H23,PAPI20_22_23[Ano previsto para início],2023) -> 0 | P23: =SUMIFS(PAPI20_22_23[Recurso financeiro estimado no ano (R$) - Cobrança Federal],PAPI20_22_23[SubPDC],'Consolidaçao - 1'!H23,PAPI20_22_23[Ano previsto para início],2023) -> 0 | Q23: =SUMIFS(PAPI20_22_23[Recurso financeiro estimado no ano (R$) - Outras],PAPI20_22_23[SubPDC],'Consolidaçao - 1'!H23,PAPI20_22_23[Ano previsto para início],2023) -> 0 | R23: 0 | S23: 0
A24: 5.2 - Racionalização | B24: =SUMIFS(#REF!,#REF!,A24,#REF!,2021) ->  | C24: =SUMIFS(#REF!,#REF!,A24,#REF!,2021) ->  | D24: =SUMIFS(#REF!,#REF!,A24,#REF!,2021) ->  | E24: =SUMIFS(#REF!,#REF!,A24,#REF!,2021) ->  | H24: 7.1 - Drenagem | I24: =SUMIFS(PAPI20_22_23[Recurso financeiro estimado no ano (R$) - CFURH],PAPI20_22_23[SubPDC],'Consolidaçao - 1'!H24,PAPI20_22_23[Ano previsto para início],2022) -> 0 | J24: =SUMIFS(PAPI20_22_23[Recurso financeiro estimado no ano (R$) - Cobrança Estadual],PAPI20_22_23[SubPDC],'Consolidaçao - 1'!H24,PAPI20_22_23[Ano previsto para início],2022) -> 0 | K24: =SUMIFS(PAPI20_22_23[Recurso financeiro estimado no ano (R$) - Cobrança Federal],PAPI20_22_23[SubPDC],'Consolidaçao - 1'!H24,PAPI20_22_23[Ano previsto para início],2022) -> 0 | L24: =SUMIFS(PAPI20_22_23[Recurso financeiro estimado no ano (R$) - Outras],PAPI20_22_23[SubPDC],'Consolidaçao - 1'!H24,PAPI20_22_23[Ano previsto para início],2022) -> 0 | M24: 0 | N24: =SUMIFS(PAPI20_22_23[Recurso financeiro estimado no ano (R$) - CFURH],PAPI20_22_23[SubPDC],'Consolidaçao - 1'!H24,PAPI20_22_23[Ano previsto para início],2023) -> 0 | O24: =SUMIFS(PAPI20_22_23[Recurso financeiro estimado no ano (R$) - Cobrança Estadual],PAPI20_22_23[SubPDC],'Consolidaçao - 1'!H24,PAPI20_22_23[Ano previsto para início],2023) -> 0 | P24: =SUMIFS(PAPI20_22_23[Recurso financeiro estimado no ano (R$) - Cobrança Federal],PAPI20_22_23[SubPDC],'Consolidaçao - 1'!H24,PAPI20_22_23[Ano previsto para início],2023) -> 0 | Q24: =SUMIFS(PAPI20_22_23[Recurso financeiro estimado no ano (R$) - Outras],PAPI20_22_23[SubPDC],'Consolidaçao - 1'!H24,PAPI20_22_23[Ano previsto para início],2023) -> 0 | R24: 0 | S24: 0
A25: 5.3 - Reuso | B25: =SUMIFS(#REF!,#REF!,A25,#REF!,2021) ->  | C25: =SUMIFS(#REF!,#REF!,A25,#REF!,2021) ->  | D25: =SUMIFS(#REF!,#REF!,A25,#REF!,2021) ->  | E25: =SUMIFS(#REF!,#REF!,A25,#REF!,2021) ->  | H25: 7.2 - Escassez | I25: =SUMIFS(PAPI20_22_23[Recurso financeiro estimado no ano (R$) - CFURH],PAPI20_22_23[SubPDC],'Consolidaçao - 1'!H25,PAPI20_22_23[Ano previsto para início],2022) -> 0 | J25: =SUMIFS(PAPI20_22_23[Recurso financeiro estimado no ano (R$) - Cobrança Estadual],PAPI20_22_23[SubPDC],'Consolidaçao - 1'!H25,PAPI20_22_23[Ano previsto para início],2022) -> 0 | K25: =SUMIFS(PAPI20_22_23[Recurso financeiro estimado no ano (R$) - Cobrança Federal],PAPI20_22_23[SubPDC],'Consolidaçao - 1'!H25,PAPI20_22_23[Ano previsto para início],2022) -> 0 | L25: =SUMIFS(PAPI20_22_23[Recurso financeiro estimado no ano (R$) - Outras],PAPI20_22_23[SubPDC],'Consolidaçao - 1'!H25,PAPI20_22_23[Ano previsto para início],2022) -> 0 | M25: 0 | N25: =SUMIFS(PAPI20_22_23[Recurso financeiro estimado no ano (R$) - CFURH],PAPI20_22_23[SubPDC],'Consolidaçao - 1'!H25,PAPI20_22_23[Ano previsto para início],2023) -> 0 | O25: =SUMIFS(PAPI20_22_23[Recurso financeiro estimado no ano (R$) - Cobrança Estadual],PAPI20_22_23[SubPDC],'Consolidaçao - 1'!H25,PAPI20_22_23[Ano previsto para início],2023) -> 0 | P25: =SUMIFS(PAPI20_22_23[Recurso financeiro estimado no ano (R$) - Cobrança Federal],PAPI20_22_23[SubPDC],'Consolidaçao - 1'!H25,PAPI20_22_23[Ano previsto para início],2023) -> 0 | Q25: =SUMIFS(PAPI20_22_23[Recurso financeiro estimado no ano (R$) - Outras],PAPI20_22_23[SubPDC],'Consolidaçao - 1'!H25,PAPI20_22_23[Ano previsto para início],2023) -> 0 | R25: 0 | S25: 0
A26: 6.1 - Usos | B26: =SUMIFS(#REF!,#REF!,A26,#REF!,2021) ->  | C26: =SUMIFS(#REF!,#REF!,A26,#REF!,2021) ->  | D26: =SUMIFS(#REF!,#REF!,A26,#REF!,2021) ->  | E26: =SUMIFS(#REF!,#REF!,A26,#REF!,2021) ->  | H26: 8.1 - Capacitação | I26: =SUMIFS(PAPI20_22_23[Recurso financeiro estimado no ano (R$) - CFURH],PAPI20_22_23[SubPDC],'Consolidaçao - 1'!H26,PAPI20_22_23[Ano previsto para início],2022) -> 0 | J26: =SUMIFS(PAPI20_22_23[Recurso financeiro estimado no ano (R$) - Cobrança Estadual],PAPI20_22_23[SubPDC],'Consolidaçao - 1'!H26,PAPI20_22_23[Ano previsto para início],2022) -> 0 | K26: =SUMIFS(PAPI20_22_23[Recurso financeiro estimado no ano (R$) - Cobrança Federal],PAPI20_22_23[SubPDC],'Consolidaçao - 1'!H26,PAPI20_22_23[Ano previsto para início],2022) -> 0 | L26: =SUMIFS(PAPI20_22_23[Recurso financeiro estimado no ano (R$) - Outras],PAPI20_22_23[SubPDC],'Consolidaçao - 1'!H26,PAPI20_22_23[Ano previsto para início],2022) -> 0 | M26: 0 | N26: =SUMIFS(PAPI20_22_23[Recurso financeiro estimado no ano (R$) - CFURH],PAPI20_22_23[SubPDC],'Consolidaçao - 1'!H26,PAPI20_22_23[Ano previsto para início],2023) -> 0 | O26: =SUMIFS(PAPI20_22_23[Recurso financeiro estimado no ano (R$) - Cobrança Estadual],PAPI20_22_23[SubPDC],'Consolidaçao - 1'!H26,PAPI20_22_23[Ano previsto para início],2023) -> 0 | P26: =SUMIFS(PAPI20_22_23[Recurso financeiro estimado no ano (R$) - Cobrança Federal],PAPI20_22_23[SubPDC],'Consolidaçao - 1'!H26,PAPI20_22_23[Ano previsto para início],2023) -> 0 | Q26: =SUMIFS(PAPI20_22_23[Recurso financeiro estimado no ano (R$) - Outras],PAPI20_22_23[SubPDC],'Consolidaçao - 1'!H26,PAPI20_22_23[Ano previsto para início],2023) -> 0 | R26: 0 | S26: 0
A27: 6.2 - Segurança | B27: =SUMIFS(#REF!,#REF!,A27,#REF!,2021) ->  | C27: =SUMIFS(#REF!,#REF!,A27,#REF!,2021) ->  | D27: =SUMIFS(#REF!,#REF!,A27,#REF!,2021) ->  | E27: =SUMIFS(#REF!,#REF!,A27,#REF!,2021) ->  | H27: 8.2 - Educação | I27: =SUMIFS(PAPI20_22_23[Recurso financeiro estimado no ano (R$) - CFURH],PAPI20_22_23[SubPDC],'Consolidaçao - 1'!H27,PAPI20_22_23[Ano previsto para início],2022) -> 0 | J27: =SUMIFS(PAPI20_22_23[Recurso financeiro estimado no ano (R$) - Cobrança Estadual],PAPI20_22_23[SubPDC],'Consolidaçao - 1'!H27,PAPI20_22_23[Ano previsto para início],2022) -> 0 | K27: =SUMIFS(PAPI20_22_23[Recurso financeiro estimado no ano (R$) - Cobrança Federal],PAPI20_22_23[SubPDC],'Consolidaçao - 1'!H27,PAPI20_22_23[Ano previsto para início],2022) -> 0 | L27: =SUMIFS(PAPI20_22_23[Recurso financeiro estimado no ano (R$) - Outras],PAPI20_22_23[SubPDC],'Consolidaçao - 1'!H27,PAPI20_22_23[Ano previsto para início],2022) -> 0 | M27: 0 | N27: =SUMIFS(PAPI20_22_23[Recurso financeiro estimado no ano (R$) - CFURH],PAPI20_22_23[SubPDC],'Consolidaçao - 1'!H27,PAPI20_22_23[Ano previsto para início],2023) -> 0 | O27: =SUMIFS(PAPI20_22_23[Recurso financeiro estimado no ano (R$) - Cobrança Estadual],PAPI20_22_23[SubPDC],'Consolidaçao - 1'!H27,PAPI20_22_23[Ano previsto para início],2023) -> 0 | P27: =SUMIFS(PAPI20_22_23[Recurso financeiro estimado no ano (R$) - Cobrança Federal],PAPI20_22_23[SubPDC],'Consolidaçao - 1'!H27,PAPI20_22_23[Ano previsto para início],2023) -> 0 | Q27: =SUMIFS(PAPI20_22_23[Recurso financeiro estimado no ano (R$) - Outras],PAPI20_22_23[SubPDC],'Consolidaçao - 1'!H27,PAPI20_22_23[Ano previsto para início],2023) -> 0 | R27: 0 | S27: 0
A28: 6.3 - Aproveitamento | B28: =SUMIFS(#REF!,#REF!,A28,#REF!,2021) ->  | C28: =SUMIFS(#REF!,#REF!,A28,#REF!,2021) ->  | D28: =SUMIFS(#REF!,#REF!,A28,#REF!,2021) ->  | E28: =SUMIFS(#REF!,#REF!,A28,#REF!,2021) ->  | H28: 8.3 - Comunicação | I28: =SUMIFS(PAPI20_22_23[Recurso financeiro estimado no ano (R$) - CFURH],PAPI20_22_23[SubPDC],'Consolidaçao - 1'!H28,PAPI20_22_23[Ano previsto para início],2022) -> 0 | J28: =SUMIFS(PAPI20_22_23[Recurso financeiro estimado no ano (R$) - Cobrança Estadual],PAPI20_22_23[SubPDC],'Consolidaçao - 1'!H28,PAPI20_22_23[Ano previsto para início],2022) -> 0 | K28: =SUMIFS(PAPI20_22_23[Recurso financeiro estimado no ano (R$) - Cobrança Federal],PAPI20_22_23[SubPDC],'Consolidaçao - 1'!H28,PAPI20_22_23[Ano previsto para início],2022) -> 0 | L28: =SUMIFS(PAPI20_22_23[Recurso financeiro estimado no ano (R$) - Outras],PAPI20_22_23[SubPDC],'Consolidaçao - 1'!H28,PAPI20_22_23[Ano previsto para início],2022) -> 0 | M28: 0 | N28: =SUMIFS(PAPI20_22_23[Recurso financeiro estimado no ano (R$) - CFURH],PAPI20_22_23[SubPDC],'Consolidaçao - 1'!H28,PAPI20_22_23[Ano previsto para início],2023) -> 0 | O28: =SUMIFS(PAPI20_22_23[Recurso financeiro estimado no ano (R$) - Cobrança Estadual],PAPI20_22_23[SubPDC],'Consolidaçao - 1'!H28,PAPI20_22_23[Ano previsto para início],2023) -> 0 | P28: =SUMIFS(PAPI20_22_23[Recurso financeiro estimado no ano (R$) - Cobrança Federal],PAPI20_22_23[SubPDC],'Consolidaçao - 1'!H28,PAPI20_22_23[Ano previsto para início],2023) -> 0 | Q28: =SUMIFS(PAPI20_22_23[Recurso financeiro estimado no ano (R$) - Outras],PAPI20_22_23[SubPDC],'Consolidaçao - 1'!H28,PAPI20_22_23[Ano previsto para início],2023) -> 0 | R28: 0 | S28: 0
A29: 7.1 - Criticidades | B29: =SUMIFS(#REF!,#REF!,A29,#REF!,2021) ->  | C29: =SUMIFS(#REF!,#REF!,A29,#REF!,2021) ->  | D29: =SUMIFS(#REF!,#REF!,A29,#REF!,2021) ->  | E29: =SUMIFS(#REF!,#REF!,A29,#REF!,2021) -> 
A30: 7.2 - Inundações | B30: =SUMIFS(#REF!,#REF!,A30,#REF!,2021) ->  | C30: =SUMIFS(#REF!,#REF!,A30,#REF!,2021) ->  | D30: =SUMIFS(#REF!,#REF!,A30,#REF!,2021) ->  | E30: =SUMIFS(#REF!,#REF!,A30,#REF!,2021) ->  | H30: Delib. 246 | I30: PDC 1 e 2 | J30: Prioritário | K30: Não Prioritário
A31: 7.3 - Estiagens | B31: =SUMIFS(#REF!,#REF!,A31,#REF!,2021) ->  | C31: =SUMIFS(#REF!,#REF!,A31,#REF!,2021) ->  | D31: =SUMIFS(#REF!,#REF!,A31,#REF!,2021) ->  | E31: =SUMIFS(#REF!,#REF!,A31,#REF!,2021) ->  | H31: SubPDC | I31: =SUMIF(#REF!,I$30,PAPI20_22_23[Recurso financeiro estimado no ano (R$)]) ->  | J31: =SUMIF(#REF!,J$30,PAPI20_22_23[Recurso financeiro estimado no ano (R$)]) ->  | K31: =SUMIF(#REF!,K$30,PAPI20_22_23[Recurso financeiro estimado no ano (R$)]) -> 
A32: 8.1 - Capacitação | B32: =SUMIFS(#REF!,#REF!,A32,#REF!,2021) ->  | C32: =SUMIFS(#REF!,#REF!,A32,#REF!,2021) ->  | D32: =SUMIFS(#REF!,#REF!,A32,#REF!,2021) ->  | E32: =SUMIFS(#REF!,#REF!,A32,#REF!,2021) ->  | I32: =IFERROR(I31/SUM(I31:K31),"") ->  | J32: =IFERROR(J31/SUM(I31:K31),"") ->  | K32: =IFERROR(K31/SUM(I31:K31),"") -> 
A33: 8.2 - Educação | B33: =SUMIFS(#REF!,#REF!,A33,#REF!,2021) ->  | C33: =SUMIFS(#REF!,#REF!,A33,#REF!,2021) ->  | D33: =SUMIFS(#REF!,#REF!,A33,#REF!,2021) ->  | E33: =SUMIFS(#REF!,#REF!,A33,#REF!,2021) -> 
A34: 8.3 - Comunicação | B34: =SUMIFS(#REF!,#REF!,A34,#REF!,2021) ->  | C34: =SUMIFS(#REF!,#REF!,A34,#REF!,2021) ->  | D34: =SUMIFS(#REF!,#REF!,A34,#REF!,2021) ->  | E34: =SUMIFS(#REF!,#REF!,A34,#REF!,2021) -> 
A36: Delib. 190 | B36: PDC 1 e 2 | C36: Prioritário | D36: Não Prioritário
A37: SubPDC | B37: =SUMIF(#REF!,B$36,#REF!) ->  | C37: =SUMIF(#REF!,C$36,#REF!) ->  | D37: =SUMIF(#REF!,D$36,#REF!) -> 
B38: =B37/SUM(B37:D37) ->  | C38: =C37/SUM(B37:D37) ->  | D38: =D37/SUM(B37:D37) -> 

Sheet Consolidaçao - 2 (hidden)
A1: Para atualizar, vá em Dados --> Atualizar Tudo ou aperte
A2: CTRL + Alt + F5

Sheet Orientações
C1: MELHOR VISUALIZADO no Office 365
C3: Este modelo de PAPI para o quadriênio 2024-2027 tem uma estrutura distinta dos enviados nos outros períodos/anos, pois ele contempla tanto o PAPI 24-27 e seu acompanhamento, quanto o acompanhamento do PAPI anterior.
C4: Está dividido em multiplas planilhas ("abas"), estruturadas em dois grupos: PAPI 24-27 e PAPI 20-23 (Acompanhamento). A expectativa é que a mesma planilha sirva para todo o quadriênio.
B8: A | C8: PAPI 2024-2027
C9: Compreende quatro planilhas ("abas") e se refere ao planejamento e acompanhamento do PAPI - 24-27.
B10: 1 | C10: Identificação das ações - 24-27" - Compreende a indicação das ações previstas para o PAPI 2024-2027. Sugere-se a indicação do que será produzido/realizado com o recurso pleiteado, considerando a esfera de atuação direta do CBH. Envolve um fluxo de atividades a serem executadas para entregar um produto final. Preencher TODAS informações das colunas também de forma sequencial (esquerda para direita).
B11: 2 | C11: Acompanhamento das metas 24-27 - Compreende a indicação e o acompanhamento da execução das Metas (do quadriênio e anuais).Devem ser quantificáveis e mensuráveis por meio de indicadores que reflitam as mudanças para as quais espera-se que as intervenções previstos pelas ações propostas influenciem.
B12: 3 | C12: Acomp. Financeiro 24-27 - Acompanhamento das previsões dos valores (R$) planejados, disponbilizados e executados. Para esta primeira etapa, só precisam ser preenchidos os valores Planejados (colunas em roxo). O acompanhamento se dará ao longo do quadriênio.
B13: 4 | C13: PAPI 2024-2027 - Resultado automático do preenchimento anterior. Somente as ações sem recursos financeiros previstos deve ser preenchida. As demais são inseridas automaticamente. É o conteúdo mínimo do PAPI 24/27 que deve ser deliberado e referendado nas revisões anuais.
B15: B | C15: ACOMPANHAMENTO - PAPI 20-23
C16: Compreende o acompanhamento das ações iniciadas no quadriênio anterior. Como grande parte delas ainda está em execução, ideal é monitorar, na medida do possível, sua execução.
B17: 1 | C17: Serão utilizadas as mesmas planilhas do ano anterior, que devem ser incorporadas no presente arquivo. Observar as duas colunas na cor roxa, relativa ao acompanhamento 2024. As outras colunas devem ser copiadas do último PAPI aprovado. Como se trata do acompanhamento de 2024 dessas ações, só será iniciado em 2025.

Sheet Acomp. - PAPI_21 (Delib. 190)
A1: ID Ação | B1: Ano | C1: SubPDC | D1: Prioridade do SubPDC | E1: Ação | F1: Meta | G1: % Execução da meta | H1: Segmento do executor | I1: Área de abrangência | J1: Nome da área de abrangência | K1: Recurso financeiro executado no ano (R$) | L1: Justificativa sobre execução física e financeira em 2024

Sheet Acomp. PAPI_22_23 (Delib. 246)
A1: ID Ação | B1: Ano | C1: SubPDC | D1: Prioridade do SubPDC | E1: Ação | F1: Meta | G1: % Execução da meta | H1: Segmento do executor | I1: Área de abrangência | J1: Nome da área de abrangência | K1: Justificativa sobre execução física e financeira em 2024

Sheet Operacional
B1: SubPDC - Delib.CRH N° 190 /2016 | C1: SubPDC - Delib.CRH N° 246/2021 | E1: Area | F1: Executor | G1: Fonte | I1: Tipo de Ação | K1: Prioridade | M1: Fonte
B2: 1.1 - SI | C2: Não se aplica | E2: APRM | F2: Estado | G2: CFURH | I2: Obra | K2: Não prioritário | M2: FEHIDRO - Cobrança estadual
B3: 1.2 - Planejamento | C3: 1.1 - Legislação | E3: Aquífero | F3: Município | G3: Cobrança Estadual | I3: Serviços | K3: PDC 1 e 2 | M3: FEHIDRO - CFURH
B4: 1.3 - Enquadramento | C4: 1.2 - Planejamento | E4: Área rural | F4: Sociedade Civil | G4: Outras | I4: Projeto Básico/Executivo | K4: Prioritário | M4: Cobrança Federal
B5: 1.4 - Monitoramento | C5: 2.1 - Plano | E5: Área urbana | F5: Município e Sociedade Civil | G5: Cobrança Federal | I5: Estudo/Diagnóstico | M5: Tesouro do Estado
B6: 1.5 - Disponibilidade | C6: 2.2 - Outorga | E6: Bacia | F6: Estado e Município | I6: Capacitação | M6: Fundo especial de despesa
B7: 1.6 - Legislação | C7: 2.3 - Cobrança | E7: Corpo hídrico | F7: Estado e Sociedade Civil | M7: Recursos da administração indireta
B8: 1.7 - Poluição | C8: 2.4 - Enquadramento | E8: Município | F8: Estado, Município e Sociedade Civil | M8: Recursos vinculados federais
B9: 2.1 - Planos | C9: 2.5 - Redes de monitoramento e SI | E9: Região Hidrográfica | F9: Iniciativa privada | M9: Operações de crédito
B10: 2.2 - Outorga | C10: 2.6 - Integração | E10: Sub-bacia | M10: Recursos privados da sociedade civil
B11: 2.3 - Cobrança | C11: 2.7 - CORHI | E11: UGRHi | M11: Recursos de instrumentos de fomento
B12: 2.4 - Efetivação | C12: 3.1 - Efluentes | E12: Outra | M12: Outras fontes
B13: 2.5 - Integração | C13: 3.2 - Poluição
B14: 2.6 - CORHI | C14: 3.3 - Resíduos
B15: 3.1 - Efluentes | C15: 3.4 - Intervenções
B16: 3.2 - Resíduos | C16: 4.1 - Controle erosão | G16: PRIORIDADE
B17: 3.3 - Drenagem | C17: 4.2 - Soluções baseadas Natureza | G17: PDC 1 e 2
B18: 3.4 - Erosão | C18: 4.3 - Mananciais | G18: Prioritário
B19: 3.5 - Intervenções | C19: 5.1 - Perdas | G19: Não prioritário
B20: 4.1 - Mananciais | C20: 5.2 - Racionalização
B21: 4.2 - Vegetação | C21: 5.3 - Reuso | E21: Area
B22: 5.1 - Perdas | C22: 6.1 - Captação | E22: APRM
B23: 5.2 - Racionalização | C23: 6.2 - Regularização | E23: Aquífero
B24: 5.3 - Reuso | C24: 7.1 - Drenagem | E24: Área rural (via de circulação; rodovia; distrito; etc.)
B25: 6.1 - Usos | C25: 7.2 - Escassez | E25: Área urbana (bairro; via de circulação; distrito; praça; parque; etc.)
B26: 6.2 - Segurança | C26: 8.1 - Capacitação | E26: Bacia
B27: 6.3 - Aproveitamento | C27: 8.2 - Educação | E27: Corpo hídrico
B28: 7.1 - Criticidades | C28: 8.3 - Comunicação | E28: Município
B29: 7.2 - Inundações | E29: Região Hidrográfica
B30: 7.3 - Estiagens | E30: Sub-bacia
B31: 8.1 - Capacitação | E31: UGRHi
B32: 8.2 - Educação
B33: 8.3 - Comunicação
B36: Delib. CRH N° 246/2021 | BL36: Delib. CRH N° 190/2016, revogada a partir de 31/12/21
A37: Não se aplica | B37: 1.1 - Legislação | C37: 1.2 - Planejamento | D37: 2.1 - Plano | E37: 2.2 - Outorga | F37: 2.3 - Cobrança | G37: 2.4 - Enquadramento | H37: 2.5 - Redes de monitoramento e SI | I37: 2.6 - Integração | J37: 2.7 - CORHI | K37: 3.1 - Efluentes | L37: 3.2 - Poluição | M37: 3.3 - Resíduos | N37: 3.4 - Intervenções | O37: 4.1 - Controle erosão | P37: 4.2 - Soluções baseadas Natureza | Q37: 4.3 - Mananciais | R37: 5.1 - Perdas | S37: 5.2 - Racionalização | T37: 5.3 - Reuso | U37: 6.1 - Captação | V37: 6.2 - Regularização | W37: 7.1 - Drenagem | X37: 7.2 - Escassez | Y37: 8.1 - Capacitação | Z37: 8.2 - Educação | AA37: 8.3 - Comunicação | BH37: 2020 | BI37: 2021 | BL37: 1.1 - SI | BM37: 1.2 - Planejamento | BN37: 1.3 - Enquadramento | BO37: 1.4 - Monitoramento | BP37: 1.5 - Disponibilidade | BQ37: 1.6 - Legislação | BR37: 1.7 - Poluição | BS37: 2.1 - Planos | BT37: 2.2 - Outorga | BU37: 2.3 - Cobrança | BV37: 2.4 - Efetivação | BW37: 2.5 - Integração | BX37: 2.6 - CORHI | BY37: 3.1 - Efluentes | BZ37: 3.2 - Resíduos | CA37: 3.3 - Drenagem | CB37: 3.4 - Erosão | CC37: 3.5 - Intervenções | CD37: 4.1 - Mananciais | CE37: 4.2 - Vegetação | CF37: 5.1 - Perdas | CG37: 5.2 - Racionalização | CH37: 5.3 - Reuso | CI37: 6.1 - Usos | CJ37: 6.2 - Segurança | CK37: 6.3 - Aproveitamento | CL37: 7.1 - Criticidades | CM37: 7.2 - Inundações | CN37: 7.3 - Estiagens | CO37: 8.1 - Capacitação | CP37: 8.2 - Educação | CQ37: 8.3 - Comunicação
A38: Não se aplica | B38: PDC 1 e 2 | C38: PDC 1 e 2 | D38: PDC 1 e 2 | E38: PDC 1 e 2 | F38: PDC 1 e 2 | G38: PDC 1 e 2 | H38: PDC 1 e 2 | I38: PDC 1 e 2 | J38: PDC 1 e 2 | K38: Prioritário | L38: Prioritário | M38: Prioritário | N38: Prioritário | O38: Prioritário | P38: Prioritário | Q38: Prioritário | R38: Prioritário | S38: Prioritário | T38: Prioritário | U38: Prioritário | V38: Prioritário | W38: Prioritário | X38: Prioritário | Y38: Prioritário | Z38: Prioritário | AA38: Prioritário | BH38: 1.1 | BI38: 1.1 | BL38: PDC 1 e 2 | BM38: PDC 1 e 2 | BN38: PDC 1 e 2 | BO38: PDC 1 e 2 | BP38: PDC 1 e 2 | BQ38: PDC 1 e 2 | BR38: PDC 1 e 2 | BS38: PDC 1 e 2 | BT38: PDC 1 e 2 | BU38: PDC 1 e 2 | BV38: PDC 1 e 2 | BW38: PDC 1 e 2 | BX38: PDC 1 e 2 | BY38: Prioritário | BZ38: Prioritário | CA38: Prioritário | CB38: Prioritário | CC38: Prioritário | CD38: Prioritário | CE38: Prioritário | CF38: Prioritário | CG38: Prioritário | CH38: Prioritário | CI38: Prioritário | CJ38: Prioritário | CK38: Prioritário | CL38: Prioritário | CM38: Prioritário | CN38: Prioritário | CO38: Prioritário | CP38: Prioritário | CQ38: Prioritário
K39: Não prioritário | L39: Não prioritário | M39: Não prioritário | N39: Não prioritário | O39: Não prioritário | P39: Não prioritário | Q39: Não prioritário | R39: Não prioritário | S39: Não prioritário | T39: Não prioritário | U39: Não prioritário | V39: Não prioritário | W39: Não prioritário | X39: Não prioritário | Y39: Não prioritário | Z39: Não prioritário | AA39: Não prioritário | BH39: 1.2 | BI39: 1.2 | BY39: Não prioritário | BZ39: Não prioritário | CA39: Não prioritário | CB39: Não prioritário | CC39: Não prioritário | CD39: Não prioritário | CE39: Não prioritário | CF39: Não prioritário | CG39: Não prioritário | CH39: Não prioritário | CI39: Não prioritário | CJ39: Não prioritário | CK39: Não prioritário | CL39: Não prioritário | CM39: Não prioritário | CN39: Não prioritário | CO39: Não prioritário | CP39: Não prioritário | CQ39: Não prioritário
BH40: 1.3 | BI40: 1.3
BH41: 1.4 | BI41: 1.4
BH42: 1.5 | BI42: 1.5
BH43: 1.6 | BI43: 1.6
BH44: 1.7 | BI44: 1.7
A45: Sim | B45: Não | BH45: 2.1 | BI45: 2.1
A46: Sim | B46: Sim | BH46: 2.2 | BI46: 2.2
B47: Não | BH47: 2.3 | BI47: 2.3
BH48: 2.4 | BI48: 2.4
BH49: 2.5 | BI49: 2.5
BH50: 2.6 | BI50: 2.6
A51: Não se aplica | B51: Não se aplica | BH51: 3.1 | BI51: 3.1
A52: 1.1 - Legislação | B52: PDC 1 e 2 | BH52: 3.2 | BI52: 3.2
A53: 1.2 - Planejamento | BH53: 3.3 | BI53: 3.3
A54: 2.1 - Plano | BH54: 3.4 | BI54: 3.4
A55: 2.2 - Outorga | BH55: 3.5 | BI55: 3.5
A56: 2.3 - Cobrança | BH56: 4.1 | BI56: 4.1
A57: 2.4 - Enquadramento | BH57: 4.2 | BI57: 4.2
A58: 2.6 - Integração | BH58: 5.1 | BI58: 5.1
A59: 2.7 - CORHI | BH59: 5.2 | BI59: 5.2
A60: 3.1 - Efluentes | BH60: 5.3 | BI60: 5.3
A61: 3.2 - Poluição | BH61: 6.1 | BI61: 6.1
A62: 3.3 - Resíduos | BH62: 6.2 | BI62: 6.2
A63: 3.4 - Intervenções | BH63: 6.3 | BI63: 6.3
A64: 4.1 - Erosão | BH64: 7.1 | BI64: 7.1
A65: 4.2 - Conservação | BH65: 7.2 | BI65: 7.2
A66: 4.3 - Mananciais | BH66: 7.3 | BI66: 7.3
A67: 5.1 - Perdas | BH67: 8.1 | BI67: 8.1
A68: 5.2 - Racionalização | BH68: 8.2 | BI68: 8.2
A69: 5.3 - Reuso | BH69: 8.3 | BI69: 8.3
A70: 6.1 - Captação
A71: 6.2 - Regularização
A72: 7.1 - Drenagem
A73: 7.2 - Escassez
A74: 8.1 - Capacitação
A75: 8.2 - Educação
A76: 8.3 - Comunicação

Sheet Explicativo (hidden)
A1: Explicativo | B1: Função
A2: sheet PAPI_20_21
A3: Coluna A | B3: PDCs da Delib. CRH 190/2016 = lista suspensa (Operacional)
A4: Coluna B | B4: subPDCs da Delib. CRH 190/2016 = lista suspensa (Operacional)
A5: Coluna E | B5: formatação condicional para % = % tem que coincidir com o informado pelo CBH na Coluna O (Execução)
A6: Coluna F | B6: categorias de Executores de Empreendimentos Fehidro = lista suspensa (Operacional)
A7: Coluna G | B7: Área de abrangencia = delimitações possível em mapeamento = lista suspensa (Operacional)
A8: Coluna H | B8: Nome da área de abrangencia conforme consta no Empreendimento Fehidro ou TR ou similar (preenchimento livre)
A9: Coluna I | B9: R$ total que consta no PAPI vigente aprovado pelo CBH no RS
A10: Coluna J | B10: R$ total disponibilizado para investimento conforme Deliberação do COFEHIDRO
A11: Coluna K | B11: R$ total efetivamente pago/repassado neste exercício (Coluna L) ao Executor da Ação = tem que coincidir com informações do SINFehidro Quando R$ de K é maior que R$ de I, valor é destacado em vermelho = CBH tem que explicar a extrapolação dos recursos
A12: Coluna L | B12: ano/exercício ao qual se referem os dados informados
A13: Coluna M | B13: categorias de Fontes de recursos para os Executores da Ação = lista suspensa (Operacional)
A14: Coluna N | B14: Nome da Fonte de recursos conforme consta no Empreendimento Fehidro ou TR ou similar = tem que coincidir com informações do SinFEHIDRO
A15: Coluna O | B15: Informações relevantes sobre a execução Física e Financeira da Ação = tem que coincidir com a execução do Empreendimento e informações do SinFEHIDRO
A17: sheet PAPI_22_23
A18: Coluna A | B18: PDCs da Delib. CRH 246/2021 = lista suspensa (Operacional)
A19: Coluna B | B19: subPDCs da Delib. CRH 246/2021 = lista suspensa (Operacional)
A20: Coluna E | B20: formatação condicional para % = % tem que coincidir com o informado pelo CBH na Coluna O (Execução)
A21: Coluna F | B21: categorias de Executores de Empreendimentos Fehidro = lista suspensa (Operacional)
A22: Coluna G | B22: Área de abrangencia = delimitações possível em mapeamento = lista suspensa (Operacional)
A23: Coluna H | B23: Nome da área de abrangencia conforme consta no Empreendimento Fehidro ou TR ou similar (preenchimento livre)
A24: Coluna I | B24: R$ total que consta no PAPI vigente aprovado pelo CBH no RS
A25: Coluna J | B25: R$ total disponibilizado para investimento conforme Deliberação do COFEHIDRO
A26: Coluna K | B26: R$ total efetivamente pago/repassado neste exercício (Coluna L) ao Executor da Ação = tem que coincidir com informações do SINFehidro Quando R$ de K é maior que R$ de I, valor é destacado em vermelho = CBH tem que explicar a extrapolação dos recursos
A27: Coluna L | B27: ano/exercício ao qual se referem os dados informados
A28: Coluna M | B28: categorias de Fontes de recursos para os Executores da Ação = lista suspensa (Operacional)
A29: Coluna N | B29: Nome da Fonte de recursos conforme consta no Empreendimento Fehidro ou TR ou similar = tem que coincidir com informações do SinFEHIDRO
A30: Coluna O | B30: Informações relevantes sobre a execução Física e Financeira da Ação = tem que coincidir com a execução do Empreendimento e informações do SinFEHIDRO
A32: sheet Consolidação | B32: DEVE SER BLOQUEADA PARA ALTERAÇÕES
A34: Coluna A | B34: PDCs da Delib. CRH 190/2016 = lista suspensa (Operacional)
A35: Colunas B C D | B35: Cálculos com os valores de Recurso financeiro Executado 2020 (sheet PAPI_20_21; Coluna K) para cada fonte FEHIDRO e para outras (soma da demais fontes)
A36: Colunas E F G | B36: Cálculos com os valores de Recurso financeiro Executado 2021 (sheet PAPI_20_21; Coluna K) para cada fonte FEHIDRO e para outras (soma da demais fontes)
A37: Coluna H | B37: PDCs da Delib. CRH 246/2021 = lista suspensa (Operacional)
A38: Colunas H I J | B38: Cálculos com os valores de Recurso financeiro Executado 2022 (sheet PAPI_22_23; Coluna K) para cada fonte FEHIDRO e para outras (soma da demais fontes)
A39: Colunas K L M | B39: Cálculos com os valores de Recurso financeiro Executado 2023 (sheet PAPI_22_23; Coluna K) para cada fonte FEHIDRO e para outras (soma da demais fontes)

Sheet de-para 246 190 (hidden)
A1: 246 | B1: 190 | C1: Coluna1 | E1: 246 | F1: 190 | G1: Coluna1 | H1: Coluna12 | J1: 190 | K1: 246 | M1: 190 | N1: 246
A2: 1.1 | B2: 1.6 | E2: 1.1 | F2: 1.6 | J2: 1.1 | K2: 2.5 | M2: 1.1 | N2: 2.5
A3: 1.2 | B3: 1.2 | E3: 1.2 | F3: 1.2 | G3: 1.5 | H3: 1.7 | J3: 1.2 | K3: 1.2 | M3: 1.2 | N3: 1.2
A4: 2.1 | B4: 2.1 | E4: 2.1 | F4: 2.1 | J4: 1.3 | K4: 2.4 | M4: 1.3 | N4: 2.4
A5: 2.2 | B5: 2.2 | E5: 2.2 | F5: 2.2 | J5: 1.4 | K5: 2.5 | M5: 1.4 | N5: 2.5
A6: 2.3 | B6: 2.3 | E6: 2.3 | F6: 2.3 | J6: 1.5 | K6: 6.1 | M6: 1.5 | N6: 1.2
A7: 2.4 | B7: 1.3 | E7: 2.4 | F7: 1.3 | G7: 2.4 | J7: 1.6 | K7: 1.1 | M7: 1.6 | N7: 1.1
A8: 2.4 | B8: 2.4 | E8: 2.5 | F8: 1.1 | G8: 1.4 | H8: 7.1 | J8: 1.7 | K8: 3.2 | M8: 1.7 | N8: 1.2
A9: 2.5 | B9: 1.1 | C9: 1.4 | E9: 2.6 | F9: 2.5 | J9: 2.1 | K9: 2.1 | M9: 2.1 | N9: 2.1
A10: 2.6 | B10: 2.5 | E10: 2.7 | F10: 2.6 | J10: 2.2 | K10: 2.2 | M10: 2.2 | N10: 2.2
A11: 2.7 | B11: 2.6 | E11: 3.1 | F11: 3.1 | J11: 2.3 | K11: 2.3 | M11: 2.3 | N11: 2.3
A12: 3.1 | B12: 3.1 | E12: 3.2 | J12: 2.4 | K12: 2.4 | M12: 2.4 | N12: 2.4
A13: 3.2 | B13: 1.7 | E13: 3.3 | F13: 3.2 | J13: 2.5 | K13: 2.6 | M13: 2.5 | N13: 2.6
A14: 3.3 | B14: 3.2 | E14: 3.4 | F14: 3.5 | J14: 2.6 | K14: 2.7 | M14: 2.6 | N14: 2.7
A15: 3.4 | B15: 3.5 | E15: 4.1 | F15: 3.4 | J15: 3.1 | K15: 3.1 | M15: 3.1 | N15: 3.1
A16: 4.1 | B16: 3.4 | E16: 4.2 | F16: 4.2 | J16: 3.2 | K16: 3.3 | M16: 3.2 | N16: 3.3
A17: 4.2 | B17: 4.2 | E17: 4.3 | F17: 4.1 | J17: 3.3 | K17: 7.1 | M17: 3.4 | N17: 4.1
A18: 4.3 | B18: 4.1 | E18: 5.1 | F18: 5.1 | J18: 3.4 | K18: 4.1 | M18: 3.5 | N18: 3.4
A19: 5.1 | B19: 5.1 | E19: 5.2 | F19: 5.2 | J19: 3.5 | K19: 3.4 | M19: 4.1 | N19: 4.3
A20: 5.2 | B20: 5.2 | E20: 5.3 | F20: 5.3 | J20: 4.1 | K20: 4.3 | M20: 4.2 | N20: 4.2
A21: 5.3 | B21: 5.3 | E21: 6.1 | J21: 4.2 | K21: 4.2 | M21: 5.1 | N21: 5.1
A22: 6.1 | B22: 1.5 | C22: 6.2 | E22: 6.2 | F22: 6.2 | J22: 5.1 | K22: 5.1 | M22: 5.2 | N22: 5.2
A23: 6.2 | B23: 6.1 | C23: 6.3 | E23: 7.1 | F23: 7.2 | J23: 5.2 | K23: 5.2 | M23: 5.3 | N23: 5.3
A24: 7.1 | B24: 3.3 | C24: 7.2 | E24: 7.2 | F24: 7.3 | J24: 5.3 | K24: 5.3 | M24: 6.2 | N24: 6.2
A25: 7.2 | B25: 7.1 | C25: 7.3 | E25: 8.1 | F25: 8.1 | J25: 6.1 | K25: 6.2 | M25: 7.1 | N25: 2.5
A26: 8.1 | B26: 8.1 | E26: 8.2 | F26: 8.2 | J26: 6.2 | K26: 6.1 | M26: 7.2 | N26: 7.1
A27: 8.2 | B27: 8.2 | E27: 8.3 | F27: 8.3 | J27: 6.3 | K27: 6.2 | M27: 7.3 | N27: 7.2
A28: 8.3 | B28: 8.3 | J28: 7.1 | K28: 7.2 | M28: 8.1 | N28: 8.1
J29: 7.2 | K29: 7.1 | M29: 8.2 | N29: 8.2
J30: 7.3 | K30: 7.2 | M30: 8.3 | N30: 8.3
J31: 8.1 | K31: 8.1
J32: 8.2 | K32: 8.2
J33: 8.3 | K33: 8.3
